Workbook

Sheet Introduction
I2: Mobile Combustion GHG Emissions Calculation Tool Version 2.6
B7: Introduction
B9: This tool calculates the CO2, CH4 and N2O emissions from: n Vehicles that are owned/controlled by you, including freight lorries. n Public transport by road, rail, air and water. n Mobile machinery, such as agricultural and construction equipment. | H9: The tool uses default emission factors, which vary by country. Currently, separate sets of emission factors are available for the UK and US. For other countries, if more specific emission factors are not available, companies should select the ‘Other’ category. This category uses either global default values or UK-specific values -- it will therefore lead to less accurate calculations. On the settings tab, users can supply custom emission factors or adjust the default global warming potentials.
B10: What data do I need? Fuel use data are most accurate for calculating CO2 emissions, while distance-traveled data are most accurate for calculating CH4 and N2O emissions. So, for non-public transport sources, the recommended approach is to provide both fuel use and distance data. Where one type of data is unavailable, the tool uses fuel economy information (where available) to convert between these data types. Because CO2 contributes most to GHG emissions (>95%), companies should first strive to improve their fuel use records. Please note that the emission from on-road freight transport can be calculated using vehicle distance or weight-distance data.
B12: Start Here | G12: Notes
B14: Select the action that you'd like to perform below: | G14: Multipliers or other corrections to account for radiative forcing may be applied to the GWP of emissions arising from aircraft transport. If used, this should be documented in the inventory report.
G18: The emission factors used in this tool come from the UK Dept. for Environment, Food and Rural Affairs (DEFRA), the US Environmental Protection Agency (EPA) and the Intergovernmental Panel on Climate Change’s (IPCC) 2006 Guidelines for National Greenhouse Gas Inventories. The tool was developed by Clear Standards Inc. in collaboration with WRI. Please cite this tool using the following format: World Resources Institute (2015). GHG Protocol tool for mobile combustion. Version 2.6. While the worksheets are largely self explanatory, for questions or suggestions on its contents, please contact the GHG Protocol at: ghgquestions@wri.org Other tools can be downloaded from the GHG Protocol website.

Sheet Activity Data
H2: Total GHG Emissions, exclude Biofuel CO2 (metric tonnes CO2e) | I2: =Ref_Total_Emission -> 0
H4: Biofuel CO2 Emissions (metric tonnes) | I4: =Ref_Total_Emission_Biomass -> 0
D6: The default emission factors are sourced from the US EPA Climate Leaders program or from the UK DEFRA (for air travel only).
B7: Activity Data
B9: Status | C9: Source Description | D9: Region | E9: Mode of Transport | F9: Scope | G9: Type of Activity Data | H9: Activity Data | P9: Error Messages | Q9: GHG Emissions | AH9: CO2 in Factor Unit Conversion -Numerator | AI9: CO2 in Factor Unit Conversion -Denominator | AJ9: CO2 Biomass in Factor Unit Conversion -Numerator | AK9: CO2 Biomass in Factor Unit Conversion -Denominator | AL9: CH4 in Factor Unit Conversion -Numerator | AM9: CH4 in Factor Unit Conversion -Denominator | AN9: N2O in Factor Unit Conversion -Numerator | AO9: N2O in Factor Unit Conversion -Denominator | AP9: CO2 IPCC GWP Values | AQ9: CH4IPCC GWP Values | AR9: N20 IPCC GWP Values | AS9: CO2Bio IPCC GWP Values | AZ9: Scope 1 | BA9: Scope 1 | BB9: Scope 1 | BC9: Scope 1 | BD9: Scope 1 | BE9: Scope 1 | BF9: Scope 3 | BG9: Scope 3 | BH9: Scope 3 | BI9: Scope 3 | BJ9: Scope 3 | BK9: Scope 3 | BL9: All Scope | BM9: All Scope | BN9: Scope 1 | BO9: Scope 1 | BP9: Scope 1 | BQ9: Scope 1 | BR9: Scope 1 | BS9: Scope 1 | BT9: Scope 1 | BU9: Scope 1 | BV9: Scope 1 | BW9: Scope 1 | BX9: Scope 1 | BY9: Scope 1 | BZ9: Scope 3 | CA9: Scope 3 | CB9: Scope 3 | CC9: Scope 3 | CD9: Scope 3 | CE9: Scope 3 | CF9: Scope 3 | CG9: Scope 3 | CH9: Scope 3 | CI9: Scope 3 | CJ9: Scope 3 | CK9: Scope 3 | CL9: All Scope | CM9: All Scope | CN9: All Scope | CO9: All Scope | CP9: Vehicle Unit dropdown | CQ9: Partial formual to calculate total GHG emissions | CR9: Type of activitydata
H10: Vehicle Type (For air transport, see footnote) | I10: Distance Travelled | J10: Total Weight of Freight | K10: # of Passenger | L10: Units of Measurement | M10: Fuel Used | N10: Fuel Amount | O10: Unit of Fuel Amount | Q10: Fossil Fuel CO2 (metric tonnes) | R10: CH4 (kilograms) | S10: N2O (kilograms) | T10: Total GHG Emissions, exclude Biofuel CO2 (metric tonnes CO2e) | U10: Biofuel CO2 Emissions (metric tonnes) | V10: CO2 Factor | W10: CO2 Factor Unit - Numerator | X10: CO2 Factor Unit - Denominator | Y10: CO2 Biomass Factor | Z10: CO2 Biomass Factor Unit - Numerator | AA10: CO2 Biomass Factor Unit - Denominator | AB10: CH4 Factor | AC10: CH4 Factor Unit - Numerator | AD10: CH4 Factor Unit - Denominator | AE10: N2O Factor | AF10: N2O Factor Unit - Numerator | AG10: N2O Factor Unit - Denominator | AT10: Formula for Vehical dropdown | AU10: Sub formula for CO2 Emission factors calulations | AV10: Sub formula for CO2 Emission factors calulations | AW10: Sub formula for CO2 Emission factors calulations | AX10: Sub formula for BioFuel Emission factors calulations | AY10: If range exist | AZ10: CO2 Factor Fuel Use | BA10: CO2 Factor Distance Use | BB10: CH4 Factor Fuel Use | BC10: CH4 Factor Distance Use | BD10: N2O Factor Fuel Use | BE10: N2O Factor Distance Use | BF10: CO2 Factor Fuel Use | BG10: CO2 Factor Distance Use | BH10: CH4 Factor Fuel Use | BI10: CH4 Factor Distance Use | BJ10: N2O Factor Fuel Use | BK10: N2O Factor Distance Use | BL10: BioFuel CO2 Factor Fuel Use | BM10: BioFuel CO2 Factor Distance use | BN10: CO2 For Road | BO10: CO2 For Rail | BP10: CO2 For Water | BQ10: CO2 For Aircraft | BR10: CH4 For Road | BS10: CH4 For Rail | BT10: CH4 For Water | BU10: CH4 For Aircraft | BV10: N2O For Road | BW10: N2O For Rail | BX10: N2O For Water | BY10: N2O For Aircraft | BZ10: CO2 For Road | CA10: CO2 For Rail | CB10: CO2 For Water | CC10: CO2 For Aircraft | CD10: CH4 For Road | CE10: CH4 For Rail | CF10: CH4 For Water | CG10: CH4 For Aircraft | CH10: N2O For Road | CI10: N2O For Rail | CJ10: N2O For Water | CK10: N2O For Aircraft | CL10: BioFuel CO2 Raod | CM10: BioFuel CO2 Rail | CN10: BioFuel CO2 Water | CO10: BioFuel CO2 Aircraft
Q11: =IF(ISERROR(IF(OR($CR11="Fuel Use",$CR11="Custom Fuel",$CR11="Fuel Use and Vehicle Distance"),($N11*$V11*$AH11*$AI11),IF($CR11="Weight Distance (e.g. Freight Transport)",($I11*$J11*$V11*$AH11*$AI11),IF($CR11="Passenger Distance (e.g. Public Transport)",($I11*$K11*$V11*$AH11*$AI11),($I11*$V11*$AH11*$AI11))))),"",IF(OR($CR11="Fuel Use",$CR11="Custom Fuel",$CR11="Fuel Use and Vehicle Distance"),($N11*$V11*$AH11*$AI11),IF($CR11="Weight Distance (e.g. Freight Transport)",($I11*$J11*$V11*$AH11*$AI11),IF($CR11="Passenger Distance (e.g. Public Transport)",($I11*$K11*$V11*$AH11*$AI11),($I11*$V11*$AH11*$AI11))))) ->  | R11: =IF(ISERROR(IF($CR11="Weight Distance (e.g. Freight Transport)",($I11*$J11*$AB11*$AL11*$AM11*1000),IF(OR($CR11="Fuel Use",$CR11="Custom Fuel"),($N11*$AB11*$AL11*$AM11*1000),IF($CR11="Passenger Distance (e.g. Public Transport)",($I11*$AB11*$K11*$AL11*$AM11*1000),($I11*$AB11*$AL11*$AM11*1000))))),"",IF($CR11="Weight Distance (e.g. Freight Transport)",($I11*$J11*$AB11*$AL11*$AM11*1000),IF(OR($CR11="Fuel Use",$CR11="Custom Fuel"),($N11*$AB11*$AL11*$AM11*1000),IF($CR11="Passenger Distance (e.g. Public Transport)",($I11*$AB11*$K11*$AL11*$AM11*1000),($I11*$AB11*$AL11*$AM11*1000))))) ->  | S11: =IF(ISERROR(IF($CR11="Weight Distance (e.g. Freight Transport)",($I11*$J11*$AE11*$AN11*$AO11*1000),IF(OR($CR11="Fuel Use",$CR11="Custom Fuel"),($N11*$AE11*$AN11*$AO11*1000),IF($CR11="Passenger Distance (e.g. Public Transport)",($I11*$AE11*$AN11*$K11*$AO11*1000),($I11*$AE11*$AN11*$AO11*1000))))),"",IF($CR11="Weight Distance (e.g. Freight Transport)",($I11*$J11*$AE11*$AN11*$AO11*1000),IF(OR($CR11="Fuel Use",$CR11="Custom Fuel"),($N11*$AE11*$AN11*$AO11*1000),IF($CR11="Passenger Distance (e.g. Public Transport)",($I11*$AE11*$AN11*$K11*$AO11*1000),($I11*$AE11*$AN11*$AO11*1000))))) ->  | T11: =IF(AND(ISERROR($Q11*$AP11)=FALSE,ISERROR((R11/1000)*$AQ11)=FALSE,ISERROR((S11/1000)*$AR11)=FALSE),($Q11*$AP11)+((R11/1000)*$AQ11)+((S11/1000)*$AR11),IF(AND(ISERROR($Q11*$AP11)=FALSE,ISERROR((R11/1000)*$AQ11)=FALSE,ISERROR((S11/1000)*$AR11)=TRUE),($Q11*$AP11)+((R11/1000)*$AQ11),IF(AND(ISERROR($Q11*$AP11)=FALSE,ISERROR((R11/1000)*$AQ11)=TRUE,ISERROR((S11/1000)*$AR11)=FALSE),($Q11*$AP11)+((S11/1000)*$AR11),IF(AND(ISERROR($Q11*$AP11)=FALSE,ISERROR((R11/1000)*$AQ11)=TRUE,ISERROR((S11/1000)*$AR11)=TRUE),($Q11*$AP11),IF(AND(ISERROR($Q11*$AP11)=TRUE,ISERROR((R11/1000)*$AQ11)=FALSE,ISERROR((S11/1000)*$AR11)=FALSE),((R11/1000)*$AQ11)+((S11/1000)*$AR11),IF(AND(ISERROR($Q11*$AP11)=TRUE,ISERROR((R11/1000)*$AQ11)=FALSE,ISERROR((S11/1000)*$AR11)=TRUE),((R11/1000)*$AQ11),CQ11)))))) ->  | U11: =IF(ISERROR(IF(OR($CR11="Fuel Use",$CR11="Custom Fuel",$CR11="Fuel Use and Vehicle Distance"),($N11*$Y11*$AJ11*$AK11),IF($CR11="Weight Distance (e.g. Freight Transport)",($I11*$J11*$Y11*$AJ11*$AK11),IF($CR11="Passenger Distance (e.g. Public Transport)",($I11*$Y11*$AJ11*$AK11*$K11),($I11*$Y11*$AJ11*$AK11))))),"",IF(OR($CR11="Fuel Use",$CR11="Custom Fuel",$CR11="Fuel Use and Vehicle Distance"),($N11*$Y11*$AJ11*$AK11),IF($CR11="Weight Distance (e.g. Freight Transport)",($I11*$J11*$Y11*$AJ11*$AK11),IF($CR11="Passenger Distance (e.g. Public Transport)",($I11*$Y11*$AJ11*$AK11*$K11),($I11*$Y11*$AJ11*$AK11))))) ->  | V11: =IF(OR($G11="Fuel Use",$G11="Fuel Use and Vehicle Distance"),VLOOKUP($M11,INDIRECT("Ref_EF_ByFuel"&"_"&$D11),3,0),IF(AND($G11="Vehicle Distance (e.g. Road Transport)",$D11="UK"),VLOOKUP($H11,Ref_EF_Vehicle_Distance_UK,3,0),IF(AND($G11="Vehicle Distance (e.g. Road Transport)",OR($D11="US",$D11="Other")),VLOOKUP($H11,INDIRECT("Ref_EF_Vehicle_Distance"&"_"&$D11),15,0),IF(AND($G11="Vehicle Distance (e.g. Road Transport)",ISBLANK($N11),ISBLANK($O11)),VLOOKUP($H11,INDIRECT("Ref_EF_Vehicle_Distance"&"_"&$D11),15,0),IF($G11="Weight Distance (e.g. Freight Transport)",VLOOKUP($H11,INDIRECT("Ref_EF_Weight_Distance"&"_"&$D11),3,0),IF($G11="Custom Vehicle",VLOOKUP($H11,Tbl_vehical_Settings,2,0),IF($G11="Custom Fuel",VLOOKUP($M11,Tbl_Fuel_Settings,2,0),$AU11))))))) ->  | W11: =IF(OR($G11="Fuel Use",$G11="Fuel Use and Vehicle Distance"),VLOOKUP($M11,INDIRECT("Ref_EF_ByFuel"&"_"&$D11),5,0),IF(AND($G11="Vehicle Distance (e.g. Road Transport)",$D11="UK"),VLOOKUP($H11,Ref_EF_Vehicle_Distance_UK,5,0),IF(AND($G11="Vehicle Distance (e.g. Road Transport)",OR($D11="US",$D11="Other")),VLOOKUP($H11,INDIRECT("Ref_EF_Vehicle_Distance"&"_"&$D11),17,0),IF(AND($G11="Vehicle Distance (e.g. Road Transport)",ISBLANK($N11),ISBLANK($O11)),VLOOKUP($H11,INDIRECT("Ref_EF_Vehicle_Distance"&"_"&$D11),17,0),IF($G11="Weight Distance (e.g. Freight Transport)",VLOOKUP($H11,INDIRECT("Ref_EF_Weight_Distance"&"_"&$D11),5,0),IF($G11="Custom Vehicle",VLOOKUP($H11,Tbl_vehical_Settings,6,0),IF($G11="Custom Fuel",VLOOKUP($M11,Tbl_Fuel_Settings,6,0),$AV11))))))) ->  | X11: =IF(OR($G11="Fuel Use",$G11="Fuel Use and Vehicle Distance"),VLOOKUP($M11,INDIRECT("Ref_EF_ByFuel"&"_"&$D11),6,0),IF(AND($G11="Vehicle Distance (e.g. Road Transport)",$D11="UK"),VLOOKUP($H11,Ref_EF_Vehicle_Distance_UK,6,0),IF(AND($G11="Vehicle Distance (e.g. Road Transport)",OR($D11="US",$D11="Other")),VLOOKUP($H11,INDIRECT("Ref_EF_Vehicle_Distance"&"_"&$D11),18,0),IF(AND($G11="Vehicle Distance (e.g. Road Transport)",ISBLANK($N11),ISBLANK($O11)),VLOOKUP($H11,INDIRECT("Ref_EF_Vehicle_Distance"&"_"&$D11),18,0),IF($G11="Weight Distance (e.g. Freight Transport)",VLOOKUP($H11,INDIRECT("Ref_EF_Weight_Distance"&"_"&$D11),6,0),IF($G11="Custom Vehicle",VLOOKUP($H11,Tbl_vehical_Settings,7,0),IF($G11="Custom Fuel",VLOOKUP($M11,Tbl_Fuel_Settings,7,0),$AW11))))))) ->  | Y11: =IF(OR($G11="Fuel Use",$G11="Fuel Use and Vehicle Distance"),VLOOKUP($M11,INDIRECT("Ref_EF_ByFuel"&"_"&$D11),4,0),IF(AND($G11="Vehicle Distance (e.g. Road Transport)",$D11="UK"),VLOOKUP($H11,Ref_EF_Vehicle_Distance_UK,4,0),IF(AND($G11="Vehicle Distance (e.g. Road Transport)",OR($D11="US",$D11="Other")),VLOOKUP($H11,INDIRECT("Ref_EF_Vehicle_Distance"&"_"&$D11),16,0),IF(AND($G11="Vehicle Distance (e.g. Road Transport)",ISBLANK($N11),ISBLANK($O11)),VLOOKUP($H11,INDIRECT("Ref_EF_Vehicle_Distance"&"_"&$D11),16,0),IF($G11="Weight Distance (e.g. Freight Transport)",VLOOKUP($H11,INDIRECT("Ref_EF_Weight_Distance"&"_"&$D11),4,0),IF($G11="Custom Vehicle",VLOOKUP($H11,Tbl_vehical_Settings,5,0),IF($G11="Custom Fuel",VLOOKUP($M11,Tbl_Fuel_Settings,5,0),$AX11))))))) ->  | Z11: =IF(OR($G11="Fuel Use",$G11="Fuel Use and Vehicle Distance"),VLOOKUP($M11,INDIRECT("Ref_EF_ByFuel"&"_"&$D11),5,0),IF(AND($G11="Vehicle Distance (e.g. Road Transport)",$D11="UK"),VLOOKUP($H11,Ref_EF_Vehicle_Distance_UK,5,0),IF(AND($G11="Vehicle Distance (e.g. Road Transport)",OR($D11="US",$D11="Other")),VLOOKUP($H11,INDIRECT("Ref_EF_Vehicle_Distance"&"_"&$D11),17,0),IF(AND($G11="Vehicle Distance (e.g. Road Transport)",ISBLANK($N11),ISBLANK($O11)),VLOOKUP($H11,INDIRECT("Ref_EF_Vehicle_Distance"&"_"&$D11),17,0),IF($G11="Weight Distance (e.g. Freight Transport)",VLOOKUP($H11,INDIRECT("Ref_EF_Weight_Distance"&"_"&$D11),5,0),IF($G11="Custom Vehicle",VLOOKUP($H11,Tbl_vehical_Settings,6,0),IF($G11="Custom Fuel",VLOOKUP($M11,Tbl_Fuel_Settings,6,0),$AV11))))))) ->  | AA11: =IF(OR($G11="Fuel Use",$G11="Fuel Use and Vehicle Distance"),VLOOKUP($M11,INDIRECT("Ref_EF_ByFuel"&"_"&$D11),6,0),IF(AND($G11="Vehicle Distance (e.g. Road Transport)",$D11="UK"),VLOOKUP($H11,Ref_EF_Vehicle_Distance_UK,6,0),IF(AND($G11="Vehicle Distance (e.g. Road Transport)",OR($D11="US",$D11="Other")),VLOOKUP($H11,INDIRECT("Ref_EF_Vehicle_Distance"&"_"&$D11),18,0),IF(AND($G11="Vehicle Distance (e.g. Road Transport)",ISBLANK($N11),ISBLANK($O11)),VLOOKUP($H11,INDIRECT("Ref_EF_Vehicle_Distance"&"_"&$D11),18,0),IF($G11="Weight Distance (e.g. Freight Transport)",VLOOKUP($H11,INDIRECT("Ref_EF_Weight_Distance"&"_"&$D11),6,0),IF($G11="Custom Vehicle",VLOOKUP($H11,Tbl_vehical_Settings,7,0),IF($G11="Custom Fuel",VLOOKUP($M11,Tbl_Fuel_Settings,7,0),$AW11))))))) ->  | AB11: =IF($G11="Fuel Use",VLOOKUP($H11,INDIRECT("Ref_EF_ByFuel_CH4"&"_"&$D11),3,0), IF($G11="Fuel Use and Vehicle Distance",VLOOKUP($H11,INDIRECT("Ref_EF_Vehicle_Distance"&"_"&$D11),3,0),IF($G11="Vehicle Distance (e.g. Road Transport)",VLOOKUP($H11,INDIRECT("Ref_EF_Vehicle_Distance"&"_"&$D11),IF($D11="UK",7,3),0),IF($G11="Weight Distance (e.g. Freight Transport)",VLOOKUP(VLOOKUP($H11,INDIRECT("Ref_EF_Weight_Distance"&"_"&$D11),8,0),INDIRECT("Ref_EF_Weight_Distance_CH4"&"_"&$D11),3,0),IF($G11="Custom Vehicle",VLOOKUP($H11,Tbl_vehical_Settings,3,0),IF($G11="Custom Fuel",VLOOKUP($M11,Tbl_Fuel_Settings,3,0),VLOOKUP($H11,INDIRECT("Ref_EF_Public_Transport"&"_"&$D11),7,0))))))) ->  | AC11: =IF($G11="Fuel Use",VLOOKUP($H11,INDIRECT("Ref_EF_ByFuel_CH4"&"_"&$D11),4,0), IF($G11="Fuel Use and Vehicle Distance",VLOOKUP($H11,INDIRECT("Ref_EF_Vehicle_Distance"&"_"&$D11),4,0),IF($G11="Vehicle Distance (e.g. Road Transport)",VLOOKUP($H11,INDIRECT("Ref_EF_Vehicle_Distance"&"_"&$D11),IF($D11="UK",8,4),0),IF($G11="Weight Distance (e.g. Freight Transport)",VLOOKUP(VLOOKUP($H11,INDIRECT("Ref_EF_Weight_Distance"&"_"&$D11),8,0),INDIRECT("Ref_EF_Weight_Distance_CH4"&"_"&$D11),4,0),IF($G11="Custom Vehicle",VLOOKUP($H11,Tbl_vehical_Settings,6,0),IF($G11="Custom Fuel",VLOOKUP($M11,Tbl_Fuel_Settings,6,0),VLOOKUP($H11,INDIRECT("Ref_EF_Public_Transport"&"_"&$D11),8,0))))))) ->  | AD11: =IF($G11="Fuel Use",VLOOKUP($H11,INDIRECT("Ref_EF_ByFuel_CH4"&"_"&$D11),5,0), IF($G11="Fuel Use and Vehicle Distance",VLOOKUP($H11,INDIRECT("Ref_EF_Vehicle_Distance"&"_"&$D11),5,0),IF($G11="Vehicle Distance (e.g. Road Transport)",VLOOKUP($H11,INDIRECT("Ref_EF_Vehicle_Distance"&"_"&$D11),IF($D11="UK",9,5),0),IF($G11="Weight Distance (e.g. Freight Transport)",VLOOKUP(VLOOKUP($H11,INDIRECT("Ref_EF_Weight_Distance"&"_"&$D11),8,0),INDIRECT("Ref_EF_Weight_Distance_CH4"&"_"&$D11),5,0),IF($G11="Custom Vehicle",VLOOKUP($H11,Tbl_vehical_Settings,7,0),IF($G11="Custom Fuel",VLOOKUP($M11,Tbl_Fuel_Settings,7,0),VLOOKUP($H11,INDIRECT("Ref_EF_Public_Transport"&"_"&$D11),9,0))))))) ->  | AE11: =IF($G11="Fuel Use",VLOOKUP($H11,INDIRECT("Ref_EF_ByFuel_CH4"&"_"&$D11),6,0), IF($G11="Fuel Use and Vehicle Distance",VLOOKUP($H11,INDIRECT("Ref_EF_Vehicle_Distance"&"_"&$D11),6,0),IF($G11="Vehicle Distance (e.g. Road Transport)",VLOOKUP($H11,INDIRECT("Ref_EF_Vehicle_Distance"&"_"&$D11),IF($D11="UK",10,6),0),IF($G11="Weight Distance (e.g. Freight Transport)",VLOOKUP(VLOOKUP($H11,INDIRECT("Ref_EF_Weight_Distance"&"_"&$D11),8,0),INDIRECT("Ref_EF_Weight_Distance_CH4"&"_"&$D11),6,0),IF($G11="Custom Vehicle",VLOOKUP($H11,Tbl_vehical_Settings,4,0),IF($G11="Custom Fuel",VLOOKUP($M11,Tbl_Fuel_Settings,4,0),VLOOKUP($H11,INDIRECT("Ref_EF_Public_Transport"&"_"&$D11),10,0))))))) ->  | AF11: =IF($G11="Fuel Use",VLOOKUP($H11,INDIRECT("Ref_EF_ByFuel_CH4"&"_"&$D11),7,0), IF($G11="Fuel Use and Vehicle Distance",VLOOKUP($H11,INDIRECT("Ref_EF_Vehicle_Distance"&"_"&$D11),7,0),IF($G11="Vehicle Distance (e.g. Road Transport)",VLOOKUP($H11,INDIRECT("Ref_EF_Vehicle_Distance"&"_"&$D11),IF($D11="UK",11,7),0),IF($G11="Weight Distance (e.g. Freight Transport)",VLOOKUP(VLOOKUP($H11,INDIRECT("Ref_EF_Weight_Distance"&"_"&$D11),8,0),INDIRECT("Ref_EF_Weight_Distance_CH4"&"_"&$D11),7,0),IF($G11="Custom Vehicle",VLOOKUP($H11,Tbl_vehical_Settings,6,0),IF($G11="Custom Fuel",VLOOKUP($M11,Tbl_Fuel_Settings,6,0),VLOOKUP($H11,INDIRECT("Ref_EF_Public_Transport"&"_"&$D11),11,0))))))) ->  | AG11: =IF($G11="Fuel Use",VLOOKUP($H11,INDIRECT("Ref_EF_ByFuel_CH4"&"_"&$D11),8,0), IF($G11="Fuel Use and Vehicle Distance",VLOOKUP($H11,INDIRECT("Ref_EF_Vehicle_Distance"&"_"&$D11),8,0),IF($G11="Vehicle Distance (e.g. Road Transport)",VLOOKUP($H11,INDIRECT("Ref_EF_Vehicle_Distance"&"_"&$D11),IF($D11="UK",12,8),0),IF($G11="Weight Distance (e.g. Freight Transport)",VLOOKUP(VLOOKUP($H11,INDIRECT("Ref_EF_Weight_Distance"&"_"&$D11),8,0),INDIRECT("Ref_EF_Weight_Distance_CH4"&"_"&$D11),8,0),IF($G11="Custom Vehicle",VLOOKUP($H11,Tbl_vehical_Settings,7,0),IF($G11="Custom Fuel",VLOOKUP($M11,Tbl_Fuel_Settings,7,0),VLOOKUP($H11,INDIRECT("Ref_EF_Public_Transport"&"_"&$D11),12,0))))))) ->  | AH11: =INDEX(Ref_Master_Unit_Table,MATCH($W11,REF_To_Unit,0),MATCH('Reference - Lookup and Unit'!$A$11,Ref_From_Units,0)) ->  | AI11: =INDEX(Ref_Master_Unit_Table,MATCH(IF(AND($D11="UK",$G11="Vehicle Distance (e.g. Road Transport)"),$L11,IF(ISBLANK($O11),$L11,$O11)),Ref_From_Units,0),MATCH($X11,REF_To_Unit,0)) ->  | AJ11: =INDEX(Ref_Master_Unit_Table,MATCH($Z11,REF_To_Unit,0),MATCH('Reference - Lookup and Unit'!$A$11,Ref_From_Units,0)) ->  | AK11: =INDEX(Ref_Master_Unit_Table,MATCH(IF(AND($D11="UK",$G11="Vehicle Distance (e.g. Road Transport)"),$L11,IF(ISBLANK($O11),$L11,$O11)),Ref_From_Units,0),MATCH($AA11,REF_To_Unit,0)) ->  | AL11: =INDEX(Ref_Master_Unit_Table,MATCH($AC11,REF_To_Unit,0),MATCH('Reference - Lookup and Unit'!$A$11,Ref_From_Units,0)) ->  | AM11: =INDEX(Ref_Master_Unit_Table,MATCH(IF(OR($G11="Fuel Use",$G11="Custom Fuel"),$O11,$L11),Ref_From_Units,0),MATCH($AD11,REF_To_Unit,0)) ->  | AN11: =INDEX(Ref_Master_Unit_Table,MATCH($AF11,REF_To_Unit,0),MATCH('Reference - Lookup and Unit'!$A$11,Ref_From_Units,0)) ->  | AO11: =INDEX(Ref_Master_Unit_Table,MATCH(IF(OR($G11="Fuel Use",$G11="Custom Fuel"),$O11,$L11),Ref_From_Units,0),MATCH($AD11,REF_To_Unit,0)) ->  | AP11: =VLOOKUP("CO2",INDIRECT(IF(Setting_IPCC_GWP_VERSION="1995 IPCC Second Assessment Report (SAR)","Ref_EF_IPCC_GWP_95",IF(Setting_IPCC_GWP_VERSION="2001 IPCC Third Assessment Report (TAR)","Ref_EF_IPCC_GWP_2001","Ref_EF_IPCC_GWP_2007"))),2,0) -> 1 | AQ11: =VLOOKUP("CH4",INDIRECT(IF(Setting_IPCC_GWP_VERSION="1995 IPCC Second Assessment Report (SAR)","Ref_EF_IPCC_GWP_95",IF(Setting_IPCC_GWP_VERSION="2001 IPCC Third Assessment Report (TAR)","Ref_EF_IPCC_GWP_2001",IF(Setting_IPCC_GWP_VERSION="2007 IPCC Fourth Assessment Report","Ref_EF_IPCC_GWP_2007","Ref_EF_IPCC_GWP_2014")))),2,0) -> 28 | AR11: =VLOOKUP("N2O",INDIRECT(IF(Setting_IPCC_GWP_VERSION="1995 IPCC Second Assessment Report (SAR)","Ref_EF_IPCC_GWP_95",IF(Setting_IPCC_GWP_VERSION="2001 IPCC Third Assessment Report (TAR)","Ref_EF_IPCC_GWP_2001", IF(Setting_IPCC_GWP_VERSION="2007 IPCC Fourth Assessment Report","Ref_EF_IPCC_GWP_2007","Ref_EF_IPCC_GWP_2014")))),2,0) -> 265 | AS11: =VLOOKUP("Biofuel CO2",INDIRECT(IF(Setting_IPCC_GWP_VERSION="1995 IPCC Second Assessment Report (SAR)","Ref_EF_IPCC_GWP_95",IF(Setting_IPCC_GWP_VERSION="2001 IPCC Third Assessment Report (TAR)","Ref_EF_IPCC_GWP_2001","Ref_EF_IPCC_GWP_2007"))),2,0) -> 1 | AT11: =IF(OR($G11="Fuel Use",$G11="Custom fuel"),(IF(E11<>"",("Ref_DD_vehicle_FuelUse"&"_"&D11 &"_"&E11),"Ref_DD_vehicle_FuelUse"&"_"&D11)),IF(OR($G11="Vehicle Distance (e.g. Road Transport)",$G11="Fuel Use and Vehicle Distance"),(IF(E11<>"",("Ref_DD_vehicle_VehicleDistance"&"_"&D11 &"_"&E11),"Ref_DD_vehicle_VehicleDistance"&"_"&D11)),IF($G11="Weight Distance (e.g. Freight Transport)",(IF(E11<>"",("Ref_DD_vehicle_WeightDistance"&"_"&D11 &"_"&E11),"Ref_DD_vehicle_WeightDistance"&"_"&D11)),(IF(E11<>"",("Ref_DD_vehicle_Passenger"&"_"&D11 &"_"&E11),"Ref_DD_vehicle_Passenger"&"_"&D11))))) -> Ref_DD_vehicle_Passenger_ | AU11: =VLOOKUP($H11,INDIRECT("Ref_EF_Public_Transport"&"_"&$D11),3,0) ->  | AV11: =VLOOKUP($H11,INDIRECT("Ref_EF_Public_Transport"&"_"&$D11),5,0) ->  | AW11: =VLOOKUP($H11,INDIRECT("Ref_EF_Public_Transport"&"_"&$D11),6,0) ->  | AX11: =VLOOKUP($H11,INDIRECT("Ref_EF_Public_Transport"&"_"&$D11),4,0) ->  | AY11: =IF(ISERROR(COLUMN(INDIRECT($AT11))),FALSE,TRUE) -> FALSE | AZ11: =IF(AND($F11="Scope 1",OR($G11="Fuel Use",$G11="Custom Fuel",$G11="Fuel Use and Vehicle Distance")),$Q11,IF(AND($F11="Scope 1",OR($G11="Vehicle Distance (e.g. Road Transport)",$G11="Custom Vehicle"),ISBLANK($N11)=FALSE),$Q11,"")) ->  | BA11: =IF(AND($F11="Scope 1",AND(OR($G11="Vehicle Distance (e.g. Road Transport)",$G11="Custom Vehicle"),OR($D11="US",$D11="Other"),ISBLANK($N11)=TRUE)),$Q11,IF(AND($F11="Scope 1",$G11<>"Fuel Use",ISBLANK($N11)=TRUE),$Q11,"")) ->  | BB11: =IF(AND(OR(G11="Fuel Use",G11="Custom Fuel"),F11="Scope 1",ISBLANK(I11)=TRUE),R11,"") ->  | BC11: =IF(AND(OR(G11="Fuel Use",G11="Custom Fuel"),F11="Scope 1",ISBLANK(I11)=FALSE),R11,IF(AND(G11<>"Fuel Use",G11<>"Custom Fuel",F11="Scope 1"),R11,"")) ->  | BD11: =IF(AND(OR(G11="Fuel Use",G11="Custom Fuel"),F11="Scope 1",ISBLANK(I11)=TRUE),S11,"") ->  | BE11: =IF(AND(OR(G11="Fuel Use",G11="Custom Fuel"),F11="Scope 1",ISBLANK(I11)=FALSE),S11,IF(AND(G11<>"Fuel Use",G11<>"Custom Fuel",F11="Scope 1"),S11,"")) ->  | BF11: =IF(AND($F11="Scope 3",OR($G11="Fuel Use",$G11="Custom Fuel",$G11="Fuel Use and Vehicle Distance")),$Q11,IF(AND($F11="Scope 3",OR($G11="Vehicle Distance (e.g. Road Transport)",$G11="Custom Vehicle"),ISBLANK($N11)=FALSE),$Q11,"")) ->  | BG11: =IF(AND($F11="Scope 3",AND(OR($G11="Vehicle Distance (e.g. Road Transport)",$G11="Custom Vehicle"),OR($D11="US",$D11="Other"),ISBLANK($N11)=TRUE)),$Q11,IF(AND($F11="Scope 3",$G11<>"Fuel Use",ISBLANK($N11)=TRUE),$Q11,"")) ->  | BH11: =IF(AND(OR(G11="Fuel Use",G11="Custom Fuel"),F11="Scope 3",ISBLANK(I11)=TRUE),R11,"") ->  | BI11: =IF(AND(OR(G11="Fuel Use",G11="Custom Fuel"),F11="Scope 3",ISBLANK(I11)=FALSE),R11,IF(AND(G11<>"Fuel Use",G11<>"Custom Fuel",F11="Scope 3"),R11,"")) ->  | BJ11: =IF(AND(OR(G11="Fuel Use",G11="Custom Fuel"),F11="Scope 3",ISBLANK(I11)=TRUE),S11,"") ->  | BK11: =IF(AND(OR(G11="Fuel Use",G11="Custom Fuel"),F11="Scope 3",ISBLANK(I11)=FALSE),S11,IF(AND(G11<>"Fuel Use",G11<>"Custom Fuel",F11="Scope 3"),S11,"")) ->  | BL11: =IF(OR($G11="Fuel Use",$G11="Custom Fuel"),$U11,IF(AND(OR($G11="Vehicle Distance (e.g. Road Transport)",$G11="Custom Vehicle"),ISBLANK($N11)=FALSE),$U11,"")) ->  | BM11: =IF(AND(AND(OR($G11="Vehicle Distance (e.g. Road Transport)",$G11="Custom Vehicle"),OR($D11="US",$D11="Other"),ISBLANK($N11)=TRUE)),$U11,IF(AND($G11<>"Fuel Use",ISBLANK($N11)=TRUE),$U11,"")) ->  | BN11: =IF(AND($E11="Road",$F11="Scope 1"),$Q11,"") ->  | BO11: =IF(AND($E11="Rail",$F11="Scope 1"),$Q11,"") ->  | BP11: =IF(AND($E11="Water",$F11="Scope 1"),$Q11,"") ->  | BQ11: =IF(AND($E11="AirCraft",$F11="Scope 1"),$Q11,"") ->  | BR11: =IF(AND($E11="Road",$F11="Scope 1"),$R11,"") ->  | BS11: =IF(AND($E11="Rail",$F11="Scope 1"),$R11,"") ->  | BT11: =IF(AND($E11="Water",$F11="Scope 1"),$R11,"") ->  | BU11: =IF(AND($E11="Aircraft",$F11="Scope 1"),$R11,"") ->  | BV11: =IF(AND($E11="Road",$F11="Scope 1"),$S11,"") ->  | BW11: =IF(AND($E11="Rail",$F11="Scope 1"),$S11,"") ->  | BX11: =IF(AND($E11="Water",$F11="Scope 1"),$S11,"") ->  | BY11: =IF(AND($E11="Aircraft",$F11="Scope 1"),$S11,"") ->  | BZ11: =IF(AND($E11="Road",$F11="Scope 3"),$Q11,"") ->  | CA11: =IF(AND($E11="Rail",$F11="Scope 3"),$Q11,"") ->  | CB11: =IF(AND($E11="Water",$F11="Scope 3"),$Q11,"") ->  | CC11: =IF(AND($E11="AirCraft",$F11="Scope 3"),$Q11,"") ->  | CD11: =IF(AND($E11="Road",$F11="Scope 3"),$R11,"") ->  | CE11: =IF(AND($E11="Rail",$F11="Scope 3"),$R11,"") ->  | CF11: =IF(AND($E11="Water",$F11="Scope 3"),$R11,"") ->  | CG11: =IF(AND($E11="Aircraft",$F11="Scope 3"),$R11,"") ->  | CH11: =IF(AND($E11="Road",$F11="Scope 3"),$S11,"") ->  | CI11: =IF(AND($E11="Rail",$F11="Scope 3"),$S11,"") ->  | CJ11: =IF(AND($E11="Water",$F11="Scope 3"),$S11,"") ->  | CK11: =IF(AND($E11="Aircraft",$F11="Scope 3"),$S11,"") ->  | CL11: =IF($E11="Road",$U11,"") ->  | CM11: =IF($E11="Rail",$U11,"") ->  | CN11: =IF($E11="Water",$U11,"") ->  | CO11: =IF($E11="Aircraft",$U11,"") ->  | CP11: =IF($G11="Weight Distance (e.g. Freight Transport)","Ref_DD_WeightDistanceUnits",IF($G11="Passenger Distance (e.g. Public Transport)","Ref_DD_PasengerDistanceUnits",IF($G11="Custom Vehicle","Set_DD_Vehicle_Units","Ref_DD_DistanceUnit"))) -> Ref_DD_DistanceUnit | CQ11: =IF(AND(ISERROR($Q11*$AP11)=TRUE,ISERROR((R11/1000)*$AQ11)=TRUE,ISERROR((S11/1000)*$AR11)=FALSE),((S11/1000)*$AR11),"") ->  | CR11: =IF($G11="Custom vehicle",IF(OR($L11="Passenger Mile",$L11="Passenger Kilometer"),"Passenger Distance (e.g. Public Transport)",IF(OR($L11="Tonne Mile",$L11="Tonne Kilometer"),"Weight Distance (e.g. Freight Transport)","Vehicle Distance (e.g. Road Transport)")),$G11) -> 0
Q12: =IF(ISERROR(IF(OR($CR12="Fuel Use",$CR12="Custom Fuel",$CR12="Fuel Use and Vehicle Distance"),($N12*$V12*$AH12*$AI12),IF($CR12="Weight Distance (e.g. Freight Transport)",($I12*$J12*$V12*$AH12*$AI12),IF($CR12="Passenger Distance (e.g. Public Transport)",($I12*$K12*$V12*$AH12*$AI12),($I12*$V12*$AH12*$AI12))))),"",IF(OR($CR12="Fuel Use",$CR12="Custom Fuel",$CR12="Fuel Use and Vehicle Distance"),($N12*$V12*$AH12*$AI12),IF($CR12="Weight Distance (e.g. Freight Transport)",($I12*$J12*$V12*$AH12*$AI12),IF($CR12="Passenger Distance (e.g. Public Transport)",($I12*$K12*$V12*$AH12*$AI12),($I12*$V12*$AH12*$AI12))))) ->  | R12: =IF(ISERROR(IF($CR12="Weight Distance (e.g. Freight Transport)",($I12*$J12*$AB12*$AL12*$AM12*1000),IF(OR($CR12="Fuel Use",$CR12="Custom Fuel"),($N12*$AB12*$AL12*$AM12*1000),IF($CR12="Passenger Distance (e.g. Public Transport)",($I12*$AB12*$K12*$AL12*$AM12*1000),($I12*$AB12*$AL12*$AM12*1000))))),"",IF($CR12="Weight Distance (e.g. Freight Transport)",($I12*$J12*$AB12*$AL12*$AM12*1000),IF(OR($CR12="Fuel Use",$CR12="Custom Fuel"),($N12*$AB12*$AL12*$AM12*1000),IF($CR12="Passenger Distance (e.g. Public Transport)",($I12*$AB12*$K12*$AL12*$AM12*1000),($I12*$AB12*$AL12*$AM12*1000))))) ->  | S12: =IF(ISERROR(IF($CR12="Weight Distance (e.g. Freight Transport)",($I12*$J12*$AE12*$AN12*$AO12*1000),IF(OR($CR12="Fuel Use",$CR12="Custom Fuel"),($N12*$AE12*$AN12*$AO12*1000),IF($CR12="Passenger Distance (e.g. Public Transport)",($I12*$AE12*$AN12*$K12*$AO12*1000),($I12*$AE12*$AN12*$AO12*1000))))),"",IF($CR12="Weight Distance (e.g. Freight Transport)",($I12*$J12*$AE12*$AN12*$AO12*1000),IF(OR($CR12="Fuel Use",$CR12="Custom Fuel"),($N12*$AE12*$AN12*$AO12*1000),IF($CR12="Passenger Distance (e.g. Public Transport)",($I12*$AE12*$AN12*$K12*$AO12*1000),($I12*$AE12*$AN12*$AO12*1000))))) ->  | T12: =IF(AND(ISERROR($Q12*$AP12)=FALSE,ISERROR((R12/1000)*$AQ12)=FALSE,ISERROR((S12/1000)*$AR12)=FALSE),($Q12*$AP12)+((R12/1000)*$AQ12)+((S12/1000)*$AR12),IF(AND(ISERROR($Q12*$AP12)=FALSE,ISERROR((R12/1000)*$AQ12)=FALSE,ISERROR((S12/1000)*$AR12)=TRUE),($Q12*$AP12)+((R12/1000)*$AQ12),IF(AND(ISERROR($Q12*$AP12)=FALSE,ISERROR((R12/1000)*$AQ12)=TRUE,ISERROR((S12/1000)*$AR12)=FALSE),($Q12*$AP12)+((S12/1000)*$AR12),IF(AND(ISERROR($Q12*$AP12)=FALSE,ISERROR((R12/1000)*$AQ12)=TRUE,ISERROR((S12/1000)*$AR12)=TRUE),($Q12*$AP12),IF(AND(ISERROR($Q12*$AP12)=TRUE,ISERROR((R12/1000)*$AQ12)=FALSE,ISERROR((S12/1000)*$AR12)=FALSE),((R12/1000)*$AQ12)+((S12/1000)*$AR12),IF(AND(ISERROR($Q12*$AP12)=TRUE,ISERROR((R12/1000)*$AQ12)=FALSE,ISERROR((S12/1000)*$AR12)=TRUE),((R12/1000)*$AQ12),CQ12)))))) ->  | U12: =IF(ISERROR(IF(OR($CR12="Fuel Use",$CR12="Custom Fuel",$CR12="Fuel Use and Vehicle Distance"),($N12*$Y12*$AJ12*$AK12),IF($CR12="Weight Distance (e.g. Freight Transport)",($I12*$J12*$Y12*$AJ12*$AK12),IF($CR12="Passenger Distance (e.g. Public Transport)",($I12*$Y12*$AJ12*$AK12*$K12),($I12*$Y12*$AJ12*$AK12))))),"",IF(OR($CR12="Fuel Use",$CR12="Custom Fuel",$CR12="Fuel Use and Vehicle Distance"),($N12*$Y12*$AJ12*$AK12),IF($CR12="Weight Distance (e.g. Freight Transport)",($I12*$J12*$Y12*$AJ12*$AK12),IF($CR12="Passenger Distance (e.g. Public Transport)",($I12*$Y12*$AJ12*$AK12*$K12),($I12*$Y12*$AJ12*$AK12))))) ->  | AH12: =INDEX(Ref_Master_Unit_Table,MATCH($W12,REF_To_Unit,0),MATCH('Reference - Lookup and Unit'!$A$11,Ref_From_Units,0)) ->  | AJ12: =INDEX(Ref_Master_Unit_Table,MATCH($Z12,REF_To_Unit,0),MATCH('Reference - Lookup and Unit'!$A$11,Ref_From_Units,0)) ->  | AL12: =INDEX(Ref_Master_Unit_Table,MATCH($AC12,REF_To_Unit,0),MATCH('Reference - Lookup and Unit'!$A$11,Ref_From_Units,0)) ->  | AN12: =INDEX(Ref_Master_Unit_Table,MATCH($AF12,REF_To_Unit,0),MATCH('Reference - Lookup and Unit'!$A$11,Ref_From_Units,0)) ->  | AP12: 1 | AQ12: 28 | AR12: 265 | AS12: 1 | AT12: =IF(OR($G12="Fuel Use",$G12="Custom fuel"),(IF(E12<>"",("Ref_DD_vehicle_FuelUse"&"_"&D12 &"_"&E12),"Ref_DD_vehicle_FuelUse"&"_"&D12)),IF(OR($G12="Vehicle Distance (e.g. Road Transport)",$G12="Fuel Use and Vehicle Distance"),(IF(E12<>"",("Ref_DD_vehicle_VehicleDistance"&"_"&D12 &"_"&E12),"Ref_DD_vehicle_VehicleDistance"&"_"&D12)),IF($G12="Weight Distance (e.g. Freight Transport)",(IF(E12<>"",("Ref_DD_vehicle_WeightDistance"&"_"&D12 &"_"&E12),"Ref_DD_vehicle_WeightDistance"&"_"&D12)),(IF(E12<>"",("Ref_DD_vehicle_Passenger"&"_"&D12 &"_"&E12),"Ref_DD_vehicle_Passenger"&"_"&D12))))) -> Ref_DD_vehicle_Passenger_ | AU12: =VLOOKUP($H12,INDIRECT("Ref_EF_Public_Transport"&"_"&$D12),3,0) ->  | AV12: =VLOOKUP($H12,INDIRECT("Ref_EF_Public_Transport"&"_"&$D12),5,0) ->  | AW12: =VLOOKUP($H12,INDIRECT("Ref_EF_Public_Transport"&"_"&$D12),6,0) ->  | AX12: =VLOOKUP($H12,INDIRECT("Ref_EF_Public_Transport"&"_"&$D12),4,0) ->  | AY12: =IF(ISERROR(COLUMN(INDIRECT($AT12))),FALSE,TRUE) -> FALSE | AZ12: =IF(AND($F12="Scope 1",OR($G12="Fuel Use",$G12="Custom Fuel",$G12="Fuel Use and Vehicle Distance")),$Q12,IF(AND($F12="Scope 1",OR($G12="Vehicle Distance (e.g. Road Transport)",$G12="Custom Vehicle"),ISBLANK($N12)=FALSE),$Q12,"")) ->  | BA12: =IF(AND($F12="Scope 1",AND(OR($G12="Vehicle Distance (e.g. Road Transport)",$G12="Custom Vehicle"),OR($D12="US",$D12="Other"),ISBLANK($N12)=TRUE)),$Q12,IF(AND($F12="Scope 1",$G12<>"Fuel Use",ISBLANK($N12)=TRUE),$Q12,"")) ->  | BB12: =IF(AND(OR(G12="Fuel Use",G12="Custom Fuel"),F12="Scope 1",ISBLANK(I12)=TRUE),R12,"") ->  | BC12: =IF(AND(OR(G12="Fuel Use",G12="Custom Fuel"),F12="Scope 1",ISBLANK(I12)=FALSE),R12,IF(AND(G12<>"Fuel Use",G12<>"Custom Fuel",F12="Scope 1"),R12,"")) ->  | BD12: =IF(AND(OR(G12="Fuel Use",G12="Custom Fuel"),F12="Scope 1",ISBLANK(I12)=TRUE),S12,"") ->  | BE12: =IF(AND(OR(G12="Fuel Use",G12="Custom Fuel"),F12="Scope 1",ISBLANK(I12)=FALSE),S12,IF(AND(G12<>"Fuel Use",G12<>"Custom Fuel",F12="Scope 1"),S12,"")) ->  | BF12: =IF(AND($F12="Scope 3",OR($G12="Fuel Use",$G12="Custom Fuel",$G12="Fuel Use and Vehicle Distance")),$Q12,IF(AND($F12="Scope 3",OR($G12="Vehicle Distance (e.g. Road Transport)",$G12="Custom Vehicle"),ISBLANK($N12)=FALSE),$Q12,"")) ->  | BG12: =IF(AND($F12="Scope 3",AND(OR($G12="Vehicle Distance (e.g. Road Transport)",$G12="Custom Vehicle"),OR($D12="US",$D12="Other"),ISBLANK($N12)=TRUE)),$Q12,IF(AND($F12="Scope 3",$G12<>"Fuel Use",ISBLANK($N12)=TRUE),$Q12,"")) ->  | BH12: =IF(AND(OR(G12="Fuel Use",G12="Custom Fuel"),F12="Scope 3",ISBLANK(I12)=TRUE),R12,"") ->  | BI12: =IF(AND(OR(G12="Fuel Use",G12="Custom Fuel"),F12="Scope 3",ISBLANK(I12)=FALSE),R12,IF(AND(G12<>"Fuel Use",G12<>"Custom Fuel",F12="Scope 3"),R12,"")) ->  | BJ12: =IF(AND(OR(G12="Fuel Use",G12="Custom Fuel"),F12="Scope 3",ISBLANK(I12)=TRUE),S12,"") ->  | BK12: =IF(AND(OR(G12="Fuel Use",G12="Custom Fuel"),F12="Scope 3",ISBLANK(I12)=FALSE),S12,IF(AND(G12<>"Fuel Use",G12<>"Custom Fuel",F12="Scope 3"),S12,"")) ->  | BL12: =IF(OR($G12="Fuel Use",$G12="Custom Fuel"),$U12,IF(AND(OR($G12="Vehicle Distance (e.g. Road Transport)",$G12="Custom Vehicle"),ISBLANK($N12)=FALSE),$U12,"")) ->  | BM12: =IF(AND(AND(OR($G12="Vehicle Distance (e.g. Road Transport)",$G12="Custom Vehicle"),OR($D12="US",$D12="Other"),ISBLANK($N12)=TRUE)),$U12,IF(AND($G12<>"Fuel Use",ISBLANK($N12)=TRUE),$U12,"")) ->  | CP12: =IF($G12="Weight Distance (e.g. Freight Transport)","Ref_DD_WeightDistanceUnits",IF($G12="Passenger Distance (e.g. Public Transport)","Ref_DD_PasengerDistanceUnits",IF($G12="Custom Vehicle","Set_DD_Vehicle_Units","Ref_DD_DistanceUnit"))) -> Ref_DD_DistanceUnit | CQ12: =IF(AND(ISERROR($Q12*$AP12)=TRUE,ISERROR((R12/1000)*$AQ12)=TRUE,ISERROR((S12/1000)*$AR12)=FALSE),((S12/1000)*$AR12),"") ->  | CR12: =IF($G12="Custom vehicle",IF(OR($L12="Passenger Mile",$L12="Passenger Kilometer"),"Passenger Distance (e.g. Public Transport)",IF(OR($L12="Tonne Mile",$L12="Tonne Kilometer"),"Weight Distance (e.g. Freight Transport)","Vehicle Distance (e.g. Road Transport)")),$G12) -> 0
Q13: =IF(ISERROR(IF(OR($CR13="Fuel Use",$CR13="Custom Fuel",$CR13="Fuel Use and Vehicle Distance"),($N13*$V13*$AH13*$AI13),IF($CR13="Weight Distance (e.g. Freight Transport)",($I13*$J13*$V13*$AH13*$AI13),IF($CR13="Passenger Distance (e.g. Public Transport)",($I13*$K13*$V13*$AH13*$AI13),($I13*$V13*$AH13*$AI13))))),"",IF(OR($CR13="Fuel Use",$CR13="Custom Fuel",$CR13="Fuel Use and Vehicle Distance"),($N13*$V13*$AH13*$AI13),IF($CR13="Weight Distance (e.g. Freight Transport)",($I13*$J13*$V13*$AH13*$AI13),IF($CR13="Passenger Distance (e.g. Public Transport)",($I13*$K13*$V13*$AH13*$AI13),($I13*$V13*$AH13*$AI13))))) ->  | R13: =IF(ISERROR(IF($CR13="Weight Distance (e.g. Freight Transport)",($I13*$J13*$AB13*$AL13*$AM13*1000),IF(OR($CR13="Fuel Use",$CR13="Custom Fuel"),($N13*$AB13*$AL13*$AM13*1000),IF($CR13="Passenger Distance (e.g. Public Transport)",($I13*$AB13*$K13*$AL13*$AM13*1000),($I13*$AB13*$AL13*$AM13*1000))))),"",IF($CR13="Weight Distance (e.g. Freight Transport)",($I13*$J13*$AB13*$AL13*$AM13*1000),IF(OR($CR13="Fuel Use",$CR13="Custom Fuel"),($N13*$AB13*$AL13*$AM13*1000),IF($CR13="Passenger Distance (e.g. Public Transport)",($I13*$AB13*$K13*$AL13*$AM13*1000),($I13*$AB13*$AL13*$AM13*1000))))) ->  | S13: =IF(ISERROR(IF($CR13="Weight Distance (e.g. Freight Transport)",($I13*$J13*$AE13*$AN13*$AO13*1000),IF(OR($CR13="Fuel Use",$CR13="Custom Fuel"),($N13*$AE13*$AN13*$AO13*1000),IF($CR13="Passenger Distance (e.g. Public Transport)",($I13*$AE13*$AN13*$K13*$AO13*1000),($I13*$AE13*$AN13*$AO13*1000))))),"",IF($CR13="Weight Distance (e.g. Freight Transport)",($I13*$J13*$AE13*$AN13*$AO13*1000),IF(OR($CR13="Fuel Use",$CR13="Custom Fuel"),($N13*$AE13*$AN13*$AO13*1000),IF($CR13="Passenger Distance (e.g. Public Transport)",($I13*$AE13*$AN13*$K13*$AO13*1000),($I13*$AE13*$AN13*$AO13*1000))))) ->  | U13: =IF(ISERROR(IF(OR($CR13="Fuel Use",$CR13="Custom Fuel",$CR13="Fuel Use and Vehicle Distance"),($N13*$Y13*$AJ13*$AK13),IF($CR13="Weight Distance (e.g. Freight Transport)",($I13*$J13*$Y13*$AJ13*$AK13),IF($CR13="Passenger Distance (e.g. Public Transport)",($I13*$Y13*$AJ13*$AK13*$K13),($I13*$Y13*$AJ13*$AK13))))),"",IF(OR($CR13="Fuel Use",$CR13="Custom Fuel",$CR13="Fuel Use and Vehicle Distance"),($N13*$Y13*$AJ13*$AK13),IF($CR13="Weight Distance (e.g. Freight Transport)",($I13*$J13*$Y13*$AJ13*$AK13),IF($CR13="Passenger Distance (e.g. Public Transport)",($I13*$Y13*$AJ13*$AK13*$K13),($I13*$Y13*$AJ13*$AK13))))) ->  | AH13: =INDEX(Ref_Master_Unit_Table,MATCH($W13,REF_To_Unit,0),MATCH('Reference - Lookup and Unit'!$A$11,Ref_From_Units,0)) ->  | AJ13: =INDEX(Ref_Master_Unit_Table,MATCH($Z13,REF_To_Unit,0),MATCH('Reference - Lookup and Unit'!$A$11,Ref_From_Units,0)) ->  | AL13: =INDEX(Ref_Master_Unit_Table,MATCH($AC13,REF_To_Unit,0),MATCH('Reference - Lookup and Unit'!$A$11,Ref_From_Units,0)) ->  | AN13: =INDEX(Ref_Master_Unit_Table,MATCH($AF13,REF_To_Unit,0),MATCH('Reference - Lookup and Unit'!$A$11,Ref_From_Units,0)) ->  | AP13: 1 | AQ13: 28 | AR13: 265 | AS13: 1 | AT13: =IF(OR($G13="Fuel Use",$G13="Custom fuel"),(IF(E13<>"",("Ref_DD_vehicle_FuelUse"&"_"&D13 &"_"&E13),"Ref_DD_vehicle_FuelUse"&"_"&D13)),IF(OR($G13="Vehicle Distance (e.g. Road Transport)",$G13="Fuel Use and Vehicle Distance"),(IF(E13<>"",("Ref_DD_vehicle_VehicleDistance"&"_"&D13 &"_"&E13),"Ref_DD_vehicle_VehicleDistance"&"_"&D13)),IF($G13="Weight Distance (e.g. Freight Transport)",(IF(E13<>"",("Ref_DD_vehicle_WeightDistance"&"_"&D13 &"_"&E13),"Ref_DD_vehicle_WeightDistance"&"_"&D13)),(IF(E13<>"",("Ref_DD_vehicle_Passenger"&"_"&D13 &"_"&E13),"Ref_DD_vehicle_Passenger"&"_"&D13))))) -> Ref_DD_vehicle_Passenger_ | AU13: =VLOOKUP($H13,INDIRECT("Ref_EF_Public_Transport"&"_"&$D13),3,0) ->  | AV13: =VLOOKUP($H13,INDIRECT("Ref_EF_Public_Transport"&"_"&$D13),5,0) ->  | AW13: =VLOOKUP($H13,INDIRECT("Ref_EF_Public_Transport"&"_"&$D13),6,0) ->  | AX13: =VLOOKUP($H13,INDIRECT("Ref_EF_Public_Transport"&"_"&$D13),4,0) ->  | AY13: =IF(ISERROR(COLUMN(INDIRECT($AT13))),FALSE,TRUE) -> FALSE | AZ13: =IF(AND($F13="Scope 1",OR($G13="Fuel Use",$G13="Custom Fuel",$G13="Fuel Use and Vehicle Distance")),$Q13,IF(AND($F13="Scope 1",OR($G13="Vehicle Distance (e.g. Road Transport)",$G13="Custom Vehicle"),ISBLANK($N13)=FALSE),$Q13,"")) ->  | BA13: =IF(AND($F13="Scope 1",AND(OR($G13="Vehicle Distance (e.g. Road Transport)",$G13="Custom Vehicle"),OR($D13="US",$D13="Other"),ISBLANK($N13)=TRUE)),$Q13,IF(AND($F13="Scope 1",$G13<>"Fuel Use",ISBLANK($N13)=TRUE),$Q13,"")) ->  | BB13: =IF(AND(OR(G13="Fuel Use",G13="Custom Fuel"),F13="Scope 1",ISBLANK(I13)=TRUE),R13,"") ->  | BC13: =IF(AND(OR(G13="Fuel Use",G13="Custom Fuel"),F13="Scope 1",ISBLANK(I13)=FALSE),R13,IF(AND(G13<>"Fuel Use",G13<>"Custom Fuel",F13="Scope 1"),R13,"")) ->  | BD13: =IF(AND(OR(G13="Fuel Use",G13="Custom Fuel"),F13="Scope 1",ISBLANK(I13)=TRUE),S13,"") ->  | BE13: =IF(AND(OR(G13="Fuel Use",G13="Custom Fuel"),F13="Scope 1",ISBLANK(I13)=FALSE),S13,IF(AND(G13<>"Fuel Use",G13<>"Custom Fuel",F13="Scope 1"),S13,"")) ->  | BF13: =IF(AND($F13="Scope 3",OR($G13="Fuel Use",$G13="Custom Fuel",$G13="Fuel Use and Vehicle Distance")),$Q13,IF(AND($F13="Scope 3",OR($G13="Vehicle Distance (e.g. Road Transport)",$G13="Custom Vehicle"),ISBLANK($N13)=FALSE),$Q13,"")) ->  | BG13: =IF(AND($F13="Scope 3",AND(OR($G13="Vehicle Distance (e.g. Road Transport)",$G13="Custom Vehicle"),OR($D13="US",$D13="Other"),ISBLANK($N13)=TRUE)),$Q13,IF(AND($F13="Scope 3",$G13<>"Fuel Use",ISBLANK($N13)=TRUE),$Q13,"")) ->  | BH13: =IF(AND(OR(G13="Fuel Use",G13="Custom Fuel"),F13="Scope 3",ISBLANK(I13)=TRUE),R13,"") ->  | BI13: =IF(AND(OR(G13="Fuel Use",G13="Custom Fuel"),F13="Scope 3",ISBLANK(I13)=FALSE),R13,IF(AND(G13<>"Fuel Use",G13<>"Custom Fuel",F13="Scope 3"),R13,"")) ->  | BJ13: =IF(AND(OR(G13="Fuel Use",G13="Custom Fuel"),F13="Scope 3",ISBLANK(I13)=TRUE),S13,"") ->  | BK13: =IF(AND(OR(G13="Fuel Use",G13="Custom Fuel"),F13="Scope 3",ISBLANK(I13)=FALSE),S13,IF(AND(G13<>"Fuel Use",G13<>"Custom Fuel",F13="Scope 3"),S13,"")) ->  | BL13: =IF(OR($G13="Fuel Use",$G13="Custom Fuel"),$U13,IF(AND(OR($G13="Vehicle Distance (e.g. Road Transport)",$G13="Custom Vehicle"),ISBLANK($N13)=FALSE),$U13,"")) ->  | BM13: =IF(AND(AND(OR($G13="Vehicle Distance (e.g. Road Transport)",$G13="Custom Vehicle"),OR($D13="US",$D13="Other"),ISBLANK($N13)=TRUE)),$U13,IF(AND($G13<>"Fuel Use",ISBLANK($N13)=TRUE),$U13,"")) ->  | CP13: =IF($G13="Weight Distance (e.g. Freight Transport)","Ref_DD_WeightDistanceUnits",IF($G13="Passenger Distance (e.g. Public Transport)","Ref_DD_PasengerDistanceUnits",IF($G13="Custom Vehicle","Set_DD_Vehicle_Units","Ref_DD_DistanceUnit"))) -> Ref_DD_DistanceUnit | CR13: =IF($G13="Custom vehicle",IF(OR($L13="Passenger Mile",$L13="Passenger Kilometer"),"Passenger Distance (e.g. Public Transport)",IF(OR($L13="Tonne Mile",$L13="Tonne Kilometer"),"Weight Distance (e.g. Freight Transport)","Vehicle Distance (e.g. Road Transport)")),$G13) -> 0
AH14: =INDEX(Ref_Master_Unit_Table,MATCH($W14,REF_To_Unit,0),MATCH('Reference - Lookup and Unit'!$A$11,Ref_From_Units,0)) ->  | AJ14: =INDEX(Ref_Master_Unit_Table,MATCH($Z14,REF_To_Unit,0),MATCH('Reference - Lookup and Unit'!$A$11,Ref_From_Units,0)) ->  | AL14: =INDEX(Ref_Master_Unit_Table,MATCH($AC14,REF_To_Unit,0),MATCH('Reference - Lookup and Unit'!$A$11,Ref_From_Units,0)) ->  | AN14: =INDEX(Ref_Master_Unit_Table,MATCH($AF14,REF_To_Unit,0),MATCH('Reference - Lookup and Unit'!$A$11,Ref_From_Units,0)) ->  | AP14: 1 | AQ14: 28 | AR14: 265 | AS14: 1 | AT14: Ref_DD_vehicle_Passenger_ | AY14: FALSE | CP14: Ref_DD_DistanceUnit | CR14: 0
T15: =IF(AND(ISERROR($Q15*$AP15)=FALSE,ISERROR((R15/1000)*$AQ15)=FALSE,ISERROR((S15/1000)*$AR15)=FALSE),($Q15*$AP15)+((R15/1000)*$AQ15)+((S15/1000)*$AR15),IF(AND(ISERROR($Q15*$AP15)=FALSE,ISERROR((R15/1000)*$AQ15)=FALSE,ISERROR((S15/1000)*$AR15)=TRUE),($Q15*$AP15)+((R15/1000)*$AQ15),IF(AND(ISERROR($Q15*$AP15)=FALSE,ISERROR((R15/1000)*$AQ15)=TRUE,ISERROR((S15/1000)*$AR15)=FALSE),($Q15*$AP15)+((S15/1000)*$AR15),IF(AND(ISERROR($Q15*$AP15)=FALSE,ISERROR((R15/1000)*$AQ15)=TRUE,ISERROR((S15/1000)*$AR15)=TRUE),($Q15*$AP15),IF(AND(ISERROR($Q15*$AP15)=TRUE,ISERROR((R15/1000)*$AQ15)=FALSE,ISERROR((S15/1000)*$AR15)=FALSE),((R15/1000)*$AQ15)+((S15/1000)*$AR15),IF(AND(ISERROR($Q15*$AP15)=TRUE,ISERROR((R15/1000)*$AQ15)=FALSE,ISERROR((S15/1000)*$AR15)=TRUE),((R15/1000)*$AQ15),CQ15)))))) ->  | AH15: =INDEX(Ref_Master_Unit_Table,MATCH($W15,REF_To_Unit,0),MATCH('Reference - Lookup and Unit'!$A$11,Ref_From_Units,0)) ->  | AJ15: =INDEX(Ref_Master_Unit_Table,MATCH($Z15,REF_To_Unit,0),MATCH('Reference - Lookup and Unit'!$A$11,Ref_From_Units,0)) ->  | AL15: =INDEX(Ref_Master_Unit_Table,MATCH($AC15,REF_To_Unit,0),MATCH('Reference - Lookup and Unit'!$A$11,Ref_From_Units,0)) ->  | AN15: =INDEX(Ref_Master_Unit_Table,MATCH($AF15,REF_To_Unit,0),MATCH('Reference - Lookup and Unit'!$A$11,Ref_From_Units,0)) ->  | AP15: 1 | AQ15: 28 | AR15: 265 | AS15: 1 | AT15: Ref_DD_vehicle_Passenger_ | AY15: FALSE | BB15: =IF(AND(OR(G15="Fuel Use",G15="Custom Fuel"),F15="Scope 1",ISBLANK(I15)=TRUE),R15,"") ->  | BC15: =IF(AND(OR(G15="Fuel Use",G15="Custom Fuel"),F15="Scope 1",ISBLANK(I15)=FALSE),R15,IF(AND(G15<>"Fuel Use",G15<>"Custom Fuel",F15="Scope 1"),R15,"")) ->  | BD15: =IF(AND(OR(G15="Fuel Use",G15="Custom Fuel"),F15="Scope 1",ISBLANK(I15)=TRUE),S15,"") ->  | BE15: =IF(AND(OR(G15="Fuel Use",G15="Custom Fuel"),F15="Scope 1",ISBLANK(I15)=FALSE),S15,IF(AND(G15<>"Fuel Use",G15<>"Custom Fuel",F15="Scope 1"),S15,"")) ->  | BH15: =IF(AND(OR(G15="Fuel Use",G15="Custom Fuel"),F15="Scope 3",ISBLANK(I15)=TRUE),R15,"") ->  | BI15: =IF(AND(OR(G15="Fuel Use",G15="Custom Fuel"),F15="Scope 3",ISBLANK(I15)=FALSE),R15,IF(AND(G15<>"Fuel Use",G15<>"Custom Fuel",F15="Scope 3"),R15,"")) ->  | BJ15: =IF(AND(OR(G15="Fuel Use",G15="Custom Fuel"),F15="Scope 3",ISBLANK(I15)=TRUE),S15,"") ->  | BK15: =IF(AND(OR(G15="Fuel Use",G15="Custom Fuel"),F15="Scope 3",ISBLANK(I15)=FALSE),S15,IF(AND(G15<>"Fuel Use",G15<>"Custom Fuel",F15="Scope 3"),S15,"")) ->  | CP15: Ref_DD_DistanceUnit | CQ15: =IF(AND(ISERROR($Q15*$AP15)=TRUE,ISERROR((R15/1000)*$AQ15)=TRUE,ISERROR((S15/1000)*$AR15)=FALSE),((S15/1000)*$AR15),"") ->  | CR15: 0
T16: =IF(AND(ISERROR($Q16*$AP16)=FALSE,ISERROR((R16/1000)*$AQ16)=FALSE,ISERROR((S16/1000)*$AR16)=FALSE),($Q16*$AP16)+((R16/1000)*$AQ16)+((S16/1000)*$AR16),IF(AND(ISERROR($Q16*$AP16)=FALSE,ISERROR((R16/1000)*$AQ16)=FALSE,ISERROR((S16/1000)*$AR16)=TRUE),($Q16*$AP16)+((R16/1000)*$AQ16),IF(AND(ISERROR($Q16*$AP16)=FALSE,ISERROR((R16/1000)*$AQ16)=TRUE,ISERROR((S16/1000)*$AR16)=FALSE),($Q16*$AP16)+((S16/1000)*$AR16),IF(AND(ISERROR($Q16*$AP16)=FALSE,ISERROR((R16/1000)*$AQ16)=TRUE,ISERROR((S16/1000)*$AR16)=TRUE),($Q16*$AP16),IF(AND(ISERROR($Q16*$AP16)=TRUE,ISERROR((R16/1000)*$AQ16)=FALSE,ISERROR((S16/1000)*$AR16)=FALSE),((R16/1000)*$AQ16)+((S16/1000)*$AR16),IF(AND(ISERROR($Q16*$AP16)=TRUE,ISERROR((R16/1000)*$AQ16)=FALSE,ISERROR((S16/1000)*$AR16)=TRUE),((R16/1000)*$AQ16),CQ16)))))) ->  | AH16: =INDEX(Ref_Master_Unit_Table,MATCH($W16,REF_To_Unit,0),MATCH('Reference - Lookup and Unit'!$A$11,Ref_From_Units,0)) ->  | AJ16: =INDEX(Ref_Master_Unit_Table,MATCH($Z16,REF_To_Unit,0),MATCH('Reference - Lookup and Unit'!$A$11,Ref_From_Units,0)) ->  | AL16: =INDEX(Ref_Master_Unit_Table,MATCH($AC16,REF_To_Unit,0),MATCH('Reference - Lookup and Unit'!$A$11,Ref_From_Units,0)) ->  | AN16: =INDEX(Ref_Master_Unit_Table,MATCH($AF16,REF_To_Unit,0),MATCH('Reference - Lookup and Unit'!$A$11,Ref_From_Units,0)) ->  | AP16: 1 | AQ16: 28 | AR16: 265 | AS16: 1 | AT16: Ref_DD_vehicle_Passenger_ | AY16: FALSE | BB16: =IF(AND(OR(G16="Fuel Use",G16="Custom Fuel"),F16="Scope 1",ISBLANK(I16)=TRUE),R16,"") ->  | BC16: =IF(AND(OR(G16="Fuel Use",G16="Custom Fuel"),F16="Scope 1",ISBLANK(I16)=FALSE),R16,IF(AND(G16<>"Fuel Use",G16<>"Custom Fuel",F16="Scope 1"),R16,"")) ->  | BD16: =IF(AND(OR(G16="Fuel Use",G16="Custom Fuel"),F16="Scope 1",ISBLANK(I16)=TRUE),S16,"") ->  | BE16: =IF(AND(OR(G16="Fuel Use",G16="Custom Fuel"),F16="Scope 1",ISBLANK(I16)=FALSE),S16,IF(AND(G16<>"Fuel Use",G16<>"Custom Fuel",F16="Scope 1"),S16,"")) ->  | BH16: =IF(AND(OR(G16="Fuel Use",G16="Custom Fuel"),F16="Scope 3",ISBLANK(I16)=TRUE),R16,"") ->  | BI16: =IF(AND(OR(G16="Fuel Use",G16="Custom Fuel"),F16="Scope 3",ISBLANK(I16)=FALSE),R16,IF(AND(G16<>"Fuel Use",G16<>"Custom Fuel",F16="Scope 3"),R16,"")) ->  | BJ16: =IF(AND(OR(G16="Fuel Use",G16="Custom Fuel"),F16="Scope 3",ISBLANK(I16)=TRUE),S16,"") ->  | BK16: =IF(AND(OR(G16="Fuel Use",G16="Custom Fuel"),F16="Scope 3",ISBLANK(I16)=FALSE),S16,IF(AND(G16<>"Fuel Use",G16<>"Custom Fuel",F16="Scope 3"),S16,"")) ->  | CP16: Ref_DD_DistanceUnit | CQ16: =IF(AND(ISERROR($Q16*$AP16)=TRUE,ISERROR((R16/1000)*$AQ16)=TRUE,ISERROR((S16/1000)*$AR16)=FALSE),((S16/1000)*$AR16),"") ->  | CR16: 0
T17: =IF(AND(ISERROR($Q17*$AP17)=FALSE,ISERROR((R17/1000)*$AQ17)=FALSE,ISERROR((S17/1000)*$AR17)=FALSE),($Q17*$AP17)+((R17/1000)*$AQ17)+((S17/1000)*$AR17),IF(AND(ISERROR($Q17*$AP17)=FALSE,ISERROR((R17/1000)*$AQ17)=FALSE,ISERROR((S17/1000)*$AR17)=TRUE),($Q17*$AP17)+((R17/1000)*$AQ17),IF(AND(ISERROR($Q17*$AP17)=FALSE,ISERROR((R17/1000)*$AQ17)=TRUE,ISERROR((S17/1000)*$AR17)=FALSE),($Q17*$AP17)+((S17/1000)*$AR17),IF(AND(ISERROR($Q17*$AP17)=FALSE,ISERROR((R17/1000)*$AQ17)=TRUE,ISERROR((S17/1000)*$AR17)=TRUE),($Q17*$AP17),IF(AND(ISERROR($Q17*$AP17)=TRUE,ISERROR((R17/1000)*$AQ17)=FALSE,ISERROR((S17/1000)*$AR17)=FALSE),((R17/1000)*$AQ17)+((S17/1000)*$AR17),IF(AND(ISERROR($Q17*$AP17)=TRUE,ISERROR((R17/1000)*$AQ17)=FALSE,ISERROR((S17/1000)*$AR17)=TRUE),((R17/1000)*$AQ17),CQ17)))))) ->  | AH17: =INDEX(Ref_Master_Unit_Table,MATCH($W17,REF_To_Unit,0),MATCH('Reference - Lookup and Unit'!$A$11,Ref_From_Units,0)) ->  | AJ17: =INDEX(Ref_Master_Unit_Table,MATCH($Z17,REF_To_Unit,0),MATCH('Reference - Lookup and Unit'!$A$11,Ref_From_Units,0)) ->  | AL17: =INDEX(Ref_Master_Unit_Table,MATCH($AC17,REF_To_Unit,0),MATCH('Reference - Lookup and Unit'!$A$11,Ref_From_Units,0)) ->  | AN17: =INDEX(Ref_Master_Unit_Table,MATCH($AF17,REF_To_Unit,0),MATCH('Reference - Lookup and Unit'!$A$11,Ref_From_Units,0)) ->  | AP17: 1 | AQ17: 28 | AR17: 265 | AS17: 1 | AT17: Ref_DD_vehicle_Passenger_ | AY17: FALSE | BB17: =IF(AND(OR(G17="Fuel Use",G17="Custom Fuel"),F17="Scope 1",ISBLANK(I17)=TRUE),R17,"") ->  | BC17: =IF(AND(OR(G17="Fuel Use",G17="Custom Fuel"),F17="Scope 1",ISBLANK(I17)=FALSE),R17,IF(AND(G17<>"Fuel Use",G17<>"Custom Fuel",F17="Scope 1"),R17,"")) ->  | BD17: =IF(AND(OR(G17="Fuel Use",G17="Custom Fuel"),F17="Scope 1",ISBLANK(I17)=TRUE),S17,"") ->  | BE17: =IF(AND(OR(G17="Fuel Use",G17="Custom Fuel"),F17="Scope 1",ISBLANK(I17)=FALSE),S17,IF(AND(G17<>"Fuel Use",G17<>"Custom Fuel",F17="Scope 1"),S17,"")) ->  | BH17: =IF(AND(OR(G17="Fuel Use",G17="Custom Fuel"),F17="Scope 3",ISBLANK(I17)=TRUE),R17,"") ->  | BI17: =IF(AND(OR(G17="Fuel Use",G17="Custom Fuel"),F17="Scope 3",ISBLANK(I17)=FALSE),R17,IF(AND(G17<>"Fuel Use",G17<>"Custom Fuel",F17="Scope 3"),R17,"")) ->  | BJ17: =IF(AND(OR(G17="Fuel Use",G17="Custom Fuel"),F17="Scope 3",ISBLANK(I17)=TRUE),S17,"") ->  | BK17: =IF(AND(OR(G17="Fuel Use",G17="Custom Fuel"),F17="Scope 3",ISBLANK(I17)=FALSE),S17,IF(AND(G17<>"Fuel Use",G17<>"Custom Fuel",F17="Scope 3"),S17,"")) ->  | CP17: Ref_DD_DistanceUnit | CQ17: =IF(AND(ISERROR($Q17*$AP17)=TRUE,ISERROR((R17/1000)*$AQ17)=TRUE,ISERROR((S17/1000)*$AR17)=FALSE),((S17/1000)*$AR17),"") ->  | CR17: 0
T18: =IF(AND(ISERROR($Q18*$AP18)=FALSE,ISERROR((R18/1000)*$AQ18)=FALSE,ISERROR((S18/1000)*$AR18)=FALSE),($Q18*$AP18)+((R18/1000)*$AQ18)+((S18/1000)*$AR18),IF(AND(ISERROR($Q18*$AP18)=FALSE,ISERROR((R18/1000)*$AQ18)=FALSE,ISERROR((S18/1000)*$AR18)=TRUE),($Q18*$AP18)+((R18/1000)*$AQ18),IF(AND(ISERROR($Q18*$AP18)=FALSE,ISERROR((R18/1000)*$AQ18)=TRUE,ISERROR((S18/1000)*$AR18)=FALSE),($Q18*$AP18)+((S18/1000)*$AR18),IF(AND(ISERROR($Q18*$AP18)=FALSE,ISERROR((R18/1000)*$AQ18)=TRUE,ISERROR((S18/1000)*$AR18)=TRUE),($Q18*$AP18),IF(AND(ISERROR($Q18*$AP18)=TRUE,ISERROR((R18/1000)*$AQ18)=FALSE,ISERROR((S18/1000)*$AR18)=FALSE),((R18/1000)*$AQ18)+((S18/1000)*$AR18),IF(AND(ISERROR($Q18*$AP18)=TRUE,ISERROR((R18/1000)*$AQ18)=FALSE,ISERROR((S18/1000)*$AR18)=TRUE),((R18/1000)*$AQ18),CQ18)))))) ->  | AH18: =INDEX(Ref_Master_Unit_Table,MATCH($W18,REF_To_Unit,0),MATCH('Reference - Lookup and Unit'!$A$11,Ref_From_Units,0)) ->  | AJ18: =INDEX(Ref_Master_Unit_Table,MATCH($Z18,REF_To_Unit,0),MATCH('Reference - Lookup and Unit'!$A$11,Ref_From_Units,0)) ->  | AL18: =INDEX(Ref_Master_Unit_Table,MATCH($AC18,REF_To_Unit,0),MATCH('Reference - Lookup and Unit'!$A$11,Ref_From_Units,0)) ->  | AN18: =INDEX(Ref_Master_Unit_Table,MATCH($AF18,REF_To_Unit,0),MATCH('Reference - Lookup and Unit'!$A$11,Ref_From_Units,0)) ->  | AP18: 1 | AQ18: 28 | AR18: 265 | AS18: 1 | AT18: Ref_DD_vehicle_Passenger_ | AY18: FALSE | BB18: =IF(AND(OR(G18="Fuel Use",G18="Custom Fuel"),F18="Scope 1",ISBLANK(I18)=TRUE),R18,"") ->  | BC18: =IF(AND(OR(G18="Fuel Use",G18="Custom Fuel"),F18="Scope 1",ISBLANK(I18)=FALSE),R18,IF(AND(G18<>"Fuel Use",G18<>"Custom Fuel",F18="Scope 1"),R18,"")) ->  | BD18: =IF(AND(OR(G18="Fuel Use",G18="Custom Fuel"),F18="Scope 1",ISBLANK(I18)=TRUE),S18,"") ->  | BE18: =IF(AND(OR(G18="Fuel Use",G18="Custom Fuel"),F18="Scope 1",ISBLANK(I18)=FALSE),S18,IF(AND(G18<>"Fuel Use",G18<>"Custom Fuel",F18="Scope 1"),S18,"")) ->  | BH18: =IF(AND(OR(G18="Fuel Use",G18="Custom Fuel"),F18="Scope 3",ISBLANK(I18)=TRUE),R18,"") ->  | BI18: =IF(AND(OR(G18="Fuel Use",G18="Custom Fuel"),F18="Scope 3",ISBLANK(I18)=FALSE),R18,IF(AND(G18<>"Fuel Use",G18<>"Custom Fuel",F18="Scope 3"),R18,"")) ->  | BJ18: =IF(AND(OR(G18="Fuel Use",G18="Custom Fuel"),F18="Scope 3",ISBLANK(I18)=TRUE),S18,"") ->  | BK18: =IF(AND(OR(G18="Fuel Use",G18="Custom Fuel"),F18="Scope 3",ISBLANK(I18)=FALSE),S18,IF(AND(G18<>"Fuel Use",G18<>"Custom Fuel",F18="Scope 3"),S18,"")) ->  | CP18: Ref_DD_DistanceUnit | CQ18: =IF(AND(ISERROR($Q18*$AP18)=TRUE,ISERROR((R18/1000)*$AQ18)=TRUE,ISERROR((S18/1000)*$AR18)=FALSE),((S18/1000)*$AR18),"") ->  | CR18: 0
AH19: =INDEX(Ref_Master_Unit_Table,MATCH($W19,REF_To_Unit,0),MATCH('Reference - Lookup and Unit'!$A$11,Ref_From_Units,0)) ->  | AJ19: =INDEX(Ref_Master_Unit_Table,MATCH($Z19,REF_To_Unit,0),MATCH('Reference - Lookup and Unit'!$A$11,Ref_From_Units,0)) ->  | AL19: =INDEX(Ref_Master_Unit_Table,MATCH($AC19,REF_To_Unit,0),MATCH('Reference - Lookup and Unit'!$A$11,Ref_From_Units,0)) ->  | AN19: =INDEX(Ref_Master_Unit_Table,MATCH($AF19,REF_To_Unit,0),MATCH('Reference - Lookup and Unit'!$A$11,Ref_From_Units,0)) ->  | AP19: 1 | AQ19: 28 | AR19: 265 | AS19: 1 | AT19: Ref_DD_vehicle_Passenger_ | AY19: FALSE | CP19: Ref_DD_DistanceUnit | CR19: 0
AH20: =INDEX(Ref_Master_Unit_Table,MATCH($W20,REF_To_Unit,0),MATCH('Reference - Lookup and Unit'!$A$11,Ref_From_Units,0)) ->  | AJ20: =INDEX(Ref_Master_Unit_Table,MATCH($Z20,REF_To_Unit,0),MATCH('Reference - Lookup and Unit'!$A$11,Ref_From_Units,0)) ->  | AL20: =INDEX(Ref_Master_Unit_Table,MATCH($AC20,REF_To_Unit,0),MATCH('Reference - Lookup and Unit'!$A$11,Ref_From_Units,0)) ->  | AN20: =INDEX(Ref_Master_Unit_Table,MATCH($AF20,REF_To_Unit,0),MATCH('Reference - Lookup and Unit'!$A$11,Ref_From_Units,0)) ->  | AP20: 1 | AQ20: 28 | AR20: 265 | AS20: 1 | AT20: Ref_DD_vehicle_Passenger_ | AY20: FALSE | CP20: Ref_DD_DistanceUnit | CR20: 0
AH21: =INDEX(Ref_Master_Unit_Table,MATCH($W21,REF_To_Unit,0),MATCH('Reference - Lookup and Unit'!$A$11,Ref_From_Units,0)) ->  | AJ21: =INDEX(Ref_Master_Unit_Table,MATCH($Z21,REF_To_Unit,0),MATCH('Reference - Lookup and Unit'!$A$11,Ref_From_Units,0)) ->  | AL21: =INDEX(Ref_Master_Unit_Table,MATCH($AC21,REF_To_Unit,0),MATCH('Reference - Lookup and Unit'!$A$11,Ref_From_Units,0)) ->  | AN21: =INDEX(Ref_Master_Unit_Table,MATCH($AF21,REF_To_Unit,0),MATCH('Reference - Lookup and Unit'!$A$11,Ref_From_Units,0)) ->  | AP21: 1 | AQ21: 28 | AR21: 265 | AS21: 1 | AT21: Ref_DD_vehicle_Passenger_ | AY21: FALSE | CP21: Ref_DD_DistanceUnit | CR21: 0
AH22: =INDEX(Ref_Master_Unit_Table,MATCH($W22,REF_To_Unit,0),MATCH('Reference - Lookup and Unit'!$A$11,Ref_From_Units,0)) ->  | AJ22: =INDEX(Ref_Master_Unit_Table,MATCH($Z22,REF_To_Unit,0),MATCH('Reference - Lookup and Unit'!$A$11,Ref_From_Units,0)) ->  | AL22: =INDEX(Ref_Master_Unit_Table,MATCH($AC22,REF_To_Unit,0),MATCH('Reference - Lookup and Unit'!$A$11,Ref_From_Units,0)) ->  | AN22: =INDEX(Ref_Master_Unit_Table,MATCH($AF22,REF_To_Unit,0),MATCH('Reference - Lookup and Unit'!$A$11,Ref_From_Units,0)) ->  | AP22: 1 | AQ22: 28 | AR22: 265 | AS22: 1 | AT22: Ref_DD_vehicle_Passenger_ | AY22: FALSE | CP22: Ref_DD_DistanceUnit | CR22: 0
AH23: =INDEX(Ref_Master_Unit_Table,MATCH($W23,REF_To_Unit,0),MATCH('Reference - Lookup and Unit'!$A$11,Ref_From_Units,0)) ->  | AJ23: =INDEX(Ref_Master_Unit_Table,MATCH($Z23,REF_To_Unit,0),MATCH('Reference - Lookup and Unit'!$A$11,Ref_From_Units,0)) ->  | AL23: =INDEX(Ref_Master_Unit_Table,MATCH($AC23,REF_To_Unit,0),MATCH('Reference - Lookup and Unit'!$A$11,Ref_From_Units,0)) ->  | AN23: =INDEX(Ref_Master_Unit_Table,MATCH($AF23,REF_To_Unit,0),MATCH('Reference - Lookup and Unit'!$A$11,Ref_From_Units,0)) ->  | AP23: 1 | AQ23: 28 | AR23: 265 | AS23: 1 | AT23: Ref_DD_vehicle_Passenger_ | AY23: FALSE | CP23: Ref_DD_DistanceUnit | CR23: 0
AH24: =INDEX(Ref_Master_Unit_Table,MATCH($W24,REF_To_Unit,0),MATCH('Reference - Lookup and Unit'!$A$11,Ref_From_Units,0)) ->  | AJ24: =INDEX(Ref_Master_Unit_Table,MATCH($Z24,REF_To_Unit,0),MATCH('Reference - Lookup and Unit'!$A$11,Ref_From_Units,0)) ->  | AL24: =INDEX(Ref_Master_Unit_Table,MATCH($AC24,REF_To_Unit,0),MATCH('Reference - Lookup and Unit'!$A$11,Ref_From_Units,0)) ->  | AN24: =INDEX(Ref_Master_Unit_Table,MATCH($AF24,REF_To_Unit,0),MATCH('Reference - Lookup and Unit'!$A$11,Ref_From_Units,0)) ->  | AP24: 1 | AQ24: 28 | AR24: 265 | AS24: 1 | AT24: Ref_DD_vehicle_Passenger_ | AY24: FALSE | CP24: Ref_DD_DistanceUnit | CR24: 0
AH25: =INDEX(Ref_Master_Unit_Table,MATCH($W25,REF_To_Unit,0),MATCH('Reference - Lookup and Unit'!$A$11,Ref_From_Units,0)) ->  | AJ25: =INDEX(Ref_Master_Unit_Table,MATCH($Z25,REF_To_Unit,0),MATCH('Reference - Lookup and Unit'!$A$11,Ref_From_Units,0)) ->  | AL25: =INDEX(Ref_Master_Unit_Table,MATCH($AC25,REF_To_Unit,0),MATCH('Reference - Lookup and Unit'!$A$11,Ref_From_Units,0)) ->  | AN25: =INDEX(Ref_Master_Unit_Table,MATCH($AF25,REF_To_Unit,0),MATCH('Reference - Lookup and Unit'!$A$11,Ref_From_Units,0)) ->  | AP25: 1 | AQ25: 28 | AR25: 265 | AS25: 1 | AT25: Ref_DD_vehicle_Passenger_ | AY25: FALSE | CP25: Ref_DD_DistanceUnit | CR25: 0
AH26: =INDEX(Ref_Master_Unit_Table,MATCH($W26,REF_To_Unit,0),MATCH('Reference - Lookup and Unit'!$A$11,Ref_From_Units,0)) ->  | AJ26: =INDEX(Ref_Master_Unit_Table,MATCH($Z26,REF_To_Unit,0),MATCH('Reference - Lookup and Unit'!$A$11,Ref_From_Units,0)) ->  | AL26: =INDEX(Ref_Master_Unit_Table,MATCH($AC26,REF_To_Unit,0),MATCH('Reference - Lookup and Unit'!$A$11,Ref_From_Units,0)) ->  | AN26: =INDEX(Ref_Master_Unit_Table,MATCH($AF26,REF_To_Unit,0),MATCH('Reference - Lookup and Unit'!$A$11,Ref_From_Units,0)) ->  | AP26: 1 | AQ26: 28 | AR26: 265 | AS26: 1 | AT26: Ref_DD_vehicle_Passenger_ | AY26: FALSE | CP26: Ref_DD_DistanceUnit | CR26: 0
AH27: =INDEX(Ref_Master_Unit_Table,MATCH($W27,REF_To_Unit,0),MATCH('Reference - Lookup and Unit'!$A$11,Ref_From_Units,0)) ->  | AJ27: =INDEX(Ref_Master_Unit_Table,MATCH($Z27,REF_To_Unit,0),MATCH('Reference - Lookup and Unit'!$A$11,Ref_From_Units,0)) ->  | AL27: =INDEX(Ref_Master_Unit_Table,MATCH($AC27,REF_To_Unit,0),MATCH('Reference - Lookup and Unit'!$A$11,Ref_From_Units,0)) ->  | AN27: =INDEX(Ref_Master_Unit_Table,MATCH($AF27,REF_To_Unit,0),MATCH('Reference - Lookup and Unit'!$A$11,Ref_From_Units,0)) ->  | AP27: 1 | AQ27: 28 | AR27: 265 | AS27: 1 | AT27: Ref_DD_vehicle_Passenger_ | AY27: FALSE | CP27: Ref_DD_DistanceUnit | CR27: 0
AH28: =INDEX(Ref_Master_Unit_Table,MATCH($W28,REF_To_Unit,0),MATCH('Reference - Lookup and Unit'!$A$11,Ref_From_Units,0)) ->  | AJ28: =INDEX(Ref_Master_Unit_Table,MATCH($Z28,REF_To_Unit,0),MATCH('Reference - Lookup and Unit'!$A$11,Ref_From_Units,0)) ->  | AL28: =INDEX(Ref_Master_Unit_Table,MATCH($AC28,REF_To_Unit,0),MATCH('Reference - Lookup and Unit'!$A$11,Ref_From_Units,0)) ->  | AN28: =INDEX(Ref_Master_Unit_Table,MATCH($AF28,REF_To_Unit,0),MATCH('Reference - Lookup and Unit'!$A$11,Ref_From_Units,0)) ->  | AP28: 1 | AQ28: 28 | AR28: 265 | AS28: 1 | AT28: Ref_DD_vehicle_Passenger_ | AY28: FALSE | CP28: Ref_DD_DistanceUnit | CR28: 0
AH29: =INDEX(Ref_Master_Unit_Table,MATCH($W29,REF_To_Unit,0),MATCH('Reference - Lookup and Unit'!$A$11,Ref_From_Units,0)) ->  | AJ29: =INDEX(Ref_Master_Unit_Table,MATCH($Z29,REF_To_Unit,0),MATCH('Reference - Lookup and Unit'!$A$11,Ref_From_Units,0)) ->  | AL29: =INDEX(Ref_Master_Unit_Table,MATCH($AC29,REF_To_Unit,0),MATCH('Reference - Lookup and Unit'!$A$11,Ref_From_Units,0)) ->  | AN29: =INDEX(Ref_Master_Unit_Table,MATCH($AF29,REF_To_Unit,0),MATCH('Reference - Lookup and Unit'!$A$11,Ref_From_Units,0)) ->  | AP29: 1 | AQ29: 28 | AR29: 265 | AS29: 1 | AT29: Ref_DD_vehicle_Passenger_ | AY29: FALSE | CP29: Ref_DD_DistanceUnit | CR29: 0
AH30: =INDEX(Ref_Master_Unit_Table,MATCH($W30,REF_To_Unit,0),MATCH('Reference - Lookup and Unit'!$A$11,Ref_From_Units,0)) ->  | AJ30: =INDEX(Ref_Master_Unit_Table,MATCH($Z30,REF_To_Unit,0),MATCH('Reference - Lookup and Unit'!$A$11,Ref_From_Units,0)) ->  | AL30: =INDEX(Ref_Master_Unit_Table,MATCH($AC30,REF_To_Unit,0),MATCH('Reference - Lookup and Unit'!$A$11,Ref_From_Units,0)) ->  | AN30: =INDEX(Ref_Master_Unit_Table,MATCH($AF30,REF_To_Unit,0),MATCH('Reference - Lookup and Unit'!$A$11,Ref_From_Units,0)) ->  | AP30: 1 | AQ30: 28 | AR30: 265 | AS30: 1 | AT30: Ref_DD_vehicle_Passenger_ | AY30: FALSE | CP30: Ref_DD_DistanceUnit | CR30: 0
AH31: =INDEX(Ref_Master_Unit_Table,MATCH($W31,REF_To_Unit,0),MATCH('Reference - Lookup and Unit'!$A$11,Ref_From_Units,0)) ->  | AJ31: =INDEX(Ref_Master_Unit_Table,MATCH($Z31,REF_To_Unit,0),MATCH('Reference - Lookup and Unit'!$A$11,Ref_From_Units,0)) ->  | AL31: =INDEX(Ref_Master_Unit_Table,MATCH($AC31,REF_To_Unit,0),MATCH('Reference - Lookup and Unit'!$A$11,Ref_From_Units,0)) ->  | AN31: =INDEX(Ref_Master_Unit_Table,MATCH($AF31,REF_To_Unit,0),MATCH('Reference - Lookup and Unit'!$A$11,Ref_From_Units,0)) ->  | AP31: 1 | AQ31: 28 | AR31: 265 | AS31: 1 | AT31: Ref_DD_vehicle_Passenger_ | AY31: FALSE | CP31: Ref_DD_DistanceUnit | CR31: 0
AH32: =INDEX(Ref_Master_Unit_Table,MATCH($W32,REF_To_Unit,0),MATCH('Reference - Lookup and Unit'!$A$11,Ref_From_Units,0)) ->  | AJ32: =INDEX(Ref_Master_Unit_Table,MATCH($Z32,REF_To_Unit,0),MATCH('Reference - Lookup and Unit'!$A$11,Ref_From_Units,0)) ->  | AL32: =INDEX(Ref_Master_Unit_Table,MATCH($AC32,REF_To_Unit,0),MATCH('Reference - Lookup and Unit'!$A$11,Ref_From_Units,0)) ->  | AN32: =INDEX(Ref_Master_Unit_Table,MATCH($AF32,REF_To_Unit,0),MATCH('Reference - Lookup and Unit'!$A$11,Ref_From_Units,0)) ->  | AP32: 1 | AQ32: 28 | AR32: 265 | AS32: 1 | AT32: Ref_DD_vehicle_Passenger_ | AY32: FALSE | CP32: Ref_DD_DistanceUnit | CR32: 0
AH33: =INDEX(Ref_Master_Unit_Table,MATCH($W33,REF_To_Unit,0),MATCH('Reference - Lookup and Unit'!$A$11,Ref_From_Units,0)) ->  | AJ33: =INDEX(Ref_Master_Unit_Table,MATCH($Z33,REF_To_Unit,0),MATCH('Reference - Lookup and Unit'!$A$11,Ref_From_Units,0)) ->  | AL33: =INDEX(Ref_Master_Unit_Table,MATCH($AC33,REF_To_Unit,0),MATCH('Reference - Lookup and Unit'!$A$11,Ref_From_Units,0)) ->  | AN33: =INDEX(Ref_Master_Unit_Table,MATCH($AF33,REF_To_Unit,0),MATCH('Reference - Lookup and Unit'!$A$11,Ref_From_Units,0)) ->  | AP33: 1 | AQ33: 28 | AR33: 265 | AS33: 1 | AT33: Ref_DD_vehicle_Passenger_ | AY33: FALSE | CP33: Ref_DD_DistanceUnit | CR33: 0
AH34: =INDEX(Ref_Master_Unit_Table,MATCH($W34,REF_To_Unit,0),MATCH('Reference - Lookup and Unit'!$A$11,Ref_From_Units,0)) ->  | AJ34: =INDEX(Ref_Master_Unit_Table,MATCH($Z34,REF_To_Unit,0),MATCH('Reference - Lookup and Unit'!$A$11,Ref_From_Units,0)) ->  | AL34: =INDEX(Ref_Master_Unit_Table,MATCH($AC34,REF_To_Unit,0),MATCH('Reference - Lookup and Unit'!$A$11,Ref_From_Units,0)) ->  | AN34: =INDEX(Ref_Master_Unit_Table,MATCH($AF34,REF_To_Unit,0),MATCH('Reference - Lookup and Unit'!$A$11,Ref_From_Units,0)) ->  | AP34: =VLOOKUP("CO2",INDIRECT(IF(Setting_IPCC_GWP_VERSION="1995 IPCC Second Assessment Report (SAR)","Ref_EF_IPCC_GWP_95",IF(Setting_IPCC_GWP_VERSION="2001 IPCC Third Assessment Report (TAR)","Ref_EF_IPCC_GWP_2001",IF(Setting_IPCC_GWP_VERSION="2007 IPCC Fourth Assessment Report","Ref_EF_IPCC_GWP_2007","Ref_EF_IPCC_GWP_2014")))),2,0) -> 1 | AQ34: 28 | AR34: 265 | AS34: =VLOOKUP("Biofuel CO2",INDIRECT(IF(Setting_IPCC_GWP_VERSION="1995 IPCC Second Assessment Report (SAR)","Ref_EF_IPCC_GWP_95",IF(Setting_IPCC_GWP_VERSION="2001 IPCC Third Assessment Report (TAR)","Ref_EF_IPCC_GWP_2001",IF(Setting_IPCC_GWP_VERSION="2007 IPCC Fourth Assessment Report","Ref_EF_IPCC_GWP_2007","Ref_EF_IPCC_GWP_2014")))),2,0) -> 1 | AT34: Ref_DD_vehicle_Passenger_ | AY34: FALSE | CP34: Ref_DD_DistanceUnit | CR34: 0
AH35: =INDEX(Ref_Master_Unit_Table,MATCH($W35,REF_To_Unit,0),MATCH('Reference - Lookup and Unit'!$A$11,Ref_From_Units,0)) ->  | AJ35: =INDEX(Ref_Master_Unit_Table,MATCH($Z35,REF_To_Unit,0),MATCH('Reference - Lookup and Unit'!$A$11,Ref_From_Units,0)) ->  | AL35: =INDEX(Ref_Master_Unit_Table,MATCH($AC35,REF_To_Unit,0),MATCH('Reference - Lookup and Unit'!$A$11,Ref_From_Units,0)) ->  | AN35: =INDEX(Ref_Master_Unit_Table,MATCH($AF35,REF_To_Unit,0),MATCH('Reference - Lookup and Unit'!$A$11,Ref_From_Units,0)) ->  | AP35: 1 | AQ35: 28 | AR35: 265 | AS35: 1 | AT35: Ref_DD_vehicle_Passenger_ | AY35: FALSE | CP35: Ref_DD_DistanceUnit | CR35: 0
AH36: =INDEX(Ref_Master_Unit_Table,MATCH($W36,REF_To_Unit,0),MATCH('Reference - Lookup and Unit'!$A$11,Ref_From_Units,0)) ->  | AJ36: =INDEX(Ref_Master_Unit_Table,MATCH($Z36,REF_To_Unit,0),MATCH('Reference - Lookup and Unit'!$A$11,Ref_From_Units,0)) ->  | AL36: =INDEX(Ref_Master_Unit_Table,MATCH($AC36,REF_To_Unit,0),MATCH('Reference - Lookup and Unit'!$A$11,Ref_From_Units,0)) ->  | AN36: =INDEX(Ref_Master_Unit_Table,MATCH($AF36,REF_To_Unit,0),MATCH('Reference - Lookup and Unit'!$A$11,Ref_From_Units,0)) ->  | AP36: 1 | AQ36: 28 | AR36: 265 | AS36: 1 | AT36: Ref_DD_vehicle_Passenger_ | AY36: FALSE | CP36: Ref_DD_DistanceUnit | CR36: 0
AH37: =INDEX(Ref_Master_Unit_Table,MATCH($W37,REF_To_Unit,0),MATCH('Reference - Lookup and Unit'!$A$11,Ref_From_Units,0)) ->  | AJ37: =INDEX(Ref_Master_Unit_Table,MATCH($Z37,REF_To_Unit,0),MATCH('Reference - Lookup and Unit'!$A$11,Ref_From_Units,0)) ->  | AL37: =INDEX(Ref_Master_Unit_Table,MATCH($AC37,REF_To_Unit,0),MATCH('Reference - Lookup and Unit'!$A$11,Ref_From_Units,0)) ->  | AN37: =INDEX(Ref_Master_Unit_Table,MATCH($AF37,REF_To_Unit,0),MATCH('Reference - Lookup and Unit'!$A$11,Ref_From_Units,0)) ->  | AP37: 1 | AQ37: 28 | AR37: 265 | AS37: 1 | AT37: Ref_DD_vehicle_Passenger_ | AY37: FALSE | CP37: Ref_DD_DistanceUnit | CR37: 0
AH38: =INDEX(Ref_Master_Unit_Table,MATCH($W38,REF_To_Unit,0),MATCH('Reference - Lookup and Unit'!$A$11,Ref_From_Units,0)) ->  | AJ38: =INDEX(Ref_Master_Unit_Table,MATCH($Z38,REF_To_Unit,0),MATCH('Reference - Lookup and Unit'!$A$11,Ref_From_Units,0)) ->  | AL38: =INDEX(Ref_Master_Unit_Table,MATCH($AC38,REF_To_Unit,0),MATCH('Reference - Lookup and Unit'!$A$11,Ref_From_Units,0)) ->  | AN38: =INDEX(Ref_Master_Unit_Table,MATCH($AF38,REF_To_Unit,0),MATCH('Reference - Lookup and Unit'!$A$11,Ref_From_Units,0)) ->  | AP38: 1 | AQ38: 28 | AR38: 265 | AS38: 1 | AT38: Ref_DD_vehicle_Passenger_ | AY38: FALSE | CP38: Ref_DD_DistanceUnit | CR38: 0
AH39: =INDEX(Ref_Master_Unit_Table,MATCH($W39,REF_To_Unit,0),MATCH('Reference - Lookup and Unit'!$A$11,Ref_From_Units,0)) ->  | AJ39: =INDEX(Ref_Master_Unit_Table,MATCH($Z39,REF_To_Unit,0),MATCH('Reference - Lookup and Unit'!$A$11,Ref_From_Units,0)) ->  | AL39: =INDEX(Ref_Master_Unit_Table,MATCH($AC39,REF_To_Unit,0),MATCH('Reference - Lookup and Unit'!$A$11,Ref_From_Units,0)) ->  | AN39: =INDEX(Ref_Master_Unit_Table,MATCH($AF39,REF_To_Unit,0),MATCH('Reference - Lookup and Unit'!$A$11,Ref_From_Units,0)) ->  | AP39: 1 | AQ39: 28 | AR39: 265 | AS39: 1 | AT39: Ref_DD_vehicle_Passenger_ | AY39: FALSE | CP39: Ref_DD_DistanceUnit | CR39: 0
AH40: =INDEX(Ref_Master_Unit_Table,MATCH($W40,REF_To_Unit,0),MATCH('Reference - Lookup and Unit'!$A$11,Ref_From_Units,0)) ->  | AJ40: =INDEX(Ref_Master_Unit_Table,MATCH($Z40,REF_To_Unit,0),MATCH('Reference - Lookup and Unit'!$A$11,Ref_From_Units,0)) ->  | AL40: =INDEX(Ref_Master_Unit_Table,MATCH($AC40,REF_To_Unit,0),MATCH('Reference - Lookup and Unit'!$A$11,Ref_From_Units,0)) ->  | AN40: =INDEX(Ref_Master_Unit_Table,MATCH($AF40,REF_To_Unit,0),MATCH('Reference - Lookup and Unit'!$A$11,Ref_From_Units,0)) ->  | AP40: 1 | AQ40: 28 | AR40: 265 | AS40: 1 | AT40: Ref_DD_vehicle_Passenger_ | AY40: FALSE | CP40: Ref_DD_DistanceUnit | CR40: 0
AH41: =INDEX(Ref_Master_Unit_Table,MATCH($W41,REF_To_Unit,0),MATCH('Reference - Lookup and Unit'!$A$11,Ref_From_Units,0)) ->  | AJ41: =INDEX(Ref_Master_Unit_Table,MATCH($Z41,REF_To_Unit,0),MATCH('Reference - Lookup and Unit'!$A$11,Ref_From_Units,0)) ->  | AL41: =INDEX(Ref_Master_Unit_Table,MATCH($AC41,REF_To_Unit,0),MATCH('Reference - Lookup and Unit'!$A$11,Ref_From_Units,0)) ->  | AN41: =INDEX(Ref_Master_Unit_Table,MATCH($AF41,REF_To_Unit,0),MATCH('Reference - Lookup and Unit'!$A$11,Ref_From_Units,0)) ->  | AP41: 1 | AQ41: 28 | AR41: 265 | AS41: 1 | AT41: Ref_DD_vehicle_Passenger_ | AY41: FALSE | CP41: Ref_DD_DistanceUnit | CR41: 0
AH42: =INDEX(Ref_Master_Unit_Table,MATCH($W42,REF_To_Unit,0),MATCH('Reference - Lookup and Unit'!$A$11,Ref_From_Units,0)) ->  | AJ42: =INDEX(Ref_Master_Unit_Table,MATCH($Z42,REF_To_Unit,0),MATCH('Reference - Lookup and Unit'!$A$11,Ref_From_Units,0)) ->  | AL42: =INDEX(Ref_Master_Unit_Table,MATCH($AC42,REF_To_Unit,0),MATCH('Reference - Lookup and Unit'!$A$11,Ref_From_Units,0)) ->  | AN42: =INDEX(Ref_Master_Unit_Table,MATCH($AF42,REF_To_Unit,0),MATCH('Reference - Lookup and Unit'!$A$11,Ref_From_Units,0)) ->  | AP42: 1 | AQ42: 28 | AR42: 265 | AS42: 1 | AT42: Ref_DD_vehicle_Passenger_ | AY42: FALSE | CP42: Ref_DD_DistanceUnit | CR42: 0
AH43: =INDEX(Ref_Master_Unit_Table,MATCH($W43,REF_To_Unit,0),MATCH('Reference - Lookup and Unit'!$A$11,Ref_From_Units,0)) ->  | AJ43: =INDEX(Ref_Master_Unit_Table,MATCH($Z43,REF_To_Unit,0),MATCH('Reference - Lookup and Unit'!$A$11,Ref_From_Units,0)) ->  | AL43: =INDEX(Ref_Master_Unit_Table,MATCH($AC43,REF_To_Unit,0),MATCH('Reference - Lookup and Unit'!$A$11,Ref_From_Units,0)) ->  | AN43: =INDEX(Ref_Master_Unit_Table,MATCH($AF43,REF_To_Unit,0),MATCH('Reference - Lookup and Unit'!$A$11,Ref_From_Units,0)) ->  | AP43: 1 | AQ43: =VLOOKUP("CH4",INDIRECT(IF(Setting_IPCC_GWP_VERSION="1995 IPCC Second Assessment Report (SAR)","Ref_EF_IPCC_GWP_95",IF(Setting_IPCC_GWP_VERSION="2001 IPCC Third Assessment Report (TAR)","Ref_EF_IPCC_GWP_2001",IF(Setting_IPCC_GWP_VERSION="2007 IPCC Fourth Assessment Report","Ref_EF_IPCC_GWP_2007","Ref_EF_IPCC_GWP_2014")))),2,0) -> 28 | AR43: =VLOOKUP("N2O",INDIRECT(IF(Setting_IPCC_GWP_VERSION="1995 IPCC Second Assessment Report (SAR)","Ref_EF_IPCC_GWP_95",IF(Setting_IPCC_GWP_VERSION="2001 IPCC Third Assessment Report (TAR)","Ref_EF_IPCC_GWP_2001", IF(Setting_IPCC_GWP_VERSION="2007 IPCC Fourth Assessment Report","Ref_EF_IPCC_GWP_2007","Ref_EF_IPCC_GWP_2014")))),2,0) -> 265 | AS43: 1 | AT43: Ref_DD_vehicle_Passenger_ | AY43: FALSE | CP43: Ref_DD_DistanceUnit | CR43: 0
V44: =IF(OR($G44="Fuel Use",$G44="Fuel Use and Vehicle Distance"),VLOOKUP($M44,INDIRECT("Ref_EF_ByFuel"&"_"&$D44),3,0),IF(AND($G44="Vehicle Distance (e.g. Road Transport)",$D44="UK"),VLOOKUP($H44,Ref_EF_Vehicle_Distance_UK,3,0),IF(AND($G44="Vehicle Distance (e.g. Road Transport)",OR($D44="US",$D44="Other")),VLOOKUP($H44,INDIRECT("Ref_EF_Vehicle_Distance"&"_"&$D44),15,0),IF(AND($G44="Vehicle Distance (e.g. Road Transport)",ISBLANK($N44),ISBLANK($O44)),VLOOKUP($H44,INDIRECT("Ref_EF_Vehicle_Distance"&"_"&$D44),15,0),IF($G44="Weight Distance (e.g. Freight Transport)",VLOOKUP($H44,INDIRECT("Ref_EF_Weight_Distance"&"_"&$D44),3,0),IF($G44="Custom Vehicle",VLOOKUP($H44,Tbl_vehical_Settings,2,0),IF($G44="Custom Fuel",VLOOKUP($M44,Tbl_Fuel_Settings,2,0),$AU44))))))) ->  | W44: =IF(OR($G44="Fuel Use",$G44="Fuel Use and Vehicle Distance"),VLOOKUP($M44,INDIRECT("Ref_EF_ByFuel"&"_"&$D44),5,0),IF(AND($G44="Vehicle Distance (e.g. Road Transport)",$D44="UK"),VLOOKUP($H44,Ref_EF_Vehicle_Distance_UK,5,0),IF(AND($G44="Vehicle Distance (e.g. Road Transport)",OR($D44="US",$D44="Other")),VLOOKUP($H44,INDIRECT("Ref_EF_Vehicle_Distance"&"_"&$D44),17,0),IF(AND($G44="Vehicle Distance (e.g. Road Transport)",ISBLANK($N44),ISBLANK($O44)),VLOOKUP($H44,INDIRECT("Ref_EF_Vehicle_Distance"&"_"&$D44),17,0),IF($G44="Weight Distance (e.g. Freight Transport)",VLOOKUP($H44,INDIRECT("Ref_EF_Weight_Distance"&"_"&$D44),5,0),IF($G44="Custom Vehicle",VLOOKUP($H44,Tbl_vehical_Settings,6,0),IF($G44="Custom Fuel",VLOOKUP($M44,Tbl_Fuel_Settings,6,0),$AV44))))))) ->  | X44: =IF(OR($G44="Fuel Use",$G44="Fuel Use and Vehicle Distance"),VLOOKUP($M44,INDIRECT("Ref_EF_ByFuel"&"_"&$D44),6,0),IF(AND($G44="Vehicle Distance (e.g. Road Transport)",$D44="UK"),VLOOKUP($H44,Ref_EF_Vehicle_Distance_UK,6,0),IF(AND($G44="Vehicle Distance (e.g. Road Transport)",OR($D44="US",$D44="Other")),VLOOKUP($H44,INDIRECT("Ref_EF_Vehicle_Distance"&"_"&$D44),18,0),IF(AND($G44="Vehicle Distance (e.g. Road Transport)",ISBLANK($N44),ISBLANK($O44)),VLOOKUP($H44,INDIRECT("Ref_EF_Vehicle_Distance"&"_"&$D44),18,0),IF($G44="Weight Distance (e.g. Freight Transport)",VLOOKUP($H44,INDIRECT("Ref_EF_Weight_Distance"&"_"&$D44),6,0),IF($G44="Custom Vehicle",VLOOKUP($H44,Tbl_vehical_Settings,7,0),IF($G44="Custom Fuel",VLOOKUP($M44,Tbl_Fuel_Settings,7,0),$AW44))))))) ->  | Y44: =IF(OR($G44="Fuel Use",$G44="Fuel Use and Vehicle Distance"),VLOOKUP($M44,INDIRECT("Ref_EF_ByFuel"&"_"&$D44),4,0),IF(AND($G44="Vehicle Distance (e.g. Road Transport)",$D44="UK"),VLOOKUP($H44,Ref_EF_Vehicle_Distance_UK,4,0),IF(AND($G44="Vehicle Distance (e.g. Road Transport)",OR($D44="US",$D44="Other")),VLOOKUP($H44,INDIRECT("Ref_EF_Vehicle_Distance"&"_"&$D44),16,0),IF(AND($G44="Vehicle Distance (e.g. Road Transport)",ISBLANK($N44),ISBLANK($O44)),VLOOKUP($H44,INDIRECT("Ref_EF_Vehicle_Distance"&"_"&$D44),16,0),IF($G44="Weight Distance (e.g. Freight Transport)",VLOOKUP($H44,INDIRECT("Ref_EF_Weight_Distance"&"_"&$D44),4,0),IF($G44="Custom Vehicle",VLOOKUP($H44,Tbl_vehical_Settings,5,0),IF($G44="Custom Fuel",VLOOKUP($M44,Tbl_Fuel_Settings,5,0),$AX44))))))) ->  | Z44: =IF(OR($G44="Fuel Use",$G44="Fuel Use and Vehicle Distance"),VLOOKUP($M44,INDIRECT("Ref_EF_ByFuel"&"_"&$D44),5,0),IF(AND($G44="Vehicle Distance (e.g. Road Transport)",$D44="UK"),VLOOKUP($H44,Ref_EF_Vehicle_Distance_UK,5,0),IF(AND($G44="Vehicle Distance (e.g. Road Transport)",OR($D44="US",$D44="Other")),VLOOKUP($H44,INDIRECT("Ref_EF_Vehicle_Distance"&"_"&$D44),17,0),IF(AND($G44="Vehicle Distance (e.g. Road Transport)",ISBLANK($N44),ISBLANK($O44)),VLOOKUP($H44,INDIRECT("Ref_EF_Vehicle_Distance"&"_"&$D44),17,0),IF($G44="Weight Distance (e.g. Freight Transport)",VLOOKUP($H44,INDIRECT("Ref_EF_Weight_Distance"&"_"&$D44),5,0),IF($G44="Custom Vehicle",VLOOKUP($H44,Tbl_vehical_Settings,6,0),IF($G44="Custom Fuel",VLOOKUP($M44,Tbl_Fuel_Settings,6,0),$AV44))))))) ->  | AA44: =IF(OR($G44="Fuel Use",$G44="Fuel Use and Vehicle Distance"),VLOOKUP($M44,INDIRECT("Ref_EF_ByFuel"&"_"&$D44),6,0),IF(AND($G44="Vehicle Distance (e.g. Road Transport)",$D44="UK"),VLOOKUP($H44,Ref_EF_Vehicle_Distance_UK,6,0),IF(AND($G44="Vehicle Distance (e.g. Road Transport)",OR($D44="US",$D44="Other")),VLOOKUP($H44,INDIRECT("Ref_EF_Vehicle_Distance"&"_"&$D44),18,0),IF(AND($G44="Vehicle Distance (e.g. Road Transport)",ISBLANK($N44),ISBLANK($O44)),VLOOKUP($H44,INDIRECT("Ref_EF_Vehicle_Distance"&"_"&$D44),18,0),IF($G44="Weight Distance (e.g. Freight Transport)",VLOOKUP($H44,INDIRECT("Ref_EF_Weight_Distance"&"_"&$D44),6,0),IF($G44="Custom Vehicle",VLOOKUP($H44,Tbl_vehical_Settings,7,0),IF($G44="Custom Fuel",VLOOKUP($M44,Tbl_Fuel_Settings,7,0),$AW44))))))) ->  | AB44: =IF($G44="Fuel Use",VLOOKUP($H44,INDIRECT("Ref_EF_ByFuel_CH4"&"_"&$D44),3,0), IF($G44="Fuel Use and Vehicle Distance",VLOOKUP($H44,INDIRECT("Ref_EF_Vehicle_Distance"&"_"&$D44),3,0),IF($G44="Vehicle Distance (e.g. Road Transport)",VLOOKUP($H44,INDIRECT("Ref_EF_Vehicle_Distance"&"_"&$D44),IF($D44="UK",7,3),0),IF($G44="Weight Distance (e.g. Freight Transport)",VLOOKUP(VLOOKUP($H44,INDIRECT("Ref_EF_Weight_Distance"&"_"&$D44),8,0),INDIRECT("Ref_EF_Weight_Distance_CH4"&"_"&$D44),3,0),IF($G44="Custom Vehicle",VLOOKUP($H44,Tbl_vehical_Settings,3,0),IF($G44="Custom Fuel",VLOOKUP($M44,Tbl_Fuel_Settings,3,0),VLOOKUP($H44,INDIRECT("Ref_EF_Public_Transport"&"_"&$D44),7,0))))))) ->  | AC44: =IF($G44="Fuel Use",VLOOKUP($H44,INDIRECT("Ref_EF_ByFuel_CH4"&"_"&$D44),4,0), IF($G44="Fuel Use and Vehicle Distance",VLOOKUP($H44,INDIRECT("Ref_EF_Vehicle_Distance"&"_"&$D44),4,0),IF($G44="Vehicle Distance (e.g. Road Transport)",VLOOKUP($H44,INDIRECT("Ref_EF_Vehicle_Distance"&"_"&$D44),IF($D44="UK",8,4),0),IF($G44="Weight Distance (e.g. Freight Transport)",VLOOKUP(VLOOKUP($H44,INDIRECT("Ref_EF_Weight_Distance"&"_"&$D44),8,0),INDIRECT("Ref_EF_Weight_Distance_CH4"&"_"&$D44),4,0),IF($G44="Custom Vehicle",VLOOKUP($H44,Tbl_vehical_Settings,6,0),IF($G44="Custom Fuel",VLOOKUP($M44,Tbl_Fuel_Settings,6,0),VLOOKUP($H44,INDIRECT("Ref_EF_Public_Transport"&"_"&$D44),8,0))))))) ->  | AD44: =IF($G44="Fuel Use",VLOOKUP($H44,INDIRECT("Ref_EF_ByFuel_CH4"&"_"&$D44),5,0), IF($G44="Fuel Use and Vehicle Distance",VLOOKUP($H44,INDIRECT("Ref_EF_Vehicle_Distance"&"_"&$D44),5,0),IF($G44="Vehicle Distance (e.g. Road Transport)",VLOOKUP($H44,INDIRECT("Ref_EF_Vehicle_Distance"&"_"&$D44),IF($D44="UK",9,5),0),IF($G44="Weight Distance (e.g. Freight Transport)",VLOOKUP(VLOOKUP($H44,INDIRECT("Ref_EF_Weight_Distance"&"_"&$D44),8,0),INDIRECT("Ref_EF_Weight_Distance_CH4"&"_"&$D44),5,0),IF($G44="Custom Vehicle",VLOOKUP($H44,Tbl_vehical_Settings,7,0),IF($G44="Custom Fuel",VLOOKUP($M44,Tbl_Fuel_Settings,7,0),VLOOKUP($H44,INDIRECT("Ref_EF_Public_Transport"&"_"&$D44),9,0))))))) ->  | AE44: =IF($G44="Fuel Use",VLOOKUP($H44,INDIRECT("Ref_EF_ByFuel_CH4"&"_"&$D44),6,0), IF($G44="Fuel Use and Vehicle Distance",VLOOKUP($H44,INDIRECT("Ref_EF_Vehicle_Distance"&"_"&$D44),6,0),IF($G44="Vehicle Distance (e.g. Road Transport)",VLOOKUP($H44,INDIRECT("Ref_EF_Vehicle_Distance"&"_"&$D44),IF($D44="UK",10,6),0),IF($G44="Weight Distance (e.g. Freight Transport)",VLOOKUP(VLOOKUP($H44,INDIRECT("Ref_EF_Weight_Distance"&"_"&$D44),8,0),INDIRECT("Ref_EF_Weight_Distance_CH4"&"_"&$D44),6,0),IF($G44="Custom Vehicle",VLOOKUP($H44,Tbl_vehical_Settings,4,0),IF($G44="Custom Fuel",VLOOKUP($M44,Tbl_Fuel_Settings,4,0),VLOOKUP($H44,INDIRECT("Ref_EF_Public_Transport"&"_"&$D44),10,0))))))) ->  | AF44: =IF($G44="Fuel Use",VLOOKUP($H44,INDIRECT("Ref_EF_ByFuel_CH4"&"_"&$D44),7,0), IF($G44="Fuel Use and Vehicle Distance",VLOOKUP($H44,INDIRECT("Ref_EF_Vehicle_Distance"&"_"&$D44),7,0),IF($G44="Vehicle Distance (e.g. Road Transport)",VLOOKUP($H44,INDIRECT("Ref_EF_Vehicle_Distance"&"_"&$D44),IF($D44="UK",11,7),0),IF($G44="Weight Distance (e.g. Freight Transport)",VLOOKUP(VLOOKUP($H44,INDIRECT("Ref_EF_Weight_Distance"&"_"&$D44),8,0),INDIRECT("Ref_EF_Weight_Distance_CH4"&"_"&$D44),7,0),IF($G44="Custom Vehicle",VLOOKUP($H44,Tbl_vehical_Settings,6,0),IF($G44="Custom Fuel",VLOOKUP($M44,Tbl_Fuel_Settings,6,0),VLOOKUP($H44,INDIRECT("Ref_EF_Public_Transport"&"_"&$D44),11,0))))))) ->  | AG44: =IF($G44="Fuel Use",VLOOKUP($H44,INDIRECT("Ref_EF_ByFuel_CH4"&"_"&$D44),8,0), IF($G44="Fuel Use and Vehicle Distance",VLOOKUP($H44,INDIRECT("Ref_EF_Vehicle_Distance"&"_"&$D44),8,0),IF($G44="Vehicle Distance (e.g. Road Transport)",VLOOKUP($H44,INDIRECT("Ref_EF_Vehicle_Distance"&"_"&$D44),IF($D44="UK",12,8),0),IF($G44="Weight Distance (e.g. Freight Transport)",VLOOKUP(VLOOKUP($H44,INDIRECT("Ref_EF_Weight_Distance"&"_"&$D44),8,0),INDIRECT("Ref_EF_Weight_Distance_CH4"&"_"&$D44),8,0),IF($G44="Custom Vehicle",VLOOKUP($H44,Tbl_vehical_Settings,7,0),IF($G44="Custom Fuel",VLOOKUP($M44,Tbl_Fuel_Settings,7,0),VLOOKUP($H44,INDIRECT("Ref_EF_Public_Transport"&"_"&$D44),12,0))))))) ->  | AH44: =INDEX(Ref_Master_Unit_Table,MATCH($W44,REF_To_Unit,0),MATCH('Reference - Lookup and Unit'!$A$11,Ref_From_Units,0)) ->  | AJ44: =INDEX(Ref_Master_Unit_Table,MATCH($Z44,REF_To_Unit,0),MATCH('Reference - Lookup and Unit'!$A$11,Ref_From_Units,0)) ->  | AL44: =INDEX(Ref_Master_Unit_Table,MATCH($AC44,REF_To_Unit,0),MATCH('Reference - Lookup and Unit'!$A$11,Ref_From_Units,0)) ->  | AN44: =INDEX(Ref_Master_Unit_Table,MATCH($AF44,REF_To_Unit,0),MATCH('Reference - Lookup and Unit'!$A$11,Ref_From_Units,0)) ->  | AP44: 1 | AQ44: 28 | AR44: 265 | AS44: 1 | AT44: Ref_DD_vehicle_Passenger_ | AY44: FALSE | CP44: Ref_DD_DistanceUnit | CR44: 0
AH45: =INDEX(Ref_Master_Unit_Table,MATCH($W45,REF_To_Unit,0),MATCH('Reference - Lookup and Unit'!$A$11,Ref_From_Units,0)) ->  | AJ45: =INDEX(Ref_Master_Unit_Table,MATCH($Z45,REF_To_Unit,0),MATCH('Reference - Lookup and Unit'!$A$11,Ref_From_Units,0)) ->  | AL45: =INDEX(Ref_Master_Unit_Table,MATCH($AC45,REF_To_Unit,0),MATCH('Reference - Lookup and Unit'!$A$11,Ref_From_Units,0)) ->  | AN45: =INDEX(Ref_Master_Unit_Table,MATCH($AF45,REF_To_Unit,0),MATCH('Reference - Lookup and Unit'!$A$11,Ref_From_Units,0)) ->  | AP45: 1 | AQ45: 28 | AR45: 265 | AS45: 1 | AT45: Ref_DD_vehicle_Passenger_ | AY45: FALSE | CP45: Ref_DD_DistanceUnit | CR45: 0
AH46: =INDEX(Ref_Master_Unit_Table,MATCH($W46,REF_To_Unit,0),MATCH('Reference - Lookup and Unit'!$A$11,Ref_From_Units,0)) ->  | AJ46: =INDEX(Ref_Master_Unit_Table,MATCH($Z46,REF_To_Unit,0),MATCH('Reference - Lookup and Unit'!$A$11,Ref_From_Units,0)) ->  | AL46: =INDEX(Ref_Master_Unit_Table,MATCH($AC46,REF_To_Unit,0),MATCH('Reference - Lookup and Unit'!$A$11,Ref_From_Units,0)) ->  | AN46: =INDEX(Ref_Master_Unit_Table,MATCH($AF46,REF_To_Unit,0),MATCH('Reference - Lookup and Unit'!$A$11,Ref_From_Units,0)) ->  | AP46: 1 | AQ46: 28 | AR46: 265 | AS46: 1 | AT46: Ref_DD_vehicle_Passenger_ | AY46: FALSE | CP46: Ref_DD_DistanceUnit | CR46: 0
T47: =IF(AND(ISERROR($Q47*$AP47)=FALSE,ISERROR((R47/1000)*$AQ47)=FALSE,ISERROR((S47/1000)*$AR47)=FALSE),($Q47*$AP47)+((R47/1000)*$AQ47)+((S47/1000)*$AR47),IF(AND(ISERROR($Q47*$AP47)=FALSE,ISERROR((R47/1000)*$AQ47)=FALSE,ISERROR((S47/1000)*$AR47)=TRUE),($Q47*$AP47)+((R47/1000)*$AQ47),IF(AND(ISERROR($Q47*$AP47)=FALSE,ISERROR((R47/1000)*$AQ47)=TRUE,ISERROR((S47/1000)*$AR47)=FALSE),($Q47*$AP47)+((S47/1000)*$AR47),IF(AND(ISERROR($Q47*$AP47)=FALSE,ISERROR((R47/1000)*$AQ47)=TRUE,ISERROR((S47/1000)*$AR47)=TRUE),($Q47*$AP47),IF(AND(ISERROR($Q47*$AP47)=TRUE,ISERROR((R47/1000)*$AQ47)=FALSE,ISERROR((S47/1000)*$AR47)=FALSE),((R47/1000)*$AQ47)+((S47/1000)*$AR47),IF(AND(ISERROR($Q47*$AP47)=TRUE,ISERROR((R47/1000)*$AQ47)=FALSE,ISERROR((S47/1000)*$AR47)=TRUE),((R47/1000)*$AQ47),CQ47)))))) ->  | AH47: =INDEX(Ref_Master_Unit_Table,MATCH($W47,REF_To_Unit,0),MATCH('Reference - Lookup and Unit'!$A$11,Ref_From_Units,0)) ->  | AI47: =INDEX(Ref_Master_Unit_Table,MATCH(IF(AND($D47="UK",$G47="Vehicle Distance (e.g. Road Transport)"),$L47,IF(ISBLANK($O47),$L47,$O47)),Ref_From_Units,0),MATCH($X47,REF_To_Unit,0)) ->  | AJ47: =INDEX(Ref_Master_Unit_Table,MATCH($Z47,REF_To_Unit,0),MATCH('Reference - Lookup and Unit'!$A$11,Ref_From_Units,0)) ->  | AK47: =INDEX(Ref_Master_Unit_Table,MATCH(IF(AND($D47="UK",$G47="Vehicle Distance (e.g. Road Transport)"),$L47,IF(ISBLANK($O47),$L47,$O47)),Ref_From_Units,0),MATCH($AA47,REF_To_Unit,0)) ->  | AL47: =INDEX(Ref_Master_Unit_Table,MATCH($AC47,REF_To_Unit,0),MATCH('Reference - Lookup and Unit'!$A$11,Ref_From_Units,0)) ->  | AM47: =INDEX(Ref_Master_Unit_Table,MATCH(IF(OR($G47="Fuel Use",$G47="Custom Fuel"),$O47,$L47),Ref_From_Units,0),MATCH($AD47,REF_To_Unit,0)) ->  | AN47: =INDEX(Ref_Master_Unit_Table,MATCH($AF47,REF_To_Unit,0),MATCH('Reference - Lookup and Unit'!$A$11,Ref_From_Units,0)) ->  | AO47: =INDEX(Ref_Master_Unit_Table,MATCH(IF(OR($G47="Fuel Use",$G47="Custom Fuel"),$O47,$L47),Ref_From_Units,0),MATCH($AD47,REF_To_Unit,0)) ->  | AP47: 1 | AQ47: 28 | AR47: 265 | AS47: 1 | AT47: Ref_DD_vehicle_Passenger_ | AY47: FALSE | CP47: Ref_DD_DistanceUnit | CQ47: =IF(AND(ISERROR($Q47*$AP47)=TRUE,ISERROR((R47/1000)*$AQ47)=TRUE,ISERROR((S47/1000)*$AR47)=FALSE),((S47/1000)*$AR47),"") ->  | CR47: 0
AH48: =INDEX(Ref_Master_Unit_Table,MATCH($W48,REF_To_Unit,0),MATCH('Reference - Lookup and Unit'!$A$11,Ref_From_Units,0)) ->  | AJ48: =INDEX(Ref_Master_Unit_Table,MATCH($Z48,REF_To_Unit,0),MATCH('Reference - Lookup and Unit'!$A$11,Ref_From_Units,0)) ->  | AL48: =INDEX(Ref_Master_Unit_Table,MATCH($AC48,REF_To_Unit,0),MATCH('Reference - Lookup and Unit'!$A$11,Ref_From_Units,0)) ->  | AN48: =INDEX(Ref_Master_Unit_Table,MATCH($AF48,REF_To_Unit,0),MATCH('Reference - Lookup and Unit'!$A$11,Ref_From_Units,0)) ->  | AP48: 1 | AQ48: 28 | AR48: 265 | AS48: 1 | AT48: Ref_DD_vehicle_Passenger_ | AY48: FALSE | CP48: Ref_DD_DistanceUnit | CR48: 0
AH49: =INDEX(Ref_Master_Unit_Table,MATCH($W49,REF_To_Unit,0),MATCH('Reference - Lookup and Unit'!$A$11,Ref_From_Units,0)) ->  | AJ49: =INDEX(Ref_Master_Unit_Table,MATCH($Z49,REF_To_Unit,0),MATCH('Reference - Lookup and Unit'!$A$11,Ref_From_Units,0)) ->  | AL49: =INDEX(Ref_Master_Unit_Table,MATCH($AC49,REF_To_Unit,0),MATCH('Reference - Lookup and Unit'!$A$11,Ref_From_Units,0)) ->  | AN49: =INDEX(Ref_Master_Unit_Table,MATCH($AF49,REF_To_Unit,0),MATCH('Reference - Lookup and Unit'!$A$11,Ref_From_Units,0)) ->  | AP49: 1 | AQ49: 28 | AR49: 265 | AS49: 1 | AT49: Ref_DD_vehicle_Passenger_ | AY49: FALSE | CP49: Ref_DD_DistanceUnit | CR49: 0
AH50: =INDEX(Ref_Master_Unit_Table,MATCH($W50,REF_To_Unit,0),MATCH('Reference - Lookup and Unit'!$A$11,Ref_From_Units,0)) ->  | AJ50: =INDEX(Ref_Master_Unit_Table,MATCH($Z50,REF_To_Unit,0),MATCH('Reference - Lookup and Unit'!$A$11,Ref_From_Units,0)) ->  | AL50: =INDEX(Ref_Master_Unit_Table,MATCH($AC50,REF_To_Unit,0),MATCH('Reference - Lookup and Unit'!$A$11,Ref_From_Units,0)) ->  | AN50: =INDEX(Ref_Master_Unit_Table,MATCH($AF50,REF_To_Unit,0),MATCH('Reference - Lookup and Unit'!$A$11,Ref_From_Units,0)) ->  | AP50: 1 | AQ50: 28 | AR50: 265 | AS50: 1 | AT50: Ref_DD_vehicle_Passenger_ | AY50: FALSE | CP50: Ref_DD_DistanceUnit | CR50: 0
AH51: =INDEX(Ref_Master_Unit_Table,MATCH($W51,REF_To_Unit,0),MATCH('Reference - Lookup and Unit'!$A$11,Ref_From_Units,0)) ->  | AJ51: =INDEX(Ref_Master_Unit_Table,MATCH($Z51,REF_To_Unit,0),MATCH('Reference - Lookup and Unit'!$A$11,Ref_From_Units,0)) ->  | AL51: =INDEX(Ref_Master_Unit_Table,MATCH($AC51,REF_To_Unit,0),MATCH('Reference - Lookup and Unit'!$A$11,Ref_From_Units,0)) ->  | AN51: =INDEX(Ref_Master_Unit_Table,MATCH($AF51,REF_To_Unit,0),MATCH('Reference - Lookup and Unit'!$A$11,Ref_From_Units,0)) ->  | AP51: 1 | AQ51: 28 | AR51: 265 | AS51: 1 | AT51: Ref_DD_vehicle_Passenger_ | AY51: FALSE | CP51: Ref_DD_DistanceUnit | CR51: 0
AH52: =INDEX(Ref_Master_Unit_Table,MATCH($W52,REF_To_Unit,0),MATCH('Reference - Lookup and Unit'!$A$11,Ref_From_Units,0)) ->  | AJ52: =INDEX(Ref_Master_Unit_Table,MATCH($Z52,REF_To_Unit,0),MATCH('Reference - Lookup and Unit'!$A$11,Ref_From_Units,0)) ->  | AL52: =INDEX(Ref_Master_Unit_Table,MATCH($AC52,REF_To_Unit,0),MATCH('Reference - Lookup and Unit'!$A$11,Ref_From_Units,0)) ->  | AN52: =INDEX(Ref_Master_Unit_Table,MATCH($AF52,REF_To_Unit,0),MATCH('Reference - Lookup and Unit'!$A$11,Ref_From_Units,0)) ->  | AP52: 1 | AQ52: 28 | AR52: 265 | AS52: 1 | AT52: Ref_DD_vehicle_Passenger_ | AY52: FALSE | CP52: Ref_DD_DistanceUnit | CR52: 0
AH53: =INDEX(Ref_Master_Unit_Table,MATCH($W53,REF_To_Unit,0),MATCH('Reference - Lookup and Unit'!$A$11,Ref_From_Units,0)) ->  | AJ53: =INDEX(Ref_Master_Unit_Table,MATCH($Z53,REF_To_Unit,0),MATCH('Reference - Lookup and Unit'!$A$11,Ref_From_Units,0)) ->  | AL53: =INDEX(Ref_Master_Unit_Table,MATCH($AC53,REF_To_Unit,0),MATCH('Reference - Lookup and Unit'!$A$11,Ref_From_Units,0)) ->  | AN53: =INDEX(Ref_Master_Unit_Table,MATCH($AF53,REF_To_Unit,0),MATCH('Reference - Lookup and Unit'!$A$11,Ref_From_Units,0)) ->  | AP53: 1 | AQ53: 28 | AR53: 265 | AS53: 1 | AT53: Ref_DD_vehicle_Passenger_ | AY53: FALSE | CP53: Ref_DD_DistanceUnit | CR53: 0
AH54: =INDEX(Ref_Master_Unit_Table,MATCH($W54,REF_To_Unit,0),MATCH('Reference - Lookup and Unit'!$A$11,Ref_From_Units,0)) ->  | AJ54: =INDEX(Ref_Master_Unit_Table,MATCH($Z54,REF_To_Unit,0),MATCH('Reference - Lookup and Unit'!$A$11,Ref_From_Units,0)) ->  | AL54: =INDEX(Ref_Master_Unit_Table,MATCH($AC54,REF_To_Unit,0),MATCH('Reference - Lookup and Unit'!$A$11,Ref_From_Units,0)) ->  | AN54: =INDEX(Ref_Master_Unit_Table,MATCH($AF54,REF_To_Unit,0),MATCH('Reference - Lookup and Unit'!$A$11,Ref_From_Units,0)) ->  | AP54: 1 | AQ54: 28 | AR54: 265 | AS54: 1 | AT54: Ref_DD_vehicle_Passenger_ | AY54: FALSE | CP54: Ref_DD_DistanceUnit | CR54: 0
AH55: =INDEX(Ref_Master_Unit_Table,MATCH($W55,REF_To_Unit,0),MATCH('Reference - Lookup and Unit'!$A$11,Ref_From_Units,0)) ->  | AJ55: =INDEX(Ref_Master_Unit_Table,MATCH($Z55,REF_To_Unit,0),MATCH('Reference - Lookup and Unit'!$A$11,Ref_From_Units,0)) ->  | AL55: =INDEX(Ref_Master_Unit_Table,MATCH($AC55,REF_To_Unit,0),MATCH('Reference - Lookup and Unit'!$A$11,Ref_From_Units,0)) ->  | AN55: =INDEX(Ref_Master_Unit_Table,MATCH($AF55,REF_To_Unit,0),MATCH('Reference - Lookup and Unit'!$A$11,Ref_From_Units,0)) ->  | AP55: 1 | AQ55: 28 | AR55: 265 | AS55: 1 | AT55: Ref_DD_vehicle_Passenger_ | AY55: FALSE | CP55: Ref_DD_DistanceUnit | CR55: 0
AH56: =INDEX(Ref_Master_Unit_Table,MATCH($W56,REF_To_Unit,0),MATCH('Reference - Lookup and Unit'!$A$11,Ref_From_Units,0)) ->  | AJ56: =INDEX(Ref_Master_Unit_Table,MATCH($Z56,REF_To_Unit,0),MATCH('Reference - Lookup and Unit'!$A$11,Ref_From_Units,0)) ->  | AL56: =INDEX(Ref_Master_Unit_Table,MATCH($AC56,REF_To_Unit,0),MATCH('Reference - Lookup and Unit'!$A$11,Ref_From_Units,0)) ->  | AN56: =INDEX(Ref_Master_Unit_Table,MATCH($AF56,REF_To_Unit,0),MATCH('Reference - Lookup and Unit'!$A$11,Ref_From_Units,0)) ->  | AP56: 1 | AQ56: 28 | AR56: 265 | AS56: 1 | AT56: Ref_DD_vehicle_Passenger_ | AY56: FALSE | CP56: Ref_DD_DistanceUnit | CR56: 0
AH57: =INDEX(Ref_Master_Unit_Table,MATCH($W57,REF_To_Unit,0),MATCH('Reference - Lookup and Unit'!$A$11,Ref_From_Units,0)) ->  | AJ57: =INDEX(Ref_Master_Unit_Table,MATCH($Z57,REF_To_Unit,0),MATCH('Reference - Lookup and Unit'!$A$11,Ref_From_Units,0)) ->  | AL57: =INDEX(Ref_Master_Unit_Table,MATCH($AC57,REF_To_Unit,0),MATCH('Reference - Lookup and Unit'!$A$11,Ref_From_Units,0)) ->  | AN57: =INDEX(Ref_Master_Unit_Table,MATCH($AF57,REF_To_Unit,0),MATCH('Reference - Lookup and Unit'!$A$11,Ref_From_Units,0)) ->  | AP57: 1 | AQ57: 28 | AR57: 265 | AS57: 1 | AT57: Ref_DD_vehicle_Passenger_ | AY57: FALSE | CP57: Ref_DD_DistanceUnit | CR57: 0
AH58: =INDEX(Ref_Master_Unit_Table,MATCH($W58,REF_To_Unit,0),MATCH('Reference - Lookup and Unit'!$A$11,Ref_From_Units,0)) ->  | AJ58: =INDEX(Ref_Master_Unit_Table,MATCH($Z58,REF_To_Unit,0),MATCH('Reference - Lookup and Unit'!$A$11,Ref_From_Units,0)) ->  | AL58: =INDEX(Ref_Master_Unit_Table,MATCH($AC58,REF_To_Unit,0),MATCH('Reference - Lookup and Unit'!$A$11,Ref_From_Units,0)) ->  | AN58: =INDEX(Ref_Master_Unit_Table,MATCH($AF58,REF_To_Unit,0),MATCH('Reference - Lookup and Unit'!$A$11,Ref_From_Units,0)) ->  | AP58: 1 | AQ58: 28 | AR58: 265 | AS58: 1 | AT58: Ref_DD_vehicle_Passenger_ | AY58: FALSE | CP58: Ref_DD_DistanceUnit | CR58: 0
AH59: =INDEX(Ref_Master_Unit_Table,MATCH($W59,REF_To_Unit,0),MATCH('Reference - Lookup and Unit'!$A$11,Ref_From_Units,0)) ->  | AJ59: =INDEX(Ref_Master_Unit_Table,MATCH($Z59,REF_To_Unit,0),MATCH('Reference - Lookup and Unit'!$A$11,Ref_From_Units,0)) ->  | AL59: =INDEX(Ref_Master_Unit_Table,MATCH($AC59,REF_To_Unit,0),MATCH('Reference - Lookup and Unit'!$A$11,Ref_From_Units,0)) ->  | AN59: =INDEX(Ref_Master_Unit_Table,MATCH($AF59,REF_To_Unit,0),MATCH('Reference - Lookup and Unit'!$A$11,Ref_From_Units,0)) ->  | AP59: 1 | AQ59: 28 | AR59: 265 | AS59: 1 | AT59: Ref_DD_vehicle_Passenger_ | AY59: FALSE | CP59: Ref_DD_DistanceUnit | CR59: 0
AH60: =INDEX(Ref_Master_Unit_Table,MATCH($W60,REF_To_Unit,0),MATCH('Reference - Lookup and Unit'!$A$11,Ref_From_Units,0)) ->  | AJ60: =INDEX(Ref_Master_Unit_Table,MATCH($Z60,REF_To_Unit,0),MATCH('Reference - Lookup and Unit'!$A$11,Ref_From_Units,0)) ->  | AL60: =INDEX(Ref_Master_Unit_Table,MATCH($AC60,REF_To_Unit,0),MATCH('Reference - Lookup and Unit'!$A$11,Ref_From_Units,0)) ->  | AN60: =INDEX(Ref_Master_Unit_Table,MATCH($AF60,REF_To_Unit,0),MATCH('Reference - Lookup and Unit'!$A$11,Ref_From_Units,0)) ->  | AP60: 1 | AQ60: 28 | AR60: 265 | AS60: 1 | AT60: Ref_DD_vehicle_Passenger_ | AY60: FALSE | CP60: Ref_DD_DistanceUnit | CR60: 0
AH61: =INDEX(Ref_Master_Unit_Table,MATCH($W61,REF_To_Unit,0),MATCH('Reference - Lookup and Unit'!$A$11,Ref_From_Units,0)) ->  | AJ61: =INDEX(Ref_Master_Unit_Table,MATCH($Z61,REF_To_Unit,0),MATCH('Reference - Lookup and Unit'!$A$11,Ref_From_Units,0)) ->  | AL61: =INDEX(Ref_Master_Unit_Table,MATCH($AC61,REF_To_Unit,0),MATCH('Reference - Lookup and Unit'!$A$11,Ref_From_Units,0)) ->  | AN61: =INDEX(Ref_Master_Unit_Table,MATCH($AF61,REF_To_Unit,0),MATCH('Reference - Lookup and Unit'!$A$11,Ref_From_Units,0)) ->  | AP61: 1 | AQ61: 28 | AR61: 265 | AS61: 1 | AT61: Ref_DD_vehicle_Passenger_ | AY61: FALSE | CP61: Ref_DD_DistanceUnit | CR61: 0
AH62: =INDEX(Ref_Master_Unit_Table,MATCH($W62,REF_To_Unit,0),MATCH('Reference - Lookup and Unit'!$A$11,Ref_From_Units,0)) ->  | AJ62: =INDEX(Ref_Master_Unit_Table,MATCH($Z62,REF_To_Unit,0),MATCH('Reference - Lookup and Unit'!$A$11,Ref_From_Units,0)) ->  | AL62: =INDEX(Ref_Master_Unit_Table,MATCH($AC62,REF_To_Unit,0),MATCH('Reference - Lookup and Unit'!$A$11,Ref_From_Units,0)) ->  | AN62: =INDEX(Ref_Master_Unit_Table,MATCH($AF62,REF_To_Unit,0),MATCH('Reference - Lookup and Unit'!$A$11,Ref_From_Units,0)) ->  | AP62: 1 | AQ62: 28 | AR62: 265 | AS62: 1 | AT62: Ref_DD_vehicle_Passenger_ | AY62: FALSE | CP62: Ref_DD_DistanceUnit | CR62: 0
AH63: =INDEX(Ref_Master_Unit_Table,MATCH($W63,REF_To_Unit,0),MATCH('Reference - Lookup and Unit'!$A$11,Ref_From_Units,0)) ->  | AJ63: =INDEX(Ref_Master_Unit_Table,MATCH($Z63,REF_To_Unit,0),MATCH('Reference - Lookup and Unit'!$A$11,Ref_From_Units,0)) ->  | AL63: =INDEX(Ref_Master_Unit_Table,MATCH($AC63,REF_To_Unit,0),MATCH('Reference - Lookup and Unit'!$A$11,Ref_From_Units,0)) ->  | AN63: =INDEX(Ref_Master_Unit_Table,MATCH($AF63,REF_To_Unit,0),MATCH('Reference - Lookup and Unit'!$A$11,Ref_From_Units,0)) ->  | AP63: 1 | AQ63: 28 | AR63: 265 | AS63: 1 | AT63: Ref_DD_vehicle_Passenger_ | AY63: FALSE | CP63: Ref_DD_DistanceUnit | CR63: 0
AH64: =INDEX(Ref_Master_Unit_Table,MATCH($W64,REF_To_Unit,0),MATCH('Reference - Lookup and Unit'!$A$11,Ref_From_Units,0)) ->  | AJ64: =INDEX(Ref_Master_Unit_Table,MATCH($Z64,REF_To_Unit,0),MATCH('Reference - Lookup and Unit'!$A$11,Ref_From_Units,0)) ->  | AL64: =INDEX(Ref_Master_Unit_Table,MATCH($AC64,REF_To_Unit,0),MATCH('Reference - Lookup and Unit'!$A$11,Ref_From_Units,0)) ->  | AN64: =INDEX(Ref_Master_Unit_Table,MATCH($AF64,REF_To_Unit,0),MATCH('Reference - Lookup and Unit'!$A$11,Ref_From_Units,0)) ->  | AP64: 1 | AQ64: 28 | AR64: 265 | AS64: 1 | AT64: Ref_DD_vehicle_Passenger_ | AY64: FALSE | CP64: Ref_DD_DistanceUnit | CR64: 0
AH65: =INDEX(Ref_Master_Unit_Table,MATCH($W65,REF_To_Unit,0),MATCH('Reference - Lookup and Unit'!$A$11,Ref_From_Units,0)) ->  | AJ65: =INDEX(Ref_Master_Unit_Table,MATCH($Z65,REF_To_Unit,0),MATCH('Reference - Lookup and Unit'!$A$11,Ref_From_Units,0)) ->  | AL65: =INDEX(Ref_Master_Unit_Table,MATCH($AC65,REF_To_Unit,0),MATCH('Reference - Lookup and Unit'!$A$11,Ref_From_Units,0)) ->  | AN65: =INDEX(Ref_Master_Unit_Table,MATCH($AF65,REF_To_Unit,0),MATCH('Reference - Lookup and Unit'!$A$11,Ref_From_Units,0)) ->  | AP65: 1 | AQ65: 28 | AR65: 265 | AS65: 1 | AT65: Ref_DD_vehicle_Passenger_ | AY65: FALSE | CP65: Ref_DD_DistanceUnit | CR65: 0
AH66: =INDEX(Ref_Master_Unit_Table,MATCH($W66,REF_To_Unit,0),MATCH('Reference - Lookup and Unit'!$A$11,Ref_From_Units,0)) ->  | AJ66: =INDEX(Ref_Master_Unit_Table,MATCH($Z66,REF_To_Unit,0),MATCH('Reference - Lookup and Unit'!$A$11,Ref_From_Units,0)) ->  | AL66: =INDEX(Ref_Master_Unit_Table,MATCH($AC66,REF_To_Unit,0),MATCH('Reference - Lookup and Unit'!$A$11,Ref_From_Units,0)) ->  | AN66: =INDEX(Ref_Master_Unit_Table,MATCH($AF66,REF_To_Unit,0),MATCH('Reference - Lookup and Unit'!$A$11,Ref_From_Units,0)) ->  | AP66: 1 | AQ66: 28 | AR66: 265 | AS66: 1 | AT66: Ref_DD_vehicle_Passenger_ | AY66: FALSE | CP66: Ref_DD_DistanceUnit | CR66: 0
AH67: =INDEX(Ref_Master_Unit_Table,MATCH($W67,REF_To_Unit,0),MATCH('Reference - Lookup and Unit'!$A$11,Ref_From_Units,0)) ->  | AJ67: =INDEX(Ref_Master_Unit_Table,MATCH($Z67,REF_To_Unit,0),MATCH('Reference - Lookup and Unit'!$A$11,Ref_From_Units,0)) ->  | AL67: =INDEX(Ref_Master_Unit_Table,MATCH($AC67,REF_To_Unit,0),MATCH('Reference - Lookup and Unit'!$A$11,Ref_From_Units,0)) ->  | AN67: =INDEX(Ref_Master_Unit_Table,MATCH($AF67,REF_To_Unit,0),MATCH('Reference - Lookup and Unit'!$A$11,Ref_From_Units,0)) ->  | AP67: 1 | AQ67: 28 | AR67: 265 | AS67: 1 | AT67: Ref_DD_vehicle_Passenger_ | AY67: FALSE | CP67: Ref_DD_DistanceUnit | CR67: 0
AH68: =INDEX(Ref_Master_Unit_Table,MATCH($W68,REF_To_Unit,0),MATCH('Reference - Lookup and Unit'!$A$11,Ref_From_Units,0)) ->  | AJ68: =INDEX(Ref_Master_Unit_Table,MATCH($Z68,REF_To_Unit,0),MATCH('Reference - Lookup and Unit'!$A$11,Ref_From_Units,0)) ->  | AL68: =INDEX(Ref_Master_Unit_Table,MATCH($AC68,REF_To_Unit,0),MATCH('Reference - Lookup and Unit'!$A$11,Ref_From_Units,0)) ->  | AN68: =INDEX(Ref_Master_Unit_Table,MATCH($AF68,REF_To_Unit,0),MATCH('Reference - Lookup and Unit'!$A$11,Ref_From_Units,0)) ->  | AP68: 1 | AQ68: 28 | AR68: 265 | AS68: 1 | AT68: Ref_DD_vehicle_Passenger_ | AY68: FALSE | CP68: Ref_DD_DistanceUnit | CR68: 0
AH69: =INDEX(Ref_Master_Unit_Table,MATCH($W69,REF_To_Unit,0),MATCH('Reference - Lookup and Unit'!$A$11,Ref_From_Units,0)) ->  | AJ69: =INDEX(Ref_Master_Unit_Table,MATCH($Z69,REF_To_Unit,0),MATCH('Reference - Lookup and Unit'!$A$11,Ref_From_Units,0)) ->  | AL69: =INDEX(Ref_Master_Unit_Table,MATCH($AC69,REF_To_Unit,0),MATCH('Reference - Lookup and Unit'!$A$11,Ref_From_Units,0)) ->  | AN69: =INDEX(Ref_Master_Unit_Table,MATCH($AF69,REF_To_Unit,0),MATCH('Reference - Lookup and Unit'!$A$11,Ref_From_Units,0)) ->  | AP69: 1 | AQ69: 28 | AR69: 265 | AS69: 1 | AT69: Ref_DD_vehicle_Passenger_ | AY69: FALSE | CP69: Ref_DD_DistanceUnit | CR69: 0
AH70: =INDEX(Ref_Master_Unit_Table,MATCH($W70,REF_To_Unit,0),MATCH('Reference - Lookup and Unit'!$A$11,Ref_From_Units,0)) ->  | AJ70: =INDEX(Ref_Master_Unit_Table,MATCH($Z70,REF_To_Unit,0),MATCH('Reference - Lookup and Unit'!$A$11,Ref_From_Units,0)) ->  | AL70: =INDEX(Ref_Master_Unit_Table,MATCH($AC70,REF_To_Unit,0),MATCH('Reference - Lookup and Unit'!$A$11,Ref_From_Units,0)) ->  | AN70: =INDEX(Ref_Master_Unit_Table,MATCH($AF70,REF_To_Unit,0),MATCH('Reference - Lookup and Unit'!$A$11,Ref_From_Units,0)) ->  | AP70: 1 | AQ70: 28 | AR70: 265 | AS70: 1 | AT70: Ref_DD_vehicle_Passenger_ | AY70: FALSE | CP70: Ref_DD_DistanceUnit | CR70: 0
AH71: =INDEX(Ref_Master_Unit_Table,MATCH($W71,REF_To_Unit,0),MATCH('Reference - Lookup and Unit'!$A$11,Ref_From_Units,0)) ->  | AJ71: =INDEX(Ref_Master_Unit_Table,MATCH($Z71,REF_To_Unit,0),MATCH('Reference - Lookup and Unit'!$A$11,Ref_From_Units,0)) ->  | AL71: =INDEX(Ref_Master_Unit_Table,MATCH($AC71,REF_To_Unit,0),MATCH('Reference - Lookup and Unit'!$A$11,Ref_From_Units,0)) ->  | AN71: =INDEX(Ref_Master_Unit_Table,MATCH($AF71,REF_To_Unit,0),MATCH('Reference - Lookup and Unit'!$A$11,Ref_From_Units,0)) ->  | AP71: 1 | AQ71: 28 | AR71: 265 | AS71: 1 | AT71: Ref_DD_vehicle_Passenger_ | AY71: FALSE | CP71: Ref_DD_DistanceUnit | CR71: 0
AH72: =INDEX(Ref_Master_Unit_Table,MATCH($W72,REF_To_Unit,0),MATCH('Reference - Lookup and Unit'!$A$11,Ref_From_Units,0)) ->  | AJ72: =INDEX(Ref_Master_Unit_Table,MATCH($Z72,REF_To_Unit,0),MATCH('Reference - Lookup and Unit'!$A$11,Ref_From_Units,0)) ->  | AL72: =INDEX(Ref_Master_Unit_Table,MATCH($AC72,REF_To_Unit,0),MATCH('Reference - Lookup and Unit'!$A$11,Ref_From_Units,0)) ->  | AN72: =INDEX(Ref_Master_Unit_Table,MATCH($AF72,REF_To_Unit,0),MATCH('Reference - Lookup and Unit'!$A$11,Ref_From_Units,0)) ->  | AP72: 1 | AQ72: 28 | AR72: 265 | AS72: 1 | AT72: Ref_DD_vehicle_Passenger_ | AY72: FALSE | CP72: Ref_DD_DistanceUnit | CR72: 0
AH73: =INDEX(Ref_Master_Unit_Table,MATCH($W73,REF_To_Unit,0),MATCH('Reference - Lookup and Unit'!$A$11,Ref_From_Units,0)) ->  | AJ73: =INDEX(Ref_Master_Unit_Table,MATCH($Z73,REF_To_Unit,0),MATCH('Reference - Lookup and Unit'!$A$11,Ref_From_Units,0)) ->  | AL73: =INDEX(Ref_Master_Unit_Table,MATCH($AC73,REF_To_Unit,0),MATCH('Reference - Lookup and Unit'!$A$11,Ref_From_Units,0)) ->  | AN73: =INDEX(Ref_Master_Unit_Table,MATCH($AF73,REF_To_Unit,0),MATCH('Reference - Lookup and Unit'!$A$11,Ref_From_Units,0)) ->  | AP73: 1 | AQ73: 28 | AR73: 265 | AS73: 1 | AT73: Ref_DD_vehicle_Passenger_ | AY73: FALSE | CP73: Ref_DD_DistanceUnit | CR73: 0
AH74: =INDEX(Ref_Master_Unit_Table,MATCH($W74,REF_To_Unit,0),MATCH('Reference - Lookup and Unit'!$A$11,Ref_From_Units,0)) ->  | AJ74: =INDEX(Ref_Master_Unit_Table,MATCH($Z74,REF_To_Unit,0),MATCH('Reference - Lookup and Unit'!$A$11,Ref_From_Units,0)) ->  | AL74: =INDEX(Ref_Master_Unit_Table,MATCH($AC74,REF_To_Unit,0),MATCH('Reference - Lookup and Unit'!$A$11,Ref_From_Units,0)) ->  | AN74: =INDEX(Ref_Master_Unit_Table,MATCH($AF74,REF_To_Unit,0),MATCH('Reference - Lookup and Unit'!$A$11,Ref_From_Units,0)) ->  | AP74: 1 | AQ74: 28 | AR74: 265 | AS74: 1 | AT74: Ref_DD_vehicle_Passenger_ | AY74: FALSE | CP74: Ref_DD_DistanceUnit | CR74: 0
AH75: =INDEX(Ref_Master_Unit_Table,MATCH($W75,REF_To_Unit,0),MATCH('Reference - Lookup and Unit'!$A$11,Ref_From_Units,0)) ->  | AJ75: =INDEX(Ref_Master_Unit_Table,MATCH($Z75,REF_To_Unit,0),MATCH('Reference - Lookup and Unit'!$A$11,Ref_From_Units,0)) ->  | AL75: =INDEX(Ref_Master_Unit_Table,MATCH($AC75,REF_To_Unit,0),MATCH('Reference - Lookup and Unit'!$A$11,Ref_From_Units,0)) ->  | AN75: =INDEX(Ref_Master_Unit_Table,MATCH($AF75,REF_To_Unit,0),MATCH('Reference - Lookup and Unit'!$A$11,Ref_From_Units,0)) ->  | AP75: 1 | AQ75: =VLOOKUP("CH4",INDIRECT(IF(Setting_IPCC_GWP_VERSION="1995 IPCC Second Assessment Report (SAR)","Ref_EF_IPCC_GWP_95",IF(Setting_IPCC_GWP_VERSION="2001 IPCC Third Assessment Report (TAR)","Ref_EF_IPCC_GWP_2001",IF(Setting_IPCC_GWP_VERSION="2007 IPCC Fourth Assessment Report","Ref_EF_IPCC_GWP_2007","Ref_EF_IPCC_GWP_2014")))),2,0) -> 28 | AR75: =VLOOKUP("N2O",INDIRECT(IF(Setting_IPCC_GWP_VERSION="1995 IPCC Second Assessment Report (SAR)","Ref_EF_IPCC_GWP_95",IF(Setting_IPCC_GWP_VERSION="2001 IPCC Third Assessment Report (TAR)","Ref_EF_IPCC_GWP_2001", IF(Setting_IPCC_GWP_VERSION="2007 IPCC Fourth Assessment Report","Ref_EF_IPCC_GWP_2007","Ref_EF_IPCC_GWP_2014")))),2,0) -> 265 | AS75: 1 | AT75: Ref_DD_vehicle_Passenger_ | AY75: FALSE | CP75: Ref_DD_DistanceUnit | CR75: 0
V76: =IF(OR($G76="Fuel Use",$G76="Fuel Use and Vehicle Distance"),VLOOKUP($M76,INDIRECT("Ref_EF_ByFuel"&"_"&$D76),3,0),IF(AND($G76="Vehicle Distance (e.g. Road Transport)",$D76="UK"),VLOOKUP($H76,Ref_EF_Vehicle_Distance_UK,3,0),IF(AND($G76="Vehicle Distance (e.g. Road Transport)",OR($D76="US",$D76="Other")),VLOOKUP($H76,INDIRECT("Ref_EF_Vehicle_Distance"&"_"&$D76),15,0),IF(AND($G76="Vehicle Distance (e.g. Road Transport)",ISBLANK($N76),ISBLANK($O76)),VLOOKUP($H76,INDIRECT("Ref_EF_Vehicle_Distance"&"_"&$D76),15,0),IF($G76="Weight Distance (e.g. Freight Transport)",VLOOKUP($H76,INDIRECT("Ref_EF_Weight_Distance"&"_"&$D76),3,0),IF($G76="Custom Vehicle",VLOOKUP($H76,Tbl_vehical_Settings,2,0),IF($G76="Custom Fuel",VLOOKUP($M76,Tbl_Fuel_Settings,2,0),$AU76))))))) ->  | W76: =IF(OR($G76="Fuel Use",$G76="Fuel Use and Vehicle Distance"),VLOOKUP($M76,INDIRECT("Ref_EF_ByFuel"&"_"&$D76),5,0),IF(AND($G76="Vehicle Distance (e.g. Road Transport)",$D76="UK"),VLOOKUP($H76,Ref_EF_Vehicle_Distance_UK,5,0),IF(AND($G76="Vehicle Distance (e.g. Road Transport)",OR($D76="US",$D76="Other")),VLOOKUP($H76,INDIRECT("Ref_EF_Vehicle_Distance"&"_"&$D76),17,0),IF(AND($G76="Vehicle Distance (e.g. Road Transport)",ISBLANK($N76),ISBLANK($O76)),VLOOKUP($H76,INDIRECT("Ref_EF_Vehicle_Distance"&"_"&$D76),17,0),IF($G76="Weight Distance (e.g. Freight Transport)",VLOOKUP($H76,INDIRECT("Ref_EF_Weight_Distance"&"_"&$D76),5,0),IF($G76="Custom Vehicle",VLOOKUP($H76,Tbl_vehical_Settings,6,0),IF($G76="Custom Fuel",VLOOKUP($M76,Tbl_Fuel_Settings,6,0),$AV76))))))) ->  | X76: =IF(OR($G76="Fuel Use",$G76="Fuel Use and Vehicle Distance"),VLOOKUP($M76,INDIRECT("Ref_EF_ByFuel"&"_"&$D76),6,0),IF(AND($G76="Vehicle Distance (e.g. Road Transport)",$D76="UK"),VLOOKUP($H76,Ref_EF_Vehicle_Distance_UK,6,0),IF(AND($G76="Vehicle Distance (e.g. Road Transport)",OR($D76="US",$D76="Other")),VLOOKUP($H76,INDIRECT("Ref_EF_Vehicle_Distance"&"_"&$D76),18,0),IF(AND($G76="Vehicle Distance (e.g. Road Transport)",ISBLANK($N76),ISBLANK($O76)),VLOOKUP($H76,INDIRECT("Ref_EF_Vehicle_Distance"&"_"&$D76),18,0),IF($G76="Weight Distance (e.g. Freight Transport)",VLOOKUP($H76,INDIRECT("Ref_EF_Weight_Distance"&"_"&$D76),6,0),IF($G76="Custom Vehicle",VLOOKUP($H76,Tbl_vehical_Settings,7,0),IF($G76="Custom Fuel",VLOOKUP($M76,Tbl_Fuel_Settings,7,0),$AW76))))))) ->  | Y76: =IF(OR($G76="Fuel Use",$G76="Fuel Use and Vehicle Distance"),VLOOKUP($M76,INDIRECT("Ref_EF_ByFuel"&"_"&$D76),4,0),IF(AND($G76="Vehicle Distance (e.g. Road Transport)",$D76="UK"),VLOOKUP($H76,Ref_EF_Vehicle_Distance_UK,4,0),IF(AND($G76="Vehicle Distance (e.g. Road Transport)",OR($D76="US",$D76="Other")),VLOOKUP($H76,INDIRECT("Ref_EF_Vehicle_Distance"&"_"&$D76),16,0),IF(AND($G76="Vehicle Distance (e.g. Road Transport)",ISBLANK($N76),ISBLANK($O76)),VLOOKUP($H76,INDIRECT("Ref_EF_Vehicle_Distance"&"_"&$D76),16,0),IF($G76="Weight Distance (e.g. Freight Transport)",VLOOKUP($H76,INDIRECT("Ref_EF_Weight_Distance"&"_"&$D76),4,0),IF($G76="Custom Vehicle",VLOOKUP($H76,Tbl_vehical_Settings,5,0),IF($G76="Custom Fuel",VLOOKUP($M76,Tbl_Fuel_Settings,5,0),$AX76))))))) ->  | Z76: =IF(OR($G76="Fuel Use",$G76="Fuel Use and Vehicle Distance"),VLOOKUP($M76,INDIRECT("Ref_EF_ByFuel"&"_"&$D76),5,0),IF(AND($G76="Vehicle Distance (e.g. Road Transport)",$D76="UK"),VLOOKUP($H76,Ref_EF_Vehicle_Distance_UK,5,0),IF(AND($G76="Vehicle Distance (e.g. Road Transport)",OR($D76="US",$D76="Other")),VLOOKUP($H76,INDIRECT("Ref_EF_Vehicle_Distance"&"_"&$D76),17,0),IF(AND($G76="Vehicle Distance (e.g. Road Transport)",ISBLANK($N76),ISBLANK($O76)),VLOOKUP($H76,INDIRECT("Ref_EF_Vehicle_Distance"&"_"&$D76),17,0),IF($G76="Weight Distance (e.g. Freight Transport)",VLOOKUP($H76,INDIRECT("Ref_EF_Weight_Distance"&"_"&$D76),5,0),IF($G76="Custom Vehicle",VLOOKUP($H76,Tbl_vehical_Settings,6,0),IF($G76="Custom Fuel",VLOOKUP($M76,Tbl_Fuel_Settings,6,0),$AV76))))))) ->  | AA76: =IF(OR($G76="Fuel Use",$G76="Fuel Use and Vehicle Distance"),VLOOKUP($M76,INDIRECT("Ref_EF_ByFuel"&"_"&$D76),6,0),IF(AND($G76="Vehicle Distance (e.g. Road Transport)",$D76="UK"),VLOOKUP($H76,Ref_EF_Vehicle_Distance_UK,6,0),IF(AND($G76="Vehicle Distance (e.g. Road Transport)",OR($D76="US",$D76="Other")),VLOOKUP($H76,INDIRECT("Ref_EF_Vehicle_Distance"&"_"&$D76),18,0),IF(AND($G76="Vehicle Distance (e.g. Road Transport)",ISBLANK($N76),ISBLANK($O76)),VLOOKUP($H76,INDIRECT("Ref_EF_Vehicle_Distance"&"_"&$D76),18,0),IF($G76="Weight Distance (e.g. Freight Transport)",VLOOKUP($H76,INDIRECT("Ref_EF_Weight_Distance"&"_"&$D76),6,0),IF($G76="Custom Vehicle",VLOOKUP($H76,Tbl_vehical_Settings,7,0),IF($G76="Custom Fuel",VLOOKUP($M76,Tbl_Fuel_Settings,7,0),$AW76))))))) ->  | AB76: =IF($G76="Fuel Use",VLOOKUP($H76,INDIRECT("Ref_EF_ByFuel_CH4"&"_"&$D76),3,0), IF($G76="Fuel Use and Vehicle Distance",VLOOKUP($H76,INDIRECT("Ref_EF_Vehicle_Distance"&"_"&$D76),3,0),IF($G76="Vehicle Distance (e.g. Road Transport)",VLOOKUP($H76,INDIRECT("Ref_EF_Vehicle_Distance"&"_"&$D76),IF($D76="UK",7,3),0),IF($G76="Weight Distance (e.g. Freight Transport)",VLOOKUP(VLOOKUP($H76,INDIRECT("Ref_EF_Weight_Distance"&"_"&$D76),8,0),INDIRECT("Ref_EF_Weight_Distance_CH4"&"_"&$D76),3,0),IF($G76="Custom Vehicle",VLOOKUP($H76,Tbl_vehical_Settings,3,0),IF($G76="Custom Fuel",VLOOKUP($M76,Tbl_Fuel_Settings,3,0),VLOOKUP($H76,INDIRECT("Ref_EF_Public_Transport"&"_"&$D76),7,0))))))) ->  | AC76: =IF($G76="Fuel Use",VLOOKUP($H76,INDIRECT("Ref_EF_ByFuel_CH4"&"_"&$D76),4,0), IF($G76="Fuel Use and Vehicle Distance",VLOOKUP($H76,INDIRECT("Ref_EF_Vehicle_Distance"&"_"&$D76),4,0),IF($G76="Vehicle Distance (e.g. Road Transport)",VLOOKUP($H76,INDIRECT("Ref_EF_Vehicle_Distance"&"_"&$D76),IF($D76="UK",8,4),0),IF($G76="Weight Distance (e.g. Freight Transport)",VLOOKUP(VLOOKUP($H76,INDIRECT("Ref_EF_Weight_Distance"&"_"&$D76),8,0),INDIRECT("Ref_EF_Weight_Distance_CH4"&"_"&$D76),4,0),IF($G76="Custom Vehicle",VLOOKUP($H76,Tbl_vehical_Settings,6,0),IF($G76="Custom Fuel",VLOOKUP($M76,Tbl_Fuel_Settings,6,0),VLOOKUP($H76,INDIRECT("Ref_EF_Public_Transport"&"_"&$D76),8,0))))))) ->  | AD76: =IF($G76="Fuel Use",VLOOKUP($H76,INDIRECT("Ref_EF_ByFuel_CH4"&"_"&$D76),5,0), IF($G76="Fuel Use and Vehicle Distance",VLOOKUP($H76,INDIRECT("Ref_EF_Vehicle_Distance"&"_"&$D76),5,0),IF($G76="Vehicle Distance (e.g. Road Transport)",VLOOKUP($H76,INDIRECT("Ref_EF_Vehicle_Distance"&"_"&$D76),IF($D76="UK",9,5),0),IF($G76="Weight Distance (e.g. Freight Transport)",VLOOKUP(VLOOKUP($H76,INDIRECT("Ref_EF_Weight_Distance"&"_"&$D76),8,0),INDIRECT("Ref_EF_Weight_Distance_CH4"&"_"&$D76),5,0),IF($G76="Custom Vehicle",VLOOKUP($H76,Tbl_vehical_Settings,7,0),IF($G76="Custom Fuel",VLOOKUP($M76,Tbl_Fuel_Settings,7,0),VLOOKUP($H76,INDIRECT("Ref_EF_Public_Transport"&"_"&$D76),9,0))))))) ->  | AE76: =IF($G76="Fuel Use",VLOOKUP($H76,INDIRECT("Ref_EF_ByFuel_CH4"&"_"&$D76),6,0), IF($G76="Fuel Use and Vehicle Distance",VLOOKUP($H76,INDIRECT("Ref_EF_Vehicle_Distance"&"_"&$D76),6,0),IF($G76="Vehicle Distance (e.g. Road Transport)",VLOOKUP($H76,INDIRECT("Ref_EF_Vehicle_Distance"&"_"&$D76),IF($D76="UK",10,6),0),IF($G76="Weight Distance (e.g. Freight Transport)",VLOOKUP(VLOOKUP($H76,INDIRECT("Ref_EF_Weight_Distance"&"_"&$D76),8,0),INDIRECT("Ref_EF_Weight_Distance_CH4"&"_"&$D76),6,0),IF($G76="Custom Vehicle",VLOOKUP($H76,Tbl_vehical_Settings,4,0),IF($G76="Custom Fuel",VLOOKUP($M76,Tbl_Fuel_Settings,4,0),VLOOKUP($H76,INDIRECT("Ref_EF_Public_Transport"&"_"&$D76),10,0))))))) ->  | AF76: =IF($G76="Fuel Use",VLOOKUP($H76,INDIRECT("Ref_EF_ByFuel_CH4"&"_"&$D76),7,0), IF($G76="Fuel Use and Vehicle Distance",VLOOKUP($H76,INDIRECT("Ref_EF_Vehicle_Distance"&"_"&$D76),7,0),IF($G76="Vehicle Distance (e.g. Road Transport)",VLOOKUP($H76,INDIRECT("Ref_EF_Vehicle_Distance"&"_"&$D76),IF($D76="UK",11,7),0),IF($G76="Weight Distance (e.g. Freight Transport)",VLOOKUP(VLOOKUP($H76,INDIRECT("Ref_EF_Weight_Distance"&"_"&$D76),8,0),INDIRECT("Ref_EF_Weight_Distance_CH4"&"_"&$D76),7,0),IF($G76="Custom Vehicle",VLOOKUP($H76,Tbl_vehical_Settings,6,0),IF($G76="Custom Fuel",VLOOKUP($M76,Tbl_Fuel_Settings,6,0),VLOOKUP($H76,INDIRECT("Ref_EF_Public_Transport"&"_"&$D76),11,0))))))) ->  | AG76: =IF($G76="Fuel Use",VLOOKUP($H76,INDIRECT("Ref_EF_ByFuel_CH4"&"_"&$D76),8,0), IF($G76="Fuel Use and Vehicle Distance",VLOOKUP($H76,INDIRECT("Ref_EF_Vehicle_Distance"&"_"&$D76),8,0),IF($G76="Vehicle Distance (e.g. Road Transport)",VLOOKUP($H76,INDIRECT("Ref_EF_Vehicle_Distance"&"_"&$D76),IF($D76="UK",12,8),0),IF($G76="Weight Distance (e.g. Freight Transport)",VLOOKUP(VLOOKUP($H76,INDIRECT("Ref_EF_Weight_Distance"&"_"&$D76),8,0),INDIRECT("Ref_EF_Weight_Distance_CH4"&"_"&$D76),8,0),IF($G76="Custom Vehicle",VLOOKUP($H76,Tbl_vehical_Settings,7,0),IF($G76="Custom Fuel",VLOOKUP($M76,Tbl_Fuel_Settings,7,0),VLOOKUP($H76,INDIRECT("Ref_EF_Public_Transport"&"_"&$D76),12,0))))))) ->  | AH76: =INDEX(Ref_Master_Unit_Table,MATCH($W76,REF_To_Unit,0),MATCH('Reference - Lookup and Unit'!$A$11,Ref_From_Units,0)) ->  | AJ76: =INDEX(Ref_Master_Unit_Table,MATCH($Z76,REF_To_Unit,0),MATCH('Reference - Lookup and Unit'!$A$11,Ref_From_Units,0)) ->  | AL76: =INDEX(Ref_Master_Unit_Table,MATCH($AC76,REF_To_Unit,0),MATCH('Reference - Lookup and Unit'!$A$11,Ref_From_Units,0)) ->  | AN76: =INDEX(Ref_Master_Unit_Table,MATCH($AF76,REF_To_Unit,0),MATCH('Reference - Lookup and Unit'!$A$11,Ref_From_Units,0)) ->  | AP76: 1 | AQ76: 28 | AR76: 265 | AS76: 1 | AT76: Ref_DD_vehicle_Passenger_ | AY76: FALSE | CP76: Ref_DD_DistanceUnit | CR76: 0
Q77: =IF(ISERROR(IF(OR($CR77="Fuel Use",$CR77="Custom Fuel",$CR77="Fuel Use and Vehicle Distance"),($N77*$V77*$AH77*$AI77),IF($CR77="Weight Distance (e.g. Freight Transport)",($I77*$J77*$V77*$AH77*$AI77),IF($CR77="Passenger Distance (e.g. Public Transport)",($I77*$K77*$V77*$AH77*$AI77),($I77*$V77*$AH77*$AI77))))),"",IF(OR($CR77="Fuel Use",$CR77="Custom Fuel",$CR77="Fuel Use and Vehicle Distance"),($N77*$V77*$AH77*$AI77),IF($CR77="Weight Distance (e.g. Freight Transport)",($I77*$J77*$V77*$AH77*$AI77),IF($CR77="Passenger Distance (e.g. Public Transport)",($I77*$K77*$V77*$AH77*$AI77),($I77*$V77*$AH77*$AI77))))) ->  | R77: =IF(ISERROR(IF($CR77="Weight Distance (e.g. Freight Transport)",($I77*$J77*$AB77*$AL77*$AM77*1000),IF(OR($CR77="Fuel Use",$CR77="Custom Fuel"),($N77*$AB77*$AL77*$AM77*1000),IF($CR77="Passenger Distance (e.g. Public Transport)",($I77*$AB77*$K77*$AL77*$AM77*1000),($I77*$AB77*$AL77*$AM77*1000))))),"",IF($CR77="Weight Distance (e.g. Freight Transport)",($I77*$J77*$AB77*$AL77*$AM77*1000),IF(OR($CR77="Fuel Use",$CR77="Custom Fuel"),($N77*$AB77*$AL77*$AM77*1000),IF($CR77="Passenger Distance (e.g. Public Transport)",($I77*$AB77*$K77*$AL77*$AM77*1000),($I77*$AB77*$AL77*$AM77*1000))))) ->  | S77: =IF(ISERROR(IF($CR77="Weight Distance (e.g. Freight Transport)",($I77*$J77*$AE77*$AN77*$AO77*1000),IF(OR($CR77="Fuel Use",$CR77="Custom Fuel"),($N77*$AE77*$AN77*$AO77*1000),IF($CR77="Passenger Distance (e.g. Public Transport)",($I77*$AE77*$AN77*$K77*$AO77*1000),($I77*$AE77*$AN77*$AO77*1000))))),"",IF($CR77="Weight Distance (e.g. Freight Transport)",($I77*$J77*$AE77*$AN77*$AO77*1000),IF(OR($CR77="Fuel Use",$CR77="Custom Fuel"),($N77*$AE77*$AN77*$AO77*1000),IF($CR77="Passenger Distance (e.g. Public Transport)",($I77*$AE77*$AN77*$K77*$AO77*1000),($I77*$AE77*$AN77*$AO77*1000))))) ->  | U77: =IF(ISERROR(IF(OR($CR77="Fuel Use",$CR77="Custom Fuel",$CR77="Fuel Use and Vehicle Distance"),($N77*$Y77*$AJ77*$AK77),IF($CR77="Weight Distance (e.g. Freight Transport)",($I77*$J77*$Y77*$AJ77*$AK77),IF($CR77="Passenger Distance (e.g. Public Transport)",($I77*$Y77*$AJ77*$AK77*$K77),($I77*$Y77*$AJ77*$AK77))))),"",IF(OR($CR77="Fuel Use",$CR77="Custom Fuel",$CR77="Fuel Use and Vehicle Distance"),($N77*$Y77*$AJ77*$AK77),IF($CR77="Weight Distance (e.g. Freight Transport)",($I77*$J77*$Y77*$AJ77*$AK77),IF($CR77="Passenger Distance (e.g. Public Transport)",($I77*$Y77*$AJ77*$AK77*$K77),($I77*$Y77*$AJ77*$AK77))))) ->  | AH77: =INDEX(Ref_Master_Unit_Table,MATCH($W77,REF_To_Unit,0),MATCH('Reference - Lookup and Unit'!$A$11,Ref_From_Units,0)) ->  | AJ77: =INDEX(Ref_Master_Unit_Table,MATCH($Z77,REF_To_Unit,0),MATCH('Reference - Lookup and Unit'!$A$11,Ref_From_Units,0)) ->  | AL77: =INDEX(Ref_Master_Unit_Table,MATCH($AC77,REF_To_Unit,0),MATCH('Reference - Lookup and Unit'!$A$11,Ref_From_Units,0)) ->  | AN77: =INDEX(Ref_Master_Unit_Table,MATCH($AF77,REF_To_Unit,0),MATCH('Reference - Lookup and Unit'!$A$11,Ref_From_Units,0)) ->  | AP77: 1 | AQ77: 28 | AR77: 265 | AS77: 1 | AT77: =IF(OR($G77="Fuel Use",$G77="Custom fuel"),(IF(E77<>"",("Ref_DD_vehicle_FuelUse"&"_"&D77 &"_"&E77),"Ref_DD_vehicle_FuelUse"&"_"&D77)),IF(OR($G77="Vehicle Distance (e.g. Road Transport)",$G77="Fuel Use and Vehicle Distance"),(IF(E77<>"",("Ref_DD_vehicle_VehicleDistance"&"_"&D77 &"_"&E77),"Ref_DD_vehicle_VehicleDistance"&"_"&D77)),IF($G77="Weight Distance (e.g. Freight Transport)",(IF(E77<>"",("Ref_DD_vehicle_WeightDistance"&"_"&D77 &"_"&E77),"Ref_DD_vehicle_WeightDistance"&"_"&D77)),(IF(E77<>"",("Ref_DD_vehicle_Passenger"&"_"&D77 &"_"&E77),"Ref_DD_vehicle_Passenger"&"_"&D77))))) -> Ref_DD_vehicle_Passenger_ | AY77: FALSE | CP77: =IF($G77="Weight Distance (e.g. Freight Transport)","Ref_DD_WeightDistanceUnits",IF($G77="Passenger Distance (e.g. Public Transport)","Ref_DD_PasengerDistanceUnits",IF($G77="Custom Vehicle","Set_DD_Vehicle_Units","Ref_DD_DistanceUnit"))) -> Ref_DD_DistanceUnit | CR77: =IF($G77="Custom vehicle",IF(OR($L77="Passenger Mile",$L77="Passenger Kilometer"),"Passenger Distance (e.g. Public Transport)",IF(OR($L77="Tonne Mile",$L77="Tonne Kilometer"),"Weight Distance (e.g. Freight Transport)","Vehicle Distance (e.g. Road Transport)")),$G77) -> 0
AH78: =INDEX(Ref_Master_Unit_Table,MATCH($W78,REF_To_Unit,0),MATCH('Reference - Lookup and Unit'!$A$11,Ref_From_Units,0)) ->  | AJ78: =INDEX(Ref_Master_Unit_Table,MATCH($Z78,REF_To_Unit,0),MATCH('Reference - Lookup and Unit'!$A$11,Ref_From_Units,0)) ->  | AL78: =INDEX(Ref_Master_Unit_Table,MATCH($AC78,REF_To_Unit,0),MATCH('Reference - Lookup and Unit'!$A$11,Ref_From_Units,0)) ->  | AN78: =INDEX(Ref_Master_Unit_Table,MATCH($AF78,REF_To_Unit,0),MATCH('Reference - Lookup and Unit'!$A$11,Ref_From_Units,0)) ->  | AP78: 1 | AQ78: 28 | AR78: 265 | AS78: 1 | AT78: Ref_DD_vehicle_Passenger_ | AY78: FALSE | CP78: Ref_DD_DistanceUnit | CR78: 0
T79: =IF(AND(ISERROR($Q79*$AP79)=FALSE,ISERROR((R79/1000)*$AQ79)=FALSE,ISERROR((S79/1000)*$AR79)=FALSE),($Q79*$AP79)+((R79/1000)*$AQ79)+((S79/1000)*$AR79),IF(AND(ISERROR($Q79*$AP79)=FALSE,ISERROR((R79/1000)*$AQ79)=FALSE,ISERROR((S79/1000)*$AR79)=TRUE),($Q79*$AP79)+((R79/1000)*$AQ79),IF(AND(ISERROR($Q79*$AP79)=FALSE,ISERROR((R79/1000)*$AQ79)=TRUE,ISERROR((S79/1000)*$AR79)=FALSE),($Q79*$AP79)+((S79/1000)*$AR79),IF(AND(ISERROR($Q79*$AP79)=FALSE,ISERROR((R79/1000)*$AQ79)=TRUE,ISERROR((S79/1000)*$AR79)=TRUE),($Q79*$AP79),IF(AND(ISERROR($Q79*$AP79)=TRUE,ISERROR((R79/1000)*$AQ79)=FALSE,ISERROR((S79/1000)*$AR79)=FALSE),((R79/1000)*$AQ79)+((S79/1000)*$AR79),IF(AND(ISERROR($Q79*$AP79)=TRUE,ISERROR((R79/1000)*$AQ79)=FALSE,ISERROR((S79/1000)*$AR79)=TRUE),((R79/1000)*$AQ79),CQ79)))))) ->  | AH79: =INDEX(Ref_Master_Unit_Table,MATCH($W79,REF_To_Unit,0),MATCH('Reference - Lookup and Unit'!$A$11,Ref_From_Units,0)) ->  | AI79: =INDEX(Ref_Master_Unit_Table,MATCH(IF(AND($D79="UK",$G79="Vehicle Distance (e.g. Road Transport)"),$L79,IF(ISBLANK($O79),$L79,$O79)),Ref_From_Units,0),MATCH($X79,REF_To_Unit,0)) ->  | AJ79: =INDEX(Ref_Master_Unit_Table,MATCH($Z79,REF_To_Unit,0),MATCH('Reference - Lookup and Unit'!$A$11,Ref_From_Units,0)) ->  | AK79: =INDEX(Ref_Master_Unit_Table,MATCH(IF(AND($D79="UK",$G79="Vehicle Distance (e.g. Road Transport)"),$L79,IF(ISBLANK($O79),$L79,$O79)),Ref_From_Units,0),MATCH($AA79,REF_To_Unit,0)) ->  | AL79: =INDEX(Ref_Master_Unit_Table,MATCH($AC79,REF_To_Unit,0),MATCH('Reference - Lookup and Unit'!$A$11,Ref_From_Units,0)) ->  | AM79: =INDEX(Ref_Master_Unit_Table,MATCH(IF(OR($G79="Fuel Use",$G79="Custom Fuel"),$O79,$L79),Ref_From_Units,0),MATCH($AD79,REF_To_Unit,0)) ->  | AN79: =INDEX(Ref_Master_Unit_Table,MATCH($AF79,REF_To_Unit,0),MATCH('Reference - Lookup and Unit'!$A$11,Ref_From_Units,0)) ->  | AO79: =INDEX(Ref_Master_Unit_Table,MATCH(IF(OR($G79="Fuel Use",$G79="Custom Fuel"),$O79,$L79),Ref_From_Units,0),MATCH($AD79,REF_To_Unit,0)) ->  | AP79: 1 | AQ79: 28 | AR79: 265 | AS79: 1 | AT79: Ref_DD_vehicle_Passenger_ | AY79: FALSE | CP79: Ref_DD_DistanceUnit | CQ79: =IF(AND(ISERROR($Q79*$AP79)=TRUE,ISERROR((R79/1000)*$AQ79)=TRUE,ISERROR((S79/1000)*$AR79)=FALSE),((S79/1000)*$AR79),"") ->  | CR79: 0
AH80: =INDEX(Ref_Master_Unit_Table,MATCH($W80,REF_To_Unit,0),MATCH('Reference - Lookup and Unit'!$A$11,Ref_From_Units,0)) ->  | AJ80: =INDEX(Ref_Master_Unit_Table,MATCH($Z80,REF_To_Unit,0),MATCH('Reference - Lookup and Unit'!$A$11,Ref_From_Units,0)) ->  | AL80: =INDEX(Ref_Master_Unit_Table,MATCH($AC80,REF_To_Unit,0),MATCH('Reference - Lookup and Unit'!$A$11,Ref_From_Units,0)) ->  | AN80: =INDEX(Ref_Master_Unit_Table,MATCH($AF80,REF_To_Unit,0),MATCH('Reference - Lookup and Unit'!$A$11,Ref_From_Units,0)) ->  | AP80: 1 | AQ80: 28 | AR80: 265 | AS80: 1 | AT80: Ref_DD_vehicle_Passenger_ | AY80: =IF(ISERROR(COLUMN(INDIRECT($AT80))),FALSE,TRUE) -> FALSE | AZ80: =IF(AND($F80="Scope 1",OR($G80="Fuel Use",$G80="Custom Fuel",$G80="Fuel Use and Vehicle Distance")),$Q80,IF(AND($F80="Scope 1",OR($G80="Vehicle Distance (e.g. Road Transport)",$G80="Custom Vehicle"),ISBLANK($N80)=FALSE),$Q80,"")) ->  | BA80: =IF(AND($F80="Scope 1",AND(OR($G80="Vehicle Distance (e.g. Road Transport)",$G80="Custom Vehicle"),OR($D80="US",$D80="Other"),ISBLANK($N80)=TRUE)),$Q80,IF(AND($F80="Scope 1",$G80<>"Fuel Use",ISBLANK($N80)=TRUE),$Q80,"")) ->  | BB80: =IF(AND(OR(G80="Fuel Use",G80="Custom Fuel"),F80="Scope 1",ISBLANK(I80)=TRUE),R80,"") ->  | BC80: =IF(AND(OR(G80="Fuel Use",G80="Custom Fuel"),F80="Scope 1",ISBLANK(I80)=FALSE),R80,IF(AND(G80<>"Fuel Use",G80<>"Custom Fuel",F80="Scope 1"),R80,"")) ->  | BD80: =IF(AND(OR(G80="Fuel Use",G80="Custom Fuel"),F80="Scope 1",ISBLANK(I80)=TRUE),S80,"") ->  | BE80: =IF(AND(OR(G80="Fuel Use",G80="Custom Fuel"),F80="Scope 1",ISBLANK(I80)=FALSE),S80,IF(AND(G80<>"Fuel Use",G80<>"Custom Fuel",F80="Scope 1"),S80,"")) ->  | BF80: =IF(AND($F80="Scope 3",OR($G80="Fuel Use",$G80="Custom Fuel",$G80="Fuel Use and Vehicle Distance")),$Q80,IF(AND($F80="Scope 3",OR($G80="Vehicle Distance (e.g. Road Transport)",$G80="Custom Vehicle"),ISBLANK($N80)=FALSE),$Q80,"")) ->  | BG80: =IF(AND($F80="Scope 3",AND(OR($G80="Vehicle Distance (e.g. Road Transport)",$G80="Custom Vehicle"),OR($D80="US",$D80="Other"),ISBLANK($N80)=TRUE)),$Q80,IF(AND($F80="Scope 3",$G80<>"Fuel Use",ISBLANK($N80)=TRUE),$Q80,"")) ->  | BH80: =IF(AND(OR(G80="Fuel Use",G80="Custom Fuel"),F80="Scope 3",ISBLANK(I80)=TRUE),R80,"") ->  | BI80: =IF(AND(OR(G80="Fuel Use",G80="Custom Fuel"),F80="Scope 3",ISBLANK(I80)=FALSE),R80,IF(AND(G80<>"Fuel Use",G80<>"Custom Fuel",F80="Scope 3"),R80,"")) ->  | BJ80: =IF(AND(OR(G80="Fuel Use",G80="Custom Fuel"),F80="Scope 3",ISBLANK(I80)=TRUE),S80,"") ->  | BK80: =IF(AND(OR(G80="Fuel Use",G80="Custom Fuel"),F80="Scope 3",ISBLANK(I80)=FALSE),S80,IF(AND(G80<>"Fuel Use",G80<>"Custom Fuel",F80="Scope 3"),S80,"")) ->  | BL80: =IF(OR($G80="Fuel Use",$G80="Custom Fuel"),$U80,IF(AND(OR($G80="Vehicle Distance (e.g. Road Transport)",$G80="Custom Vehicle"),ISBLANK($N80)=FALSE),$U80,"")) ->  | BM80: =IF(AND(AND(OR($G80="Vehicle Distance (e.g. Road Transport)",$G80="Custom Vehicle"),OR($D80="US",$D80="Other"),ISBLANK($N80)=TRUE)),$U80,IF(AND($G80<>"Fuel Use",ISBLANK($N80)=TRUE),$U80,"")) ->  | CP80: Ref_DD_DistanceUnit | CR80: 0
AH81: =INDEX(Ref_Master_Unit_Table,MATCH($W81,REF_To_Unit,0),MATCH('Reference - Lookup and Unit'!$A$11,Ref_From_Units,0)) ->  | AJ81: =INDEX(Ref_Master_Unit_Table,MATCH($Z81,REF_To_Unit,0),MATCH('Reference - Lookup and Unit'!$A$11,Ref_From_Units,0)) ->  | AL81: =INDEX(Ref_Master_Unit_Table,MATCH($AC81,REF_To_Unit,0),MATCH('Reference - Lookup and Unit'!$A$11,Ref_From_Units,0)) ->  | AN81: =INDEX(Ref_Master_Unit_Table,MATCH($AF81,REF_To_Unit,0),MATCH('Reference - Lookup and Unit'!$A$11,Ref_From_Units,0)) ->  | AP81: 1 | AQ81: 28 | AR81: 265 | AS81: 1 | AT81: Ref_DD_vehicle_Passenger_ | AY81: FALSE | CP81: Ref_DD_DistanceUnit | CR81: 0
AH82: =INDEX(Ref_Master_Unit_Table,MATCH($W82,REF_To_Unit,0),MATCH('Reference - Lookup and Unit'!$A$11,Ref_From_Units,0)) ->  | AJ82: =INDEX(Ref_Master_Unit_Table,MATCH($Z82,REF_To_Unit,0),MATCH('Reference - Lookup and Unit'!$A$11,Ref_From_Units,0)) ->  | AL82: =INDEX(Ref_Master_Unit_Table,MATCH($AC82,REF_To_Unit,0),MATCH('Reference - Lookup and Unit'!$A$11,Ref_From_Units,0)) ->  | AN82: =INDEX(Ref_Master_Unit_Table,MATCH($AF82,REF_To_Unit,0),MATCH('Reference - Lookup and Unit'!$A$11,Ref_From_Units,0)) ->  | AP82: 1 | AQ82: 28 | AR82: 265 | AS82: 1 | AT82: Ref_DD_vehicle_Passenger_ | AY82: FALSE | CP82: Ref_DD_DistanceUnit | CR82: 0
AH83: =INDEX(Ref_Master_Unit_Table,MATCH($W83,REF_To_Unit,0),MATCH('Reference - Lookup and Unit'!$A$11,Ref_From_Units,0)) ->  | AJ83: =INDEX(Ref_Master_Unit_Table,MATCH($Z83,REF_To_Unit,0),MATCH('Reference - Lookup and Unit'!$A$11,Ref_From_Units,0)) ->  | AL83: =INDEX(Ref_Master_Unit_Table,MATCH($AC83,REF_To_Unit,0),MATCH('Reference - Lookup and Unit'!$A$11,Ref_From_Units,0)) ->  | AN83: =INDEX(Ref_Master_Unit_Table,MATCH($AF83,REF_To_Unit,0),MATCH('Reference - Lookup and Unit'!$A$11,Ref_From_Units,0)) ->  | AP83: 1 | AQ83: 28 | AR83: 265 | AS83: 1 | AT83: Ref_DD_vehicle_Passenger_ | AY83: FALSE | CP83: Ref_DD_DistanceUnit | CR83: 0
AH84: =INDEX(Ref_Master_Unit_Table,MATCH($W84,REF_To_Unit,0),MATCH('Reference - Lookup and Unit'!$A$11,Ref_From_Units,0)) ->  | AJ84: =INDEX(Ref_Master_Unit_Table,MATCH($Z84,REF_To_Unit,0),MATCH('Reference - Lookup and Unit'!$A$11,Ref_From_Units,0)) ->  | AL84: =INDEX(Ref_Master_Unit_Table,MATCH($AC84,REF_To_Unit,0),MATCH('Reference - Lookup and Unit'!$A$11,Ref_From_Units,0)) ->  | AN84: =INDEX(Ref_Master_Unit_Table,MATCH($AF84,REF_To_Unit,0),MATCH('Reference - Lookup and Unit'!$A$11,Ref_From_Units,0)) ->  | AP84: 1 | AQ84: 28 | AR84: 265 | AS84: 1 | AT84: Ref_DD_vehicle_Passenger_ | AY84: FALSE | CP84: Ref_DD_DistanceUnit | CR84: 0
AH85: =INDEX(Ref_Master_Unit_Table,MATCH($W85,REF_To_Unit,0),MATCH('Reference - Lookup and Unit'!$A$11,Ref_From_Units,0)) ->  | AJ85: =INDEX(Ref_Master_Unit_Table,MATCH($Z85,REF_To_Unit,0),MATCH('Reference - Lookup and Unit'!$A$11,Ref_From_Units,0)) ->  | AL85: =INDEX(Ref_Master_Unit_Table,MATCH($AC85,REF_To_Unit,0),MATCH('Reference - Lookup and Unit'!$A$11,Ref_From_Units,0)) ->  | AN85: =INDEX(Ref_Master_Unit_Table,MATCH($AF85,REF_To_Unit,0),MATCH('Reference - Lookup and Unit'!$A$11,Ref_From_Units,0)) ->  | AP85: 1 | AQ85: 28 | AR85: 265 | AS85: 1 | AT85: Ref_DD_vehicle_Passenger_ | AY85: FALSE | CP85: Ref_DD_DistanceUnit | CR85: 0
AH86: =INDEX(Ref_Master_Unit_Table,MATCH($W86,REF_To_Unit,0),MATCH('Reference - Lookup and Unit'!$A$11,Ref_From_Units,0)) ->  | AJ86: =INDEX(Ref_Master_Unit_Table,MATCH($Z86,REF_To_Unit,0),MATCH('Reference - Lookup and Unit'!$A$11,Ref_From_Units,0)) ->  | AL86: =INDEX(Ref_Master_Unit_Table,MATCH($AC86,REF_To_Unit,0),MATCH('Reference - Lookup and Unit'!$A$11,Ref_From_Units,0)) ->  | AN86: =INDEX(Ref_Master_Unit_Table,MATCH($AF86,REF_To_Unit,0),MATCH('Reference - Lookup and Unit'!$A$11,Ref_From_Units,0)) ->  | AP86: 1 | AQ86: 28 | AR86: 265 | AS86: 1 | AT86: Ref_DD_vehicle_Passenger_ | AY86: FALSE | CP86: Ref_DD_DistanceUnit | CR86: 0
AH87: =INDEX(Ref_Master_Unit_Table,MATCH($W87,REF_To_Unit,0),MATCH('Reference - Lookup and Unit'!$A$11,Ref_From_Units,0)) ->  | AJ87: =INDEX(Ref_Master_Unit_Table,MATCH($Z87,REF_To_Unit,0),MATCH('Reference - Lookup and Unit'!$A$11,Ref_From_Units,0)) ->  | AL87: =INDEX(Ref_Master_Unit_Table,MATCH($AC87,REF_To_Unit,0),MATCH('Reference - Lookup and Unit'!$A$11,Ref_From_Units,0)) ->  | AN87: =INDEX(Ref_Master_Unit_Table,MATCH($AF87,REF_To_Unit,0),MATCH('Reference - Lookup and Unit'!$A$11,Ref_From_Units,0)) ->  | AP87: 1 | AQ87: 28 | AR87: 265 | AS87: 1 | AT87: Ref_DD_vehicle_Passenger_ | AY87: FALSE | CP87: Ref_DD_DistanceUnit | CR87: 0
AH88: =INDEX(Ref_Master_Unit_Table,MATCH($W88,REF_To_Unit,0),MATCH('Reference - Lookup and Unit'!$A$11,Ref_From_Units,0)) ->  | AJ88: =INDEX(Ref_Master_Unit_Table,MATCH($Z88,REF_To_Unit,0),MATCH('Reference - Lookup and Unit'!$A$11,Ref_From_Units,0)) ->  | AL88: =INDEX(Ref_Master_Unit_Table,MATCH($AC88,REF_To_Unit,0),MATCH('Reference - Lookup and Unit'!$A$11,Ref_From_Units,0)) ->  | AN88: =INDEX(Ref_Master_Unit_Table,MATCH($AF88,REF_To_Unit,0),MATCH('Reference - Lookup and Unit'!$A$11,Ref_From_Units,0)) ->  | AP88: 1 | AQ88: 28 | AR88: 265 | AS88: 1 | AT88: Ref_DD_vehicle_Passenger_ | AY88: FALSE | CP88: Ref_DD_DistanceUnit | CR88: 0
AH89: =INDEX(Ref_Master_Unit_Table,MATCH($W89,REF_To_Unit,0),MATCH('Reference - Lookup and Unit'!$A$11,Ref_From_Units,0)) ->  | AJ89: =INDEX(Ref_Master_Unit_Table,MATCH($Z89,REF_To_Unit,0),MATCH('Reference - Lookup and Unit'!$A$11,Ref_From_Units,0)) ->  | AL89: =INDEX(Ref_Master_Unit_Table,MATCH($AC89,REF_To_Unit,0),MATCH('Reference - Lookup and Unit'!$A$11,Ref_From_Units,0)) ->  | AN89: =INDEX(Ref_Master_Unit_Table,MATCH($AF89,REF_To_Unit,0),MATCH('Reference - Lookup and Unit'!$A$11,Ref_From_Units,0)) ->  | AP89: 1 | AQ89: 28 | AR89: 265 | AS89: 1 | AT89: Ref_DD_vehicle_Passenger_ | AY89: FALSE | CP89: Ref_DD_DistanceUnit | CR89: 0
AH90: =INDEX(Ref_Master_Unit_Table,MATCH($W90,REF_To_Unit,0),MATCH('Reference - Lookup and Unit'!$A$11,Ref_From_Units,0)) ->  | AJ90: =INDEX(Ref_Master_Unit_Table,MATCH($Z90,REF_To_Unit,0),MATCH('Reference - Lookup and Unit'!$A$11,Ref_From_Units,0)) ->  | AL90: =INDEX(Ref_Master_Unit_Table,MATCH($AC90,REF_To_Unit,0),MATCH('Reference - Lookup and Unit'!$A$11,Ref_From_Units,0)) ->  | AN90: =INDEX(Ref_Master_Unit_Table,MATCH($AF90,REF_To_Unit,0),MATCH('Reference - Lookup and Unit'!$A$11,Ref_From_Units,0)) ->  | AP90: 1 | AQ90: 28 | AR90: 265 | AS90: 1 | AT90: Ref_DD_vehicle_Passenger_ | AY90: FALSE | CP90: Ref_DD_DistanceUnit | CR90: 0
AH91: =INDEX(Ref_Master_Unit_Table,MATCH($W91,REF_To_Unit,0),MATCH('Reference - Lookup and Unit'!$A$11,Ref_From_Units,0)) ->  | AJ91: =INDEX(Ref_Master_Unit_Table,MATCH($Z91,REF_To_Unit,0),MATCH('Reference - Lookup and Unit'!$A$11,Ref_From_Units,0)) ->  | AL91: =INDEX(Ref_Master_Unit_Table,MATCH($AC91,REF_To_Unit,0),MATCH('Reference - Lookup and Unit'!$A$11,Ref_From_Units,0)) ->  | AN91: =INDEX(Ref_Master_Unit_Table,MATCH($AF91,REF_To_Unit,0),MATCH('Reference - Lookup and Unit'!$A$11,Ref_From_Units,0)) ->  | AP91: 1 | AQ91: 28 | AR91: 265 | AS91: 1 | AT91: Ref_DD_vehicle_Passenger_ | AY91: FALSE | CP91: Ref_DD_DistanceUnit | CR91: 0
AH92: =INDEX(Ref_Master_Unit_Table,MATCH($W92,REF_To_Unit,0),MATCH('Reference - Lookup and Unit'!$A$11,Ref_From_Units,0)) ->  | AJ92: =INDEX(Ref_Master_Unit_Table,MATCH($Z92,REF_To_Unit,0),MATCH('Reference - Lookup and Unit'!$A$11,Ref_From_Units,0)) ->  | AL92: =INDEX(Ref_Master_Unit_Table,MATCH($AC92,REF_To_Unit,0),MATCH('Reference - Lookup and Unit'!$A$11,Ref_From_Units,0)) ->  | AN92: =INDEX(Ref_Master_Unit_Table,MATCH($AF92,REF_To_Unit,0),MATCH('Reference - Lookup and Unit'!$A$11,Ref_From_Units,0)) ->  | AP92: 1 | AQ92: 28 | AR92: 265 | AS92: 1 | AT92: Ref_DD_vehicle_Passenger_ | AY92: FALSE | CP92: Ref_DD_DistanceUnit | CR92: 0
AH93: =INDEX(Ref_Master_Unit_Table,MATCH($W93,REF_To_Unit,0),MATCH('Reference - Lookup and Unit'!$A$11,Ref_From_Units,0)) ->  | AJ93: =INDEX(Ref_Master_Unit_Table,MATCH($Z93,REF_To_Unit,0),MATCH('Reference - Lookup and Unit'!$A$11,Ref_From_Units,0)) ->  | AL93: =INDEX(Ref_Master_Unit_Table,MATCH($AC93,REF_To_Unit,0),MATCH('Reference - Lookup and Unit'!$A$11,Ref_From_Units,0)) ->  | AN93: =INDEX(Ref_Master_Unit_Table,MATCH($AF93,REF_To_Unit,0),MATCH('Reference - Lookup and Unit'!$A$11,Ref_From_Units,0)) ->  | AP93: 1 | AQ93: 28 | AR93: 265 | AS93: 1 | AT93: Ref_DD_vehicle_Passenger_ | AY93: FALSE | CP93: Ref_DD_DistanceUnit | CR93: 0
AH94: =INDEX(Ref_Master_Unit_Table,MATCH($W94,REF_To_Unit,0),MATCH('Reference - Lookup and Unit'!$A$11,Ref_From_Units,0)) ->  | AJ94: =INDEX(Ref_Master_Unit_Table,MATCH($Z94,REF_To_Unit,0),MATCH('Reference - Lookup and Unit'!$A$11,Ref_From_Units,0)) ->  | AL94: =INDEX(Ref_Master_Unit_Table,MATCH($AC94,REF_To_Unit,0),MATCH('Reference - Lookup and Unit'!$A$11,Ref_From_Units,0)) ->  | AN94: =INDEX(Ref_Master_Unit_Table,MATCH($AF94,REF_To_Unit,0),MATCH('Reference - Lookup and Unit'!$A$11,Ref_From_Units,0)) ->  | AP94: 1 | AQ94: 28 | AR94: 265 | AS94: 1 | AT94: Ref_DD_vehicle_Passenger_ | AY94: FALSE | CP94: Ref_DD_DistanceUnit | CR94: 0
AH95: =INDEX(Ref_Master_Unit_Table,MATCH($W95,REF_To_Unit,0),MATCH('Reference - Lookup and Unit'!$A$11,Ref_From_Units,0)) ->  | AJ95: =INDEX(Ref_Master_Unit_Table,MATCH($Z95,REF_To_Unit,0),MATCH('Reference - Lookup and Unit'!$A$11,Ref_From_Units,0)) ->  | AL95: =INDEX(Ref_Master_Unit_Table,MATCH($AC95,REF_To_Unit,0),MATCH('Reference - Lookup and Unit'!$A$11,Ref_From_Units,0)) ->  | AN95: =INDEX(Ref_Master_Unit_Table,MATCH($AF95,REF_To_Unit,0),MATCH('Reference - Lookup and Unit'!$A$11,Ref_From_Units,0)) ->  | AP95: 1 | AQ95: 28 | AR95: 265 | AS95: 1 | AT95: Ref_DD_vehicle_Passenger_ | AY95: FALSE | CP95: Ref_DD_DistanceUnit | CR95: 0
AH96: =INDEX(Ref_Master_Unit_Table,MATCH($W96,REF_To_Unit,0),MATCH('Reference - Lookup and Unit'!$A$11,Ref_From_Units,0)) ->  | AJ96: =INDEX(Ref_Master_Unit_Table,MATCH($Z96,REF_To_Unit,0),MATCH('Reference - Lookup and Unit'!$A$11,Ref_From_Units,0)) ->  | AL96: =INDEX(Ref_Master_Unit_Table,MATCH($AC96,REF_To_Unit,0),MATCH('Reference - Lookup and Unit'!$A$11,Ref_From_Units,0)) ->  | AN96: =INDEX(Ref_Master_Unit_Table,MATCH($AF96,REF_To_Unit,0),MATCH('Reference - Lookup and Unit'!$A$11,Ref_From_Units,0)) ->  | AP96: 1 | AQ96: 28 | AR96: 265 | AS96: 1 | AT96: Ref_DD_vehicle_Passenger_ | AY96: FALSE | CP96: Ref_DD_DistanceUnit | CR96: 0
AH97: =INDEX(Ref_Master_Unit_Table,MATCH($W97,REF_To_Unit,0),MATCH('Reference - Lookup and Unit'!$A$11,Ref_From_Units,0)) ->  | AJ97: =INDEX(Ref_Master_Unit_Table,MATCH($Z97,REF_To_Unit,0),MATCH('Reference - Lookup and Unit'!$A$11,Ref_From_Units,0)) ->  | AL97: =INDEX(Ref_Master_Unit_Table,MATCH($AC97,REF_To_Unit,0),MATCH('Reference - Lookup and Unit'!$A$11,Ref_From_Units,0)) ->  | AN97: =INDEX(Ref_Master_Unit_Table,MATCH($AF97,REF_To_Unit,0),MATCH('Reference - Lookup and Unit'!$A$11,Ref_From_Units,0)) ->  | AP97: 1 | AQ97: 28 | AR97: 265 | AS97: 1 | AT97: Ref_DD_vehicle_Passenger_ | AY97: FALSE | CP97: Ref_DD_DistanceUnit | CR97: 0
AH98: =INDEX(Ref_Master_Unit_Table,MATCH($W98,REF_To_Unit,0),MATCH('Reference - Lookup and Unit'!$A$11,Ref_From_Units,0)) ->  | AJ98: =INDEX(Ref_Master_Unit_Table,MATCH($Z98,REF_To_Unit,0),MATCH('Reference - Lookup and Unit'!$A$11,Ref_From_Units,0)) ->  | AL98: =INDEX(Ref_Master_Unit_Table,MATCH($AC98,REF_To_Unit,0),MATCH('Reference - Lookup and Unit'!$A$11,Ref_From_Units,0)) ->  | AN98: =INDEX(Ref_Master_Unit_Table,MATCH($AF98,REF_To_Unit,0),MATCH('Reference - Lookup and Unit'!$A$11,Ref_From_Units,0)) ->  | AP98: 1 | AQ98: 28 | AR98: 265 | AS98: 1 | AT98: Ref_DD_vehicle_Passenger_ | AY98: FALSE | CP98: Ref_DD_DistanceUnit | CR98: 0
AH99: =INDEX(Ref_Master_Unit_Table,MATCH($W99,REF_To_Unit,0),MATCH('Reference - Lookup and Unit'!$A$11,Ref_From_Units,0)) ->  | AJ99: =INDEX(Ref_Master_Unit_Table,MATCH($Z99,REF_To_Unit,0),MATCH('Reference - Lookup and Unit'!$A$11,Ref_From_Units,0)) ->  | AL99: =INDEX(Ref_Master_Unit_Table,MATCH($AC99,REF_To_Unit,0),MATCH('Reference - Lookup and Unit'!$A$11,Ref_From_Units,0)) ->  | AN99: =INDEX(Ref_Master_Unit_Table,MATCH($AF99,REF_To_Unit,0),MATCH('Reference - Lookup and Unit'!$A$11,Ref_From_Units,0)) ->  | AP99: 1 | AQ99: 28 | AR99: 265 | AS99: 1 | AT99: Ref_DD_vehicle_Passenger_ | AY99: FALSE | CP99: Ref_DD_DistanceUnit | CR99: 0
AH100: =INDEX(Ref_Master_Unit_Table,MATCH($W100,REF_To_Unit,0),MATCH('Reference - Lookup and Unit'!$A$11,Ref_From_Units,0)) ->  | AJ100: =INDEX(Ref_Master_Unit_Table,MATCH($Z100,REF_To_Unit,0),MATCH('Reference - Lookup and Unit'!$A$11,Ref_From_Units,0)) ->  | AL100: =INDEX(Ref_Master_Unit_Table,MATCH($AC100,REF_To_Unit,0),MATCH('Reference - Lookup and Unit'!$A$11,Ref_From_Units,0)) ->  | AN100: =INDEX(Ref_Master_Unit_Table,MATCH($AF100,REF_To_Unit,0),MATCH('Reference - Lookup and Unit'!$A$11,Ref_From_Units,0)) ->  | AP100: 1 | AQ100: 28 | AR100: 265 | AS100: 1 | AT100: Ref_DD_vehicle_Passenger_ | AY100: FALSE | CP100: Ref_DD_DistanceUnit | CR100: 0
T101: =IF(AND(ISERROR($Q101*$AP101)=FALSE,ISERROR((R101/1000)*$AQ101)=FALSE,ISERROR((S101/1000)*$AR101)=FALSE),($Q101*$AP101)+((R101/1000)*$AQ101)+((S101/1000)*$AR101),IF(AND(ISERROR($Q101*$AP101)=FALSE,ISERROR((R101/1000)*$AQ101)=FALSE,ISERROR((S101/1000)*$AR101)=TRUE),($Q101*$AP101)+((R101/1000)*$AQ101),IF(AND(ISERROR($Q101*$AP101)=FALSE,ISERROR((R101/1000)*$AQ101)=TRUE,ISERROR((S101/1000)*$AR101)=FALSE),($Q101*$AP101)+((S101/1000)*$AR101),IF(AND(ISERROR($Q101*$AP101)=FALSE,ISERROR((R101/1000)*$AQ101)=TRUE,ISERROR((S101/1000)*$AR101)=TRUE),($Q101*$AP101),IF(AND(ISERROR($Q101*$AP101)=TRUE,ISERROR((R101/1000)*$AQ101)=FALSE,ISERROR((S101/1000)*$AR101)=FALSE),((R101/1000)*$AQ101)+((S101/1000)*$AR101),IF(AND(ISERROR($Q101*$AP101)=TRUE,ISERROR((R101/1000)*$AQ101)=FALSE,ISERROR((S101/1000)*$AR101)=TRUE),((R101/1000)*$AQ101),CQ101)))))) ->  | AH101: =INDEX(Ref_Master_Unit_Table,MATCH($W101,REF_To_Unit,0),MATCH('Reference - Lookup and Unit'!$A$11,Ref_From_Units,0)) ->  | AJ101: =INDEX(Ref_Master_Unit_Table,MATCH($Z101,REF_To_Unit,0),MATCH('Reference - Lookup and Unit'!$A$11,Ref_From_Units,0)) ->  | AL101: =INDEX(Ref_Master_Unit_Table,MATCH($AC101,REF_To_Unit,0),MATCH('Reference - Lookup and Unit'!$A$11,Ref_From_Units,0)) ->  | AN101: =INDEX(Ref_Master_Unit_Table,MATCH($AF101,REF_To_Unit,0),MATCH('Reference - Lookup and Unit'!$A$11,Ref_From_Units,0)) ->  | AP101: 1 | AQ101: 28 | AR101: 265 | AS101: 1 | AT101: Ref_DD_vehicle_Passenger_ | AY101: FALSE | BB101: =IF(AND(OR(G101="Fuel Use",G101="Custom Fuel"),F101="Scope 1",ISBLANK(I101)=TRUE),R101,"") ->  | BC101: =IF(AND(OR(G101="Fuel Use",G101="Custom Fuel"),F101="Scope 1",ISBLANK(I101)=FALSE),R101,IF(AND(G101<>"Fuel Use",G101<>"Custom Fuel",F101="Scope 1"),R101,"")) ->  | BD101: =IF(AND(OR(G101="Fuel Use",G101="Custom Fuel"),F101="Scope 1",ISBLANK(I101)=TRUE),S101,"") ->  | BE101: =IF(AND(OR(G101="Fuel Use",G101="Custom Fuel"),F101="Scope 1",ISBLANK(I101)=FALSE),S101,IF(AND(G101<>"Fuel Use",G101<>"Custom Fuel",F101="Scope 1"),S101,"")) ->  | BH101: =IF(AND(OR(G101="Fuel Use",G101="Custom Fuel"),F101="Scope 3",ISBLANK(I101)=TRUE),R101,"") ->  | BI101: =IF(AND(OR(G101="Fuel Use",G101="Custom Fuel"),F101="Scope 3",ISBLANK(I101)=FALSE),R101,IF(AND(G101<>"Fuel Use",G101<>"Custom Fuel",F101="Scope 3"),R101,"")) ->  | BJ101: =IF(AND(OR(G101="Fuel Use",G101="Custom Fuel"),F101="Scope 3",ISBLANK(I101)=TRUE),S101,"") ->  | BK101: =IF(AND(OR(G101="Fuel Use",G101="Custom Fuel"),F101="Scope 3",ISBLANK(I101)=FALSE),S101,IF(AND(G101<>"Fuel Use",G101<>"Custom Fuel",F101="Scope 3"),S101,"")) ->  | CP101: Ref_DD_DistanceUnit | CQ101: =IF(AND(ISERROR($Q101*$AP101)=TRUE,ISERROR((R101/1000)*$AQ101)=TRUE,ISERROR((S101/1000)*$AR101)=FALSE),((S101/1000)*$AR101),"") ->  | CR101: 0
AH102: =INDEX(Ref_Master_Unit_Table,MATCH($W102,REF_To_Unit,0),MATCH('Reference - Lookup and Unit'!$A$11,Ref_From_Units,0)) ->  | AJ102: =INDEX(Ref_Master_Unit_Table,MATCH($Z102,REF_To_Unit,0),MATCH('Reference - Lookup and Unit'!$A$11,Ref_From_Units,0)) ->  | AL102: =INDEX(Ref_Master_Unit_Table,MATCH($AC102,REF_To_Unit,0),MATCH('Reference - Lookup and Unit'!$A$11,Ref_From_Units,0)) ->  | AN102: =INDEX(Ref_Master_Unit_Table,MATCH($AF102,REF_To_Unit,0),MATCH('Reference - Lookup and Unit'!$A$11,Ref_From_Units,0)) ->  | AP102: 1 | AQ102: 28 | AR102: 265 | AS102: 1 | AT102: Ref_DD_vehicle_Passenger_ | AY102: FALSE | CP102: Ref_DD_DistanceUnit | CR102: 0
AH103: =INDEX(Ref_Master_Unit_Table,MATCH($W103,REF_To_Unit,0),MATCH('Reference - Lookup and Unit'!$A$11,Ref_From_Units,0)) ->  | AJ103: =INDEX(Ref_Master_Unit_Table,MATCH($Z103,REF_To_Unit,0),MATCH('Reference - Lookup and Unit'!$A$11,Ref_From_Units,0)) ->  | AL103: =INDEX(Ref_Master_Unit_Table,MATCH($AC103,REF_To_Unit,0),MATCH('Reference - Lookup and Unit'!$A$11,Ref_From_Units,0)) ->  | AN103: =INDEX(Ref_Master_Unit_Table,MATCH($AF103,REF_To_Unit,0),MATCH('Reference - Lookup and Unit'!$A$11,Ref_From_Units,0)) ->  | AP103: 1 | AQ103: 28 | AR103: 265 | AS103: 1 | AT103: Ref_DD_vehicle_Passenger_ | AY103: FALSE | CP103: Ref_DD_DistanceUnit | CR103: 0
AH104: =INDEX(Ref_Master_Unit_Table,MATCH($W104,REF_To_Unit,0),MATCH('Reference - Lookup and Unit'!$A$11,Ref_From_Units,0)) ->  | AJ104: =INDEX(Ref_Master_Unit_Table,MATCH($Z104,REF_To_Unit,0),MATCH('Reference - Lookup and Unit'!$A$11,Ref_From_Units,0)) ->  | AL104: =INDEX(Ref_Master_Unit_Table,MATCH($AC104,REF_To_Unit,0),MATCH('Reference - Lookup and Unit'!$A$11,Ref_From_Units,0)) ->  | AN104: =INDEX(Ref_Master_Unit_Table,MATCH($AF104,REF_To_Unit,0),MATCH('Reference - Lookup and Unit'!$A$11,Ref_From_Units,0)) ->  | AP104: 1 | AQ104: 28 | AR104: 265 | AS104: 1 | AT104: Ref_DD_vehicle_Passenger_ | AY104: FALSE | CP104: Ref_DD_DistanceUnit | CR104: 0
AH105: =INDEX(Ref_Master_Unit_Table,MATCH($W105,REF_To_Unit,0),MATCH('Reference - Lookup and Unit'!$A$11,Ref_From_Units,0)) ->  | AJ105: =INDEX(Ref_Master_Unit_Table,MATCH($Z105,REF_To_Unit,0),MATCH('Reference - Lookup and Unit'!$A$11,Ref_From_Units,0)) ->  | AL105: =INDEX(Ref_Master_Unit_Table,MATCH($AC105,REF_To_Unit,0),MATCH('Reference - Lookup and Unit'!$A$11,Ref_From_Units,0)) ->  | AN105: =INDEX(Ref_Master_Unit_Table,MATCH($AF105,REF_To_Unit,0),MATCH('Reference - Lookup and Unit'!$A$11,Ref_From_Units,0)) ->  | AP105: 1 | AQ105: 28 | AR105: 265 | AS105: 1 | AT105: Ref_DD_vehicle_Passenger_ | AY105: FALSE | CP105: Ref_DD_DistanceUnit | CR105: 0
AH106: =INDEX(Ref_Master_Unit_Table,MATCH($W106,REF_To_Unit,0),MATCH('Reference - Lookup and Unit'!$A$11,Ref_From_Units,0)) ->  | AJ106: =INDEX(Ref_Master_Unit_Table,MATCH($Z106,REF_To_Unit,0),MATCH('Reference - Lookup and Unit'!$A$11,Ref_From_Units,0)) ->  | AL106: =INDEX(Ref_Master_Unit_Table,MATCH($AC106,REF_To_Unit,0),MATCH('Reference - Lookup and Unit'!$A$11,Ref_From_Units,0)) ->  | AN106: =INDEX(Ref_Master_Unit_Table,MATCH($AF106,REF_To_Unit,0),MATCH('Reference - Lookup and Unit'!$A$11,Ref_From_Units,0)) ->  | AP106: 1 | AQ106: 28 | AR106: 265 | AS106: 1 | AT106: Ref_DD_vehicle_Passenger_ | AY106: FALSE | CP106: Ref_DD_DistanceUnit | CR106: 0
T107: =IF(AND(ISERROR($Q107*$AP107)=FALSE,ISERROR((R107/1000)*$AQ107)=FALSE,ISERROR((S107/1000)*$AR107)=FALSE),($Q107*$AP107)+((R107/1000)*$AQ107)+((S107/1000)*$AR107),IF(AND(ISERROR($Q107*$AP107)=FALSE,ISERROR((R107/1000)*$AQ107)=FALSE,ISERROR((S107/1000)*$AR107)=TRUE),($Q107*$AP107)+((R107/1000)*$AQ107),IF(AND(ISERROR($Q107*$AP107)=FALSE,ISERROR((R107/1000)*$AQ107)=TRUE,ISERROR((S107/1000)*$AR107)=FALSE),($Q107*$AP107)+((S107/1000)*$AR107),IF(AND(ISERROR($Q107*$AP107)=FALSE,ISERROR((R107/1000)*$AQ107)=TRUE,ISERROR((S107/1000)*$AR107)=TRUE),($Q107*$AP107),IF(AND(ISERROR($Q107*$AP107)=TRUE,ISERROR((R107/1000)*$AQ107)=FALSE,ISERROR((S107/1000)*$AR107)=FALSE),((R107/1000)*$AQ107)+((S107/1000)*$AR107),IF(AND(ISERROR($Q107*$AP107)=TRUE,ISERROR((R107/1000)*$AQ107)=FALSE,ISERROR((S107/1000)*$AR107)=TRUE),((R107/1000)*$AQ107),CQ107)))))) ->  | AH107: =INDEX(Ref_Master_Unit_Table,MATCH($W107,REF_To_Unit,0),MATCH('Reference - Lookup and Unit'!$A$11,Ref_From_Units,0)) ->  | AJ107: =INDEX(Ref_Master_Unit_Table,MATCH($Z107,REF_To_Unit,0),MATCH('Reference - Lookup and Unit'!$A$11,Ref_From_Units,0)) ->  | AL107: =INDEX(Ref_Master_Unit_Table,MATCH($AC107,REF_To_Unit,0),MATCH('Reference - Lookup and Unit'!$A$11,Ref_From_Units,0)) ->  | AN107: =INDEX(Ref_Master_Unit_Table,MATCH($AF107,REF_To_Unit,0),MATCH('Reference - Lookup and Unit'!$A$11,Ref_From_Units,0)) ->  | AP107: 1 | AQ107: 28 | AR107: 265 | AS107: 1 | AT107: Ref_DD_vehicle_Passenger_ | AY107: FALSE | BB107: =IF(AND(OR(G107="Fuel Use",G107="Custom Fuel"),F107="Scope 1",ISBLANK(I107)=TRUE),R107,"") ->  | BC107: =IF(AND(OR(G107="Fuel Use",G107="Custom Fuel"),F107="Scope 1",ISBLANK(I107)=FALSE),R107,IF(AND(G107<>"Fuel Use",G107<>"Custom Fuel",F107="Scope 1"),R107,"")) ->  | BD107: =IF(AND(OR(G107="Fuel Use",G107="Custom Fuel"),F107="Scope 1",ISBLANK(I107)=TRUE),S107,"") ->  | BE107: =IF(AND(OR(G107="Fuel Use",G107="Custom Fuel"),F107="Scope 1",ISBLANK(I107)=FALSE),S107,IF(AND(G107<>"Fuel Use",G107<>"Custom Fuel",F107="Scope 1"),S107,"")) ->  | BH107: =IF(AND(OR(G107="Fuel Use",G107="Custom Fuel"),F107="Scope 3",ISBLANK(I107)=TRUE),R107,"") ->  | BI107: =IF(AND(OR(G107="Fuel Use",G107="Custom Fuel"),F107="Scope 3",ISBLANK(I107)=FALSE),R107,IF(AND(G107<>"Fuel Use",G107<>"Custom Fuel",F107="Scope 3"),R107,"")) ->  | BJ107: =IF(AND(OR(G107="Fuel Use",G107="Custom Fuel"),F107="Scope 3",ISBLANK(I107)=TRUE),S107,"") ->  | BK107: =IF(AND(OR(G107="Fuel Use",G107="Custom Fuel"),F107="Scope 3",ISBLANK(I107)=FALSE),S107,IF(AND(G107<>"Fuel Use",G107<>"Custom Fuel",F107="Scope 3"),S107,"")) ->  | CP107: Ref_DD_DistanceUnit | CQ107: =IF(AND(ISERROR($Q107*$AP107)=TRUE,ISERROR((R107/1000)*$AQ107)=TRUE,ISERROR((S107/1000)*$AR107)=FALSE),((S107/1000)*$AR107),"") ->  | CR107: 0
T108: =IF(AND(ISERROR($Q108*$AP108)=FALSE,ISERROR((R108/1000)*$AQ108)=FALSE,ISERROR((S108/1000)*$AR108)=FALSE),($Q108*$AP108)+((R108/1000)*$AQ108)+((S108/1000)*$AR108),IF(AND(ISERROR($Q108*$AP108)=FALSE,ISERROR((R108/1000)*$AQ108)=FALSE,ISERROR((S108/1000)*$AR108)=TRUE),($Q108*$AP108)+((R108/1000)*$AQ108),IF(AND(ISERROR($Q108*$AP108)=FALSE,ISERROR((R108/1000)*$AQ108)=TRUE,ISERROR((S108/1000)*$AR108)=FALSE),($Q108*$AP108)+((S108/1000)*$AR108),IF(AND(ISERROR($Q108*$AP108)=FALSE,ISERROR((R108/1000)*$AQ108)=TRUE,ISERROR((S108/1000)*$AR108)=TRUE),($Q108*$AP108),IF(AND(ISERROR($Q108*$AP108)=TRUE,ISERROR((R108/1000)*$AQ108)=FALSE,ISERROR((S108/1000)*$AR108)=FALSE),((R108/1000)*$AQ108)+((S108/1000)*$AR108),IF(AND(ISERROR($Q108*$AP108)=TRUE,ISERROR((R108/1000)*$AQ108)=FALSE,ISERROR((S108/1000)*$AR108)=TRUE),((R108/1000)*$AQ108),CQ108)))))) ->  | AH108: =INDEX(Ref_Master_Unit_Table,MATCH($W108,REF_To_Unit,0),MATCH('Reference - Lookup and Unit'!$A$11,Ref_From_Units,0)) ->  | AJ108: =INDEX(Ref_Master_Unit_Table,MATCH($Z108,REF_To_Unit,0),MATCH('Reference - Lookup and Unit'!$A$11,Ref_From_Units,0)) ->  | AL108: =INDEX(Ref_Master_Unit_Table,MATCH($AC108,REF_To_Unit,0),MATCH('Reference - Lookup and Unit'!$A$11,Ref_From_Units,0)) ->  | AN108: =INDEX(Ref_Master_Unit_Table,MATCH($AF108,REF_To_Unit,0),MATCH('Reference - Lookup and Unit'!$A$11,Ref_From_Units,0)) ->  | AP108: 1 | AQ108: 28 | AR108: 265 | AS108: 1 | AT108: Ref_DD_vehicle_Passenger_ | AY108: FALSE | BB108: =IF(AND(OR(G108="Fuel Use",G108="Custom Fuel"),F108="Scope 1",ISBLANK(I108)=TRUE),R108,"") ->  | BC108: =IF(AND(OR(G108="Fuel Use",G108="Custom Fuel"),F108="Scope 1",ISBLANK(I108)=FALSE),R108,IF(AND(G108<>"Fuel Use",G108<>"Custom Fuel",F108="Scope 1"),R108,"")) ->  | BD108: =IF(AND(OR(G108="Fuel Use",G108="Custom Fuel"),F108="Scope 1",ISBLANK(I108)=TRUE),S108,"") ->  | BE108: =IF(AND(OR(G108="Fuel Use",G108="Custom Fuel"),F108="Scope 1",ISBLANK(I108)=FALSE),S108,IF(AND(G108<>"Fuel Use",G108<>"Custom Fuel",F108="Scope 1"),S108,"")) ->  | BH108: =IF(AND(OR(G108="Fuel Use",G108="Custom Fuel"),F108="Scope 3",ISBLANK(I108)=TRUE),R108,"") ->  | BI108: =IF(AND(OR(G108="Fuel Use",G108="Custom Fuel"),F108="Scope 3",ISBLANK(I108)=FALSE),R108,IF(AND(G108<>"Fuel Use",G108<>"Custom Fuel",F108="Scope 3"),R108,"")) ->  | BJ108: =IF(AND(OR(G108="Fuel Use",G108="Custom Fuel"),F108="Scope 3",ISBLANK(I108)=TRUE),S108,"") ->  | BK108: =IF(AND(OR(G108="Fuel Use",G108="Custom Fuel"),F108="Scope 3",ISBLANK(I108)=FALSE),S108,IF(AND(G108<>"Fuel Use",G108<>"Custom Fuel",F108="Scope 3"),S108,"")) ->  | CP108: Ref_DD_DistanceUnit | CQ108: =IF(AND(ISERROR($Q108*$AP108)=TRUE,ISERROR((R108/1000)*$AQ108)=TRUE,ISERROR((S108/1000)*$AR108)=FALSE),((S108/1000)*$AR108),"") ->  | CR108: 0
T109: =IF(AND(ISERROR($Q109*$AP109)=FALSE,ISERROR((R109/1000)*$AQ109)=FALSE,ISERROR((S109/1000)*$AR109)=FALSE),($Q109*$AP109)+((R109/1000)*$AQ109)+((S109/1000)*$AR109),IF(AND(ISERROR($Q109*$AP109)=FALSE,ISERROR((R109/1000)*$AQ109)=FALSE,ISERROR((S109/1000)*$AR109)=TRUE),($Q109*$AP109)+((R109/1000)*$AQ109),IF(AND(ISERROR($Q109*$AP109)=FALSE,ISERROR((R109/1000)*$AQ109)=TRUE,ISERROR((S109/1000)*$AR109)=FALSE),($Q109*$AP109)+((S109/1000)*$AR109),IF(AND(ISERROR($Q109*$AP109)=FALSE,ISERROR((R109/1000)*$AQ109)=TRUE,ISERROR((S109/1000)*$AR109)=TRUE),($Q109*$AP109),IF(AND(ISERROR($Q109*$AP109)=TRUE,ISERROR((R109/1000)*$AQ109)=FALSE,ISERROR((S109/1000)*$AR109)=FALSE),((R109/1000)*$AQ109)+((S109/1000)*$AR109),IF(AND(ISERROR($Q109*$AP109)=TRUE,ISERROR((R109/1000)*$AQ109)=FALSE,ISERROR((S109/1000)*$AR109)=TRUE),((R109/1000)*$AQ109),CQ109)))))) ->  | AH109: =INDEX(Ref_Master_Unit_Table,MATCH($W109,REF_To_Unit,0),MATCH('Reference - Lookup and Unit'!$A$11,Ref_From_Units,0)) ->  | AJ109: =INDEX(Ref_Master_Unit_Table,MATCH($Z109,REF_To_Unit,0),MATCH('Reference - Lookup and Unit'!$A$11,Ref_From_Units,0)) ->  | AL109: =INDEX(Ref_Master_Unit_Table,MATCH($AC109,REF_To_Unit,0),MATCH('Reference - Lookup and Unit'!$A$11,Ref_From_Units,0)) ->  | AN109: =INDEX(Ref_Master_Unit_Table,MATCH($AF109,REF_To_Unit,0),MATCH('Reference - Lookup and Unit'!$A$11,Ref_From_Units,0)) ->  | AP109: 1 | AQ109: 28 | AR109: 265 | AS109: 1 | AT109: =IF(OR($G109="Fuel Use",$G109="Custom fuel"),(IF(E109<>"",("Ref_DD_vehicle_FuelUse"&"_"&D109 &"_"&E109),"Ref_DD_vehicle_FuelUse"&"_"&D109)),IF(OR($G109="Vehicle Distance (e.g. Road Transport)",$G109="Fuel Use and Vehicle Distance"),(IF(E109<>"",("Ref_DD_vehicle_VehicleDistance"&"_"&D109 &"_"&E109),"Ref_DD_vehicle_VehicleDistance"&"_"&D109)),IF($G109="Weight Distance (e.g. Freight Transport)",(IF(E109<>"",("Ref_DD_vehicle_WeightDistance"&"_"&D109 &"_"&E109),"Ref_DD_vehicle_WeightDistance"&"_"&D109)),(IF(E109<>"",("Ref_DD_vehicle_Passenger"&"_"&D109 &"_"&E109),"Ref_DD_vehicle_Passenger"&"_"&D109))))) -> Ref_DD_vehicle_Passenger_ | AY109: FALSE | BB109: =IF(AND(OR(G109="Fuel Use",G109="Custom Fuel"),F109="Scope 1",ISBLANK(I109)=TRUE),R109,"") ->  | BC109: =IF(AND(OR(G109="Fuel Use",G109="Custom Fuel"),F109="Scope 1",ISBLANK(I109)=FALSE),R109,IF(AND(G109<>"Fuel Use",G109<>"Custom Fuel",F109="Scope 1"),R109,"")) ->  | BD109: =IF(AND(OR(G109="Fuel Use",G109="Custom Fuel"),F109="Scope 1",ISBLANK(I109)=TRUE),S109,"") ->  | BE109: =IF(AND(OR(G109="Fuel Use",G109="Custom Fuel"),F109="Scope 1",ISBLANK(I109)=FALSE),S109,IF(AND(G109<>"Fuel Use",G109<>"Custom Fuel",F109="Scope 1"),S109,"")) ->  | BH109: =IF(AND(OR(G109="Fuel Use",G109="Custom Fuel"),F109="Scope 3",ISBLANK(I109)=TRUE),R109,"") ->  | BI109: =IF(AND(OR(G109="Fuel Use",G109="Custom Fuel"),F109="Scope 3",ISBLANK(I109)=FALSE),R109,IF(AND(G109<>"Fuel Use",G109<>"Custom Fuel",F109="Scope 3"),R109,"")) ->  | BJ109: =IF(AND(OR(G109="Fuel Use",G109="Custom Fuel"),F109="Scope 3",ISBLANK(I109)=TRUE),S109,"") ->  | BK109: =IF(AND(OR(G109="Fuel Use",G109="Custom Fuel"),F109="Scope 3",ISBLANK(I109)=FALSE),S109,IF(AND(G109<>"Fuel Use",G109<>"Custom Fuel",F109="Scope 3"),S109,"")) ->  | CP109: Ref_DD_DistanceUnit | CQ109: =IF(AND(ISERROR($Q109*$AP109)=TRUE,ISERROR((R109/1000)*$AQ109)=TRUE,ISERROR((S109/1000)*$AR109)=FALSE),((S109/1000)*$AR109),"") ->  | CR109: 0
T110: =IF(AND(ISERROR($Q110*$AP110)=FALSE,ISERROR((R110/1000)*$AQ110)=FALSE,ISERROR((S110/1000)*$AR110)=FALSE),($Q110*$AP110)+((R110/1000)*$AQ110)+((S110/1000)*$AR110),IF(AND(ISERROR($Q110*$AP110)=FALSE,ISERROR((R110/1000)*$AQ110)=FALSE,ISERROR((S110/1000)*$AR110)=TRUE),($Q110*$AP110)+((R110/1000)*$AQ110),IF(AND(ISERROR($Q110*$AP110)=FALSE,ISERROR((R110/1000)*$AQ110)=TRUE,ISERROR((S110/1000)*$AR110)=FALSE),($Q110*$AP110)+((S110/1000)*$AR110),IF(AND(ISERROR($Q110*$AP110)=FALSE,ISERROR((R110/1000)*$AQ110)=TRUE,ISERROR((S110/1000)*$AR110)=TRUE),($Q110*$AP110),IF(AND(ISERROR($Q110*$AP110)=TRUE,ISERROR((R110/1000)*$AQ110)=FALSE,ISERROR((S110/1000)*$AR110)=FALSE),((R110/1000)*$AQ110)+((S110/1000)*$AR110),IF(AND(ISERROR($Q110*$AP110)=TRUE,ISERROR((R110/1000)*$AQ110)=FALSE,ISERROR((S110/1000)*$AR110)=TRUE),((R110/1000)*$AQ110),CQ110)))))) ->  | AH110: =INDEX(Ref_Master_Unit_Table,MATCH($W110,REF_To_Unit,0),MATCH('Reference - Lookup and Unit'!$A$11,Ref_From_Units,0)) ->  | AJ110: =INDEX(Ref_Master_Unit_Table,MATCH($Z110,REF_To_Unit,0),MATCH('Reference - Lookup and Unit'!$A$11,Ref_From_Units,0)) ->  | AL110: =INDEX(Ref_Master_Unit_Table,MATCH($AC110,REF_To_Unit,0),MATCH('Reference - Lookup and Unit'!$A$11,Ref_From_Units,0)) ->  | AN110: =INDEX(Ref_Master_Unit_Table,MATCH($AF110,REF_To_Unit,0),MATCH('Reference - Lookup and Unit'!$A$11,Ref_From_Units,0)) ->  | AP110: 1 | AQ110: 28 | AR110: 265 | AS110: 1 | AT110: Ref_DD_vehicle_Passenger_ | AY110: FALSE | BB110: =IF(AND(OR(G110="Fuel Use",G110="Custom Fuel"),F110="Scope 1",ISBLANK(I110)=TRUE),R110,"") ->  | BC110: =IF(AND(OR(G110="Fuel Use",G110="Custom Fuel"),F110="Scope 1",ISBLANK(I110)=FALSE),R110,IF(AND(G110<>"Fuel Use",G110<>"Custom Fuel",F110="Scope 1"),R110,"")) ->  | BD110: =IF(AND(OR(G110="Fuel Use",G110="Custom Fuel"),F110="Scope 1",ISBLANK(I110)=TRUE),S110,"") ->  | BE110: =IF(AND(OR(G110="Fuel Use",G110="Custom Fuel"),F110="Scope 1",ISBLANK(I110)=FALSE),S110,IF(AND(G110<>"Fuel Use",G110<>"Custom Fuel",F110="Scope 1"),S110,"")) ->  | BH110: =IF(AND(OR(G110="Fuel Use",G110="Custom Fuel"),F110="Scope 3",ISBLANK(I110)=TRUE),R110,"") ->  | BI110: =IF(AND(OR(G110="Fuel Use",G110="Custom Fuel"),F110="Scope 3",ISBLANK(I110)=FALSE),R110,IF(AND(G110<>"Fuel Use",G110<>"Custom Fuel",F110="Scope 3"),R110,"")) ->  | BJ110: =IF(AND(OR(G110="Fuel Use",G110="Custom Fuel"),F110="Scope 3",ISBLANK(I110)=TRUE),S110,"") ->  | BK110: =IF(AND(OR(G110="Fuel Use",G110="Custom Fuel"),F110="Scope 3",ISBLANK(I110)=FALSE),S110,IF(AND(G110<>"Fuel Use",G110<>"Custom Fuel",F110="Scope 3"),S110,"")) ->  | CP110: Ref_DD_DistanceUnit | CQ110: =IF(AND(ISERROR($Q110*$AP110)=TRUE,ISERROR((R110/1000)*$AQ110)=TRUE,ISERROR((S110/1000)*$AR110)=FALSE),((S110/1000)*$AR110),"") ->  | CR110: 0
B111: ü | P111: Total (metric tonnes CO2e) | Q111: =SUM(Q11:Q110) -> 0 | R111: =SUM(R11:R110) -> 0 | S111: =SUM(S11:S110) -> 0 | T111: =SUM(T11:T110) -> 0 | U111: =SUM(U11:U110) -> 0 | AZ111: =SUM(AZ11:AZ110) -> 0 | BA111: 0 | BB111: 0 | BC111: 0 | BD111: 0 | BE111: 0 | BF111: 0 | BG111: 0 | BH111: 0 | BI111: 0 | BJ111: 0 | BK111: 0 | BL111: 0 | BM111: 0 | BN111: 0 | BO111: 0 | BP111: 0 | BQ111: 0 | BR111: 0 | BS111: 0 | BT111: 0 | BU111: 0 | BV111: 0 | BW111: 0 | BX111: 0 | BY111: 0 | BZ111: 0 | CA111: 0 | CB111: 0 | CC111: 0 | CD111: 0 | CE111: 0 | CF111: 0 | CG111: 0 | CH111: 0 | CI111: 0 | CJ111: 0 | CK111: 0 | CL111: 0 | CM111: 0 | CN111: 0 | CO111: 0
C112: * Please note the following distance categories when calculating air transport emissions.
C113: Domestic = < 463 km
C114: Short-haul = ≥ 463 <1108 km
C115: Long haul = ≥ 1108 km

Sheet Settings
B7: Global Warming Potential
B9: Please select the appropriate Global Warming Potential value below:
B11: 2014 IPCC Fifth Assessment Report
B12: Note: The Fifth Assessment Report GWP values used in this tool exclude climate–carbon feedbacks for non-CO2 emissions. Use of the latest GWP values is recommended.
B14: Custom Fuel Type
B16: Fuel | C16: Emission Factors | G16: Unit of Emission Factors | I16: Notes
C17: Fossil CO2 | D17: CH4 | E17: N2O | F17: Biofuel CO2 | G17: Numerator (e.g., kg of GHG) | H17: Denominator (e.g., tonne of fuel)
B26: Custom Vehicle Type
B28: Vehicle | C28: Emission Factors | G28: Unit of Emission Factors | I28: Notes
C29: Fossil CO2 | D29: CH4 | E29: N2O | F29: Biofuel CO2 | G29: Numerator (e.g., kg of GHG) | H29: Denominator (e.g., kilometer)

Sheet Summary
B7: Summary: Emissions by Scope
B25: Calculation Method | C25: Greenhouse gas | D25: Fossil Fuel Emissions | F25: Biofuel CO2 Emission (metric tonnes)
D26: Scope 1 (metric tonnes) | E26: Scope 3 (metric tonnes) | H26: =D26 -> Scope 1 (metric tonnes) | I26: =E26 -> Scope 3 (metric tonnes) | J26: =F25 -> Biofuel CO2 Emission (metric tonnes)
B27: Fuel Use | C27: CO2 | D27: ='Activity Data'!AZ111 -> 0 | E27: ='Activity Data'!BF111 -> 0 | F27: ='Activity Data'!BL111 -> 0 | H27: =D33 -> 0 | I27: =E33 -> 0 | J27: =F33 -> 0
C28: CH4 | D28: ='Activity Data'!BB111/1000 -> 0 | E28: ='Activity Data'!BH111/1000 -> 0
C29: N2O | D29: ='Activity Data'!BD111/1000 -> 0 | E29: ='Activity Data'!BJ111/1000 -> 0
B30: Distance | C30: CO2 | D30: ='Activity Data'!BA111 -> 0 | E30: ='Activity Data'!BG111 -> 0 | F30: ='Activity Data'!BM111 -> 0
C31: CH4 | D31: ='Activity Data'!BC111/1000 -> 0 | E31: ='Activity Data'!BI111/1000 -> 0
C32: N2O | D32: ='Activity Data'!BE111/1000 -> 0 | E32: ='Activity Data'!BK111/1000 -> 0
B33: Total (metric tonnes CO2e) | D33: =IF(ISERROR(D27*$H$58),0,D27*$H$58)+IF(ISERROR((D28)*$I$58),0,(D28)*$I$58)+IF(ISERROR((D29)*$J$58),0,(D29)*$J$58) + IF(ISERROR(D30*$H$58),0,D30*$H$58)+IF(ISERROR((D31)*$I$58),0,(D31)*$I$58)+IF(ISERROR((D32)*$J$58),0,(D32)*$J$58) -> 0 | E33: =IF(ISERROR(E27*$H$58),0,E27*$H$58)+IF(ISERROR((E28)*$I$58),0,(E28)*$I$58)+IF(ISERROR((E29)*$J$58),0,(E29)*$J$58) + IF(ISERROR(E30*$H$58),0,E30*$H$58)+IF(ISERROR((E31)*$I$58),0,(E31)*$I$58)+IF(ISERROR((E32)*$J$58),0,(E32)*$J$58) -> 0 | F33: =SUM(F27:F32) -> 0
B37: Summary: Emissions by Mode of Transport
B56: Mode of Transport | C56: Scope | D56: Fossil Fuel Emissions | G56: Biofuel CO2 Emission (metric tonnes) | H56: CO2 IPCC GWP Values | I56: CH4 IPCC GWP Values | J56: N2O IPCC GWP Values | K56: Biofuel CO2 IPCC GWP Values
D57: Fossil Fuel CO2 (metric tonnes) | E57: CH4 (kilograms) | F57: N2O (kilograms)
B58: Road | C58: Scope 1 | D58: ='Activity Data'!BN111 -> 0 | E58: ='Activity Data'!BR111 -> 0 | F58: ='Activity Data'!BV111 -> 0 | G58: ='Activity Data'!CL111 -> 0 | H58: =VLOOKUP("CO2",INDIRECT(IF(Setting_IPCC_GWP_VERSION="1995 IPCC Second Assessment Report (SAR)","Ref_EF_IPCC_GWP_95",IF(Setting_IPCC_GWP_VERSION="2001 IPCC Third Assessment Report (TAR)","Ref_EF_IPCC_GWP_2001","Ref_EF_IPCC_GWP_2007"))),2,0) -> 1 | I58: =VLOOKUP("CH4",INDIRECT(IF(Setting_IPCC_GWP_VERSION="1995 IPCC Second Assessment Report (SAR)","Ref_EF_IPCC_GWP_95",IF(Setting_IPCC_GWP_VERSION="2001 IPCC Third Assessment Report (TAR)","Ref_EF_IPCC_GWP_2001","Ref_EF_IPCC_GWP_2007"))),2,0) -> 25 | J58: =VLOOKUP("N2O",INDIRECT(IF(Setting_IPCC_GWP_VERSION="1995 IPCC Second Assessment Report (SAR)","Ref_EF_IPCC_GWP_95",IF(Setting_IPCC_GWP_VERSION="2001 IPCC Third Assessment Report (TAR)","Ref_EF_IPCC_GWP_2001","Ref_EF_IPCC_GWP_2007"))),2,0) -> 298 | K58: =VLOOKUP("Biofuel CO2",INDIRECT(IF(Setting_IPCC_GWP_VERSION="1995 IPCC Second Assessment Report (SAR)","Ref_EF_IPCC_GWP_95",IF(Setting_IPCC_GWP_VERSION="2001 IPCC Third Assessment Report (TAR)","Ref_EF_IPCC_GWP_2001","Ref_EF_IPCC_GWP_2007"))),2,0) -> 1
C59: Scope 3 | D59: ='Activity Data'!BZ111 -> 0 | E59: ='Activity Data'!CD111 -> 0 | F59: ='Activity Data'!CH111 -> 0 | H59: Table for Chart
B60: Rail | C60: Scope 1 | D60: ='Activity Data'!BO111 -> 0 | E60: ='Activity Data'!BS111 -> 0 | F60: ='Activity Data'!BW111 -> 0 | G60: ='Activity Data'!CM111 -> 0 | H60: =B58 -> Road | I60: =B60 -> Rail | J60: =B62 -> Water | K60: =B64 -> AirCraft
C61: Scope 3 | D61: ='Activity Data'!CA111 -> 0 | E61: ='Activity Data'!CE111 -> 0 | F61: ='Activity Data'!CI111 -> 0 | H61: =SUM(D58:G59) -> 0 | I61: =SUM(D60:G61) -> 0 | J61: =SUM(D62:F63) -> 0 | K61: =SUM(D64:G65) -> 0
B62: Water | C62: Scope 1 | D62: ='Activity Data'!BP111 -> 0 | E62: ='Activity Data'!BT111 -> 0 | F62: ='Activity Data'!BX111 -> 0 | G62: ='Activity Data'!CN111 -> 0
C63: Scope 3 | D63: ='Activity Data'!CB111 -> 0 | E63: ='Activity Data'!CF111 -> 0 | F63: ='Activity Data'!CJ111 -> 0
B64: AirCraft | C64: Scope 1 | D64: ='Activity Data'!BQ111 -> 0 | E64: ='Activity Data'!BU111 -> 0 | F64: ='Activity Data'!BY111 -> 0 | G64: ='Activity Data'!CO111 -> 0
C65: Scope 3 | D65: ='Activity Data'!CC111 -> 0 | E65: ='Activity Data'!CG111 -> 0 | F65: ='Activity Data'!CK111 -> 0
B66: Total Emissions | D66: =SUM(D58:D65) -> 0 | E66: =SUM(E58:E65) -> 0 | F66: =SUM(F58:F65) -> 0 | G66: =SUM(G58:G65) -> 0
B67: Total GHG Emission (metric tonnes CO2e) | D67: =IF(ISERROR(D66*$H$58),0,D66*$H$58)+IF(ISERROR((E66/1000)*$I$58),0,(E66/1000)*$I$58)+IF(ISERROR((F66/1000)*$J$58),0,(F66/1000)*$J$58) -> 0

Sheet Revisions
B7: Revision History
B9: Version | C9: Revision Date | D9: Updated By | E9: Description
B10: 2.0 | C10: 2009-05-10 | D10: Richard Mak | E10: Initial 2.0 release
B11: 2.1 | C11: 2011-06-14 | D11: GHG Protocol | E11: Revised the emission factors for UK sources to be consistent with most recent guidance from UK DEFRA (dated October 2010; see http://www.defra.gov.uk/environment/business/reporting/conversion-factors.htm)
B12: 2.2 | C12: 2011-06-28 | D12: GHG Protocol | E12: Corrected transcription error for US-based air freight transport emission factors
B13: 2.3 | C13: 2011-10-24 | D13: GHG Protocol | E13: Modified text in parts of the tool. Caculation formulae and emission factors were not adjusted.
B14: 2.4 | C14: 2011-12-07 | D14: Francis Gassert | E14: Removed error message
B15: 2.5 | C15: 2013-06-19 | D15: GHG Protocol | E15: Adjusted conversion factors for measurement units to/from standard cubic feet and cubic feet
B16: 2.6 | C16: 2015-05-18 | D16: GHG Protocol | E16: Added GWP values from IPCC's Fifth Assessment Report

Sheet Reference - Custom Messages (hidden)
A2: Activity Data Custom Messages
A4: Field 1 | B4: Value 1 | C4: Field 2 | D4: Value 2 | E4: Field 3 | F4: Value 3 | G4: Field 4 | H4: Value 4 | I4: Message | J4: Error Message?
A5: Type of Activity Data | B5: Vehicle Distance (e.g. Road Transport) | C5: Vehicle Type | D5: Bus - CNG | I5: Sorry. Emission factors are not available for CNG vehicles based on vehicle distance. | J5: Yes | K5: =IF(ISBLANK(A5),"",IF(B5<>"*",IF(ISBLANK(B5),"^"&A5,B5),"~"&A5))&IF(ISBLANK(C5),"",IF(D5<>"*",IF(ISBLANK(D5),"^"&C5,D5),"~"&C5))&IF(ISBLANK(E5),"",IF(F5<>"*",IF(ISBLANK(F5),"^&E5",F5),"~"&E5))&IF(ISBLANK(G5),"",IF(H5<>"*",IF(ISBLANK(H5),"^"&G5,H5),"~"&G5)) -> Vehicle Distance (e.g. Road Transport)Bus - CNG
A6: Type of Activity Data | B6: Vehicle Distance (e.g. Road Transport) | C6: Vehicle Type | D6: Light Goods Vehicle - CNG | I6: Sorry. Emission factors are not available for CNG vehicles based on vehicle distance. | J6: Yes | K6: Vehicle Distance (e.g. Road Transport)Light Goods Vehicle - CNG
A7: Type of Activity Data | B7: Vehicle Distance (e.g. Road Transport) | C7: Vehicle Type | D7: Heavy Duty Vehicle - Rigid - CNG | I7: Sorry. Emission factors are not available for CNG vehicles based on vehicle distance. | J7: Yes | K7: Vehicle Distance (e.g. Road Transport)Heavy Duty Vehicle - Rigid - CNG
A8: Type of Activity Data | B8: Vehicle Distance (e.g. Road Transport) | C8: Vehicle Type | D8: Heavy Duty Vehicle - Articulated - CNG | I8: Sorry. Emission factors are not available for CNG vehicles based on vehicle distance. | J8: Yes | K8: Vehicle Distance (e.g. Road Transport)Heavy Duty Vehicle - Articulated - CNG
A9: Type of Activity Data | B9: Vehicle Distance (e.g. Road Transport) | C9: Vehicle Type | D9: Passenger Car - Fuel Unknown | I9: Sorry. Emission factors based on vehicle distance are not available when the Fuel Used is not known. | J9: Yes | K9: Vehicle Distance (e.g. Road Transport)Passenger Car - Fuel Unknown
A10: Type of Activity Data | B10: Vehicle Distance (e.g. Road Transport) | C10: Vehicle Type | D10: Light Goods Vehicle - Fuel Unknown | I10: Sorry. Emission factors based on vehicle distance are not available when the Fuel Used is not known. | J10: Yes | K10: Vehicle Distance (e.g. Road Transport)Light Goods Vehicle - Fuel Unknown
A11: Type of Activity Data | B11: Vehicle Distance (e.g. Road Transport) | C11: Vehicle Type | D11: Heavy Duty Vehicle - Rigid - Fuel Unknown | I11: Sorry. Emission factors based on vehicle distance are not available when the Fuel Used is not known. | J11: Yes | K11: Vehicle Distance (e.g. Road Transport)Heavy Duty Vehicle - Rigid - Fuel Unknown
A12: Type of Activity Data | B12: Vehicle Distance (e.g. Road Transport) | C12: Vehicle Type | D12: Heavy Duty Vehicle - Articulated - Fuel Unknown | I12: Sorry. Emission factors based on vehicle distance are not available when the Fuel Used is not known. | J12: Yes | K12: Vehicle Distance (e.g. Road Transport)Heavy Duty Vehicle - Articulated - Fuel Unknown
A13: Distance Travelled | B13: * | C13: Unit of Distance | I13: Please select Unit of Distance | J13: Yes | K13: ~Distance Travelled^Unit of Distance
A14: Distance Travelled | C14: Unit of Distance | D14: * | I14: Please enter Distance Travelled | J14: Yes | K14: =IF(ISBLANK(A14),"",IF(B14<>"*",IF(ISBLANK(B14),"^"&A14,B14),"~"&A14))&IF(ISBLANK(C14),"",IF(D14<>"*",IF(ISBLANK(D14),"^"&C14,D14),"~"&C14))&IF(ISBLANK(E14),"",IF(F14<>"*",IF(ISBLANK(F14),"^&E5",F14),"~"&E14))&IF(ISBLANK(G14),"",IF(H14<>"*",IF(ISBLANK(H14),"^"&G14,H14),"~"&G14)) -> ^Distance Travelled~Unit of Distance
A15: Distance Travelled | B15: * | C15: Vehicle Type | I15: Please select Vehicle Type | J15: Yes | K15: ~Distance Travelled^Vehicle Type
A16: Fuel Amount | B16: * | C16: Unit of Fuel Amount | I16: Please enter Unit of Fuel Amount | J16: Yes | K16: ~Fuel Amount^Unit of Fuel Amount
A17: Fuel Amount | C17: Unit of Fuel Amount | D17: * | I17: Please enter Fuel Amount | J17: Yes | K17: ^Fuel Amount~Unit of Fuel Amount
A18: Fuel Used | B18: * | C18: Fuel Amount | I18: Please enter Fuel Amount | J18: Yes | K18: ~Fuel Used^Fuel Amount
A19: Fuel Used | C19: Fuel Amount | D19: * | I19: Please select Fuel Used | J19: Yes | K19: ^Fuel Used~Fuel Amount
A20: Type of Activity Data | B20: Fuel Use | C20: Fuel Used | I20: Please select Fuel Used | J20: Yes | K20: Fuel Use^Fuel Used
A21: Type of Activity Data | B21: Vehicle Distance (e.g. Road Transport) | C21: Vehicle Type | I21: Please select Vehicle Type | J21: Yes | K21: Vehicle Distance (e.g. Road Transport)^Vehicle Type
A22: Type of Activity Data | B22: Vehicle Distance (e.g. Road Transport) | C22: Distance Travelled | I22: Please enter Distance Travelled | J22: Yes | K22: Vehicle Distance (e.g. Road Transport)^Distance Travelled
A23: Type of Activity Data | B23: Passenger Distance (e.g. Public Transport) | C23: Vehicle Type | I23: Please select Vehicle Type | J23: Yes | K23: Passenger Distance (e.g. Public Transport)^Vehicle Type
A24: Type of Activity Data | B24: Passenger Distance (e.g. Public Transport) | C24: Distance Travelled | I24: Please enter Distance Travelled | J24: Yes | K24: Passenger Distance (e.g. Public Transport)^Distance Travelled
A25: Type of Activity Data | B25: Passenger Distance (e.g. Public Transport) | C25: # of Passenger | I25: Please enter # of Passengers | J25: Yes | K25: =IF(ISBLANK(A25),"",IF(B25<>"*",IF(ISBLANK(B25),"^"&A25,B25),"~"&A25))&IF(ISBLANK(C25),"",IF(D25<>"*",IF(ISBLANK(D25),"^"&C25,D25),"~"&C25))&IF(ISBLANK(E25),"",IF(F25<>"*",IF(ISBLANK(F25),"^&E5",F25),"~"&E25))&IF(ISBLANK(G25),"",IF(H25<>"*",IF(ISBLANK(H25),"^"&G25,H25),"~"&G25)) -> Passenger Distance (e.g. Public Transport)^# of Passenger
A26: Type of Activity Data | B26: Weight Distance (e.g. Freight Transport) | C26: Vehicle Type | I26: Please select Vehicle Type | J26: Yes | K26: Weight Distance (e.g. Freight Transport)^Vehicle Type
A27: Type of Activity Data | B27: Weight Distance (e.g. Freight Transport) | C27: Distance Travelled | I27: Please enter Distance Travelled | J27: Yes | K27: Weight Distance (e.g. Freight Transport)^Distance Travelled
A28: Type of Activity Data | B28: Custom Fuel | C28: Fuel Used | I28: Please select Fuel Used. This selection allows users to use their own ‘custom’ emission factors that have been entered into the tool on the ‘Settings’ tab. | J28: Yes | K28: Custom Fuel^Fuel Used
A29: Type of Activity Data | B29: Custom Vehicle | C29: Vehicle Type | I29: Please select Vehicle Type. This selection allows users to use their own ‘custom’ emission factors that have been entered into the tool on the ‘Settings’ tab. | J29: Yes | K29: Custom Vehicle^Vehicle Type
A30: Type of Activity Data | B30: Custom Vehicle | C30: Distance Travelled | I30: Please enter Distance Travelled | J30: Yes | K30: Custom Vehicle^Distance Travelled
A31: Type of Activity Data | B31: Weight Distance (e.g. Freight Transport) | C31: Gross Weight | I31: Please enter gross weight of vehicle, which includes the weight of both the vehicle and the goods | J31: Yes | K31: Weight Distance (e.g. Freight Transport)^Gross Weight
A32: Type of Activity Data | B32: Fuel Use and Vehicle Distance | C32: Vehicle Type | I32: Please select Vehicle Type | J32: Yes | K32: Fuel Use and Vehicle Distance^Vehicle Type
A33: Type of Activity Data | B33: Fuel Use and Vehicle Distance | C33: Distance Travelled | I33: Please enter Distance Travelled | J33: Yes | K33: Fuel Use and Vehicle Distance^Distance Travelled
A34: Type of Activity Data | B34: Fuel Use and Vehicle Distance | C34: Fuel Used | I34: Please select Fuel Used | J34: Yes | K34: Fuel Use and Vehicle Distance^Fuel Used
A35: Mode of Transport | B35: Road | C35: Scope | D35: Scope 1 | I35: Fuel use data are preferred for calculating CO2 emissions. Vehicle distance data are preferred for CH4 and N2O. | J35: No | K35: RoadScope 1
A36: Region | B36: Other | I36: The default emission factors for "Other" regions are either global defaults (for CO2 emissions based on fuel use) or from UK DEFRA. These values should only be used in the absence of more specific emission factors. | J36: No | K36: Other
A37: Type of Activity Data | B37: Weight Distance (e.g. Freight Transport) | I37: Emissions from freight transport can also be calculated using Vehicle distance data. | J37: No | K37: Weight Distance (e.g. Freight Transport)
A38: Mode of Transport | B38: Aircraft | I38: Sorry. Emission factors are not available to calculate the CH4 and N2O emissions (which contribute <5% to the total GHG emissions from aircraft). Domestic’ flights are < 300 miles/483 km; short-haul flights are ≥ 300 miles/483 km and <700 miles/1126 km, and long haul flights are anything ≥ 700 miles/1126 km. | J38: No | K38: Aircraft
A39: Region | B39: UK | I39: The default emission factors are sourced from the UK DEFRA (http://www.defra.gov.uk/environment/business/reporting/pdf/passenger-transport.pdf). | J39: No | K39: UK
A40: Region | B40: US | I40: The default emission factors are sourced from the US EPA Climate Leaders program or from the UK DEFRA (for air travel only). | J40: No | K40: US
A41: Region | B41: UK | C41: Mode of Transport | D41: Road | I41: Sorry. UK-specific emission factors are not available to calculate the CH4 and N2O emissions | J41: No | K41: UKRoad
K42: =IF(ISBLANK(A42),"",IF(B42<>"*",IF(ISBLANK(B42),"^"&A42,B42),"~"&A42))&IF(ISBLANK(C42),"",IF(D42<>"*",IF(ISBLANK(D42),"^"&C42,D42),"~"&C42))&IF(ISBLANK(E42),"",IF(F42<>"*",IF(ISBLANK(F42),"^&E5",F42),"~"&E42))&IF(ISBLANK(G42),"",IF(H42<>"*",IF(ISBLANK(H42),"^"&G42,H42),"~"&G42)) -> 

Sheet Reference - Lookup and Unit (hidden)
A1: Master Conversion Table
B2: To Unit
A3: From Unit | B3: US Gallon | C3: UK Gallon | D3: Litre | E3: Barrel | F3: Standard Cubic Foot | G3: Cubic Foot | H3: Cubic Meter | I3: Metric Ton | J3: Kilogram | K3: Pound | L3: Short Ton | M3: Long Ton | N3: Gram | O3: Mile | P3: Kilometer | Q3: Kilowatt Hour | R3: Therm | S3: BTU | T3: MMBTU | U3: Megajoule | V3: Gigajoule | W3: Tonne Mile | X3: Short Ton Mile | Y3: Short Ton Kilometer | Z3: Tonne Kilometer | AA3: Passenger Mile | AB3: Passenger Kilometer
A4: US Gallon | B4: 1 | C4: 0.83267384 | D4: 3.78541178 | E4: 0.0238095238 | F4: 126.67 | G4: 126.67 | H4: 0.00378541178
A5: UK Gallon | B5: 1.20095042 | C5: 1 | D5: 4.54609188 | E5: 0.0285940577 | F5: =F4*B5 -> 152.1243897 | G5: =G4*C5 -> 126.67 | H5: 0.00454609188
A6: Litre | B6: 0.264172052 | C6: 0.219969157 | D6: 1 | E6: 0.00628981077 | F6: =0.035314667 -> 0.035314667 | G6: =0.035314667 -> 0.035314667 | H6: 0.001
A7: Barrel | B7: 42 | C7: 34.9723013 | D7: 158.987295 | E7: 1 | F7: 4.2109375 | G7: 4.2109375 | H7: 0.158987295
A8: Standard Cubic Foot | B8: 7.48051948 | C8: 6.22883288 | D8: 28.3168466 | E8: 0.178107607 | F8: 1 | G8: 1 | H8: 0.0283168466
A9: Cubic Foot | B9: 7.48051948 | C9: 6.22883288 | D9: 28.3168466 | E9: 0.178107607 | F9: 1 | G9: 1 | H9: 0.0283168466
A10: Cubic Meter | B10: 264.172052 | C10: 219.969157 | D10: 1000 | E10: 6.28981077 | F10: 35.3146667 | G10: 35.3146667 | H10: 1
A11: Metric Ton | I11: 1 | J11: 1000 | K11: 2204.62262 | L11: 1.10231131 | M11: 0.984206528 | N11: 1000000
A12: Kilogram | I12: 0.001 | J12: 1 | K12: 2.20462262 | L12: 0.00110231131 | M12: 0.000984206528 | N12: 1000
A13: Pound | I13: 0.00045359237 | J13: 0.45359237 | K13: 1 | L13: 0.0005 | M13: 0.000446428571 | N13: 453.59237
A14: Short Ton | I14: 0.90718474 | J14: 907.18474 | K14: 2000 | L14: 1 | M14: 0.892857143 | N14: 907184.74
A15: Long Ton | I15: 1.01604691 | J15: 1 016.04691 | K15: 2240 | L15: 1.12 | M15: 1 | N15: 1016046.91
A16: Gram | I16: 1e-06 | J16: 0.001 | N16: 1
A17: Mile | O17: 1 | P17: 1.609344
A18: Kilometer | O18: 0.621371192 | P18: 1
A19: Kilowatt Hour | Q19: 1 | R19: 0.0341214163 | S19: 3412.14163 | T19: 0.00341214163 | U19: 3.6 | V19: 0.0036
A20: Therm | Q20: 29.307107 | R20: 1 | S20: 100000 | T20: 0.1 | U20: 105.505585 | V20: 0.105505585
A21: BTU | Q21: 0.00029307107 | R21: 1e-05 | S21: 1 | T21: 1e-06 | U21: 0.00105505585 | V21: 1.05505585e-06
A22: MMBTU | Q22: 293.07107 | R22: 10 | S22: 1000000 | T22: 1 | U22: 1055.05585 | V22: 1.05505585
A23: Megajoule | Q23: 0.277777778 | R23: 0.0094781712 | S23: 947.81712 | T23: 0.00094781712 | U23: 1 | V23: 0.001
A24: Gigajoule | Q24: 277.777778 | R24: 9.4781712 | S24: 947817.12 | T24: 0.94781712 | U24: 1000 | V24: 1
A25: Tonne Mile | W25: 1 | X25: 1.10231131 | Y25: 1.77399809 | Z25: 1.609344
A26: Short Ton Mile | W26: 0.9071847408 | X26: 1 | Y26: 1.609344001 | Z26: 1.459972319
A27: Short Ton Kilometer | W27: 0.5636984637 | X27: 0.621371192 | Y27: 1 | Z27: 0.90718474
A28: Tonne Kilometer | W28: 0.621371192 | X28: 0.6849444926 | Y28: 1.10231131 | Z28: 1
A29: Passenger Mile | AA29: 1 | AB29: 1.609344
A30: Passenger Kilometer | AA30: 0.621371192 | AB30: 1
A33: Lookups for Regions
A35: Region
A36: US
A37: UK
A38: Other
A40: Lookups for Mode of Transport
A42: Mode of Transport
A43: Road
A44: Rail
A45: Water
A46: Aircraft
A48: Lookups for Type of Activity Data
A50: Type of Activity Data
A51: Fuel Use and Vehicle Distance
A52: Fuel Use
A53: Vehicle Distance (e.g. Road Transport)
A54: Passenger Distance (e.g. Public Transport)
A55: Weight Distance (e.g. Freight Transport)
A56: Custom Fuel
A57: Custom Vehicle
A60: Lookups for Scope
A62: Scope
A63: Scope 1
A64: Scope 3
A67: Blank list
A70: Denominator lookup list
A72: Units
A73: =A25 -> Tonne Mile
A74: =A28 -> Tonne Kilometer
A75: Short Ton Mile
A76: Short Ton Kilometer
A77: =A29 -> Passenger Mile
A78: =A30 -> Passenger Kilometer
A79: =A17 -> Mile
A80: =A18 -> Kilometer
A82: IPCC GWP Version
A84: IPCC GWP
A85: 1995 IPCC Second Assessment Report (SAR)
A86: 2001 IPCC Third Assessment Report (TAR)
A87: 2007 IPCC Fourth Assessment Report
A88: 2014 IPCC Fifth Assessment Report
A90: IPCC GWP Values
A92: IPCC GWP | B92: Waste | C92: GWP Value
A93: 1995 IPCC Second Assessment Report (SAR) | B93: CO2 | C93: 1
A94: 1995 IPCC Second Assessment Report (SAR) | B94: Biofuel CO2 | C94: 1
A95: 1995 IPCC Second Assessment Report (SAR) | B95: CH4 | C95: 21
A96: 1995 IPCC Second Assessment Report (SAR) | B96: N2O | C96: 310
A97: 2001 IPCC Third Assessment Report (TAR) | B97: CO2 | C97: 1
A98: 2001 IPCC Third Assessment Report (TAR) | B98: Biofuel CO2 | C98: 1
A99: 2001 IPCC Third Assessment Report (TAR) | B99: CH4 | C99: 23
A100: 2001 IPCC Third Assessment Report (TAR) | B100: N2O | C100: 296
A101: 2007 IPCC Fourth Assessment Report | B101: CO2 | C101: 1
A102: 2007 IPCC Fourth Assessment Report | B102: Biofuel CO2 | C102: 1
A103: 2007 IPCC Fourth Assessment Report | B103: CH4 | C103: 25
A104: 2007 IPCC Fourth Assessment Report | B104: N2O | C104: 298
A105: 2014 IPCC Fifth Assessment Report | B105: CO2 | C105: 1
A106: 2014 IPCC Fifth Assessment Report | B106: Biofuel CO2 | C106: 1
A107: 2014 IPCC Fifth Assessment Report | B107: CH4 | C107: 28
A108: 2014 IPCC Fifth Assessment Report | B108: N2O | C108: 265
A110: Activity Data Columns
A111: Columns
A112: ='Activity Data'!D9 -> Region
A113: ='Activity Data'!E9 -> Mode of Transport
A114: ='Activity Data'!F9 -> Scope
A115: ='Activity Data'!G9 -> Type of Activity Data
A116: ='Activity Data'!H10 -> Vehicle Type (For air transport, see footnote)
A117: ='Activity Data'!I10 -> Distance Travelled
A118: ='Activity Data'!J10 -> Total Weight of Freight
A119: ='Activity Data'!K10 -> # of Passenger
A120: ='Activity Data'!L10 -> Units of Measurement
A121: ='Activity Data'!M10 -> Fuel Used
A122: ='Activity Data'!N10 -> Fuel Amount
A123: ='Activity Data'!O10 -> Unit of Fuel Amount

Sheet Reference - EF Fuel Use (hidden)
A1: CO2 Emission Factors by Fuel
A3: Fuel | B3: Region | C3: CO2 | D3: CO2 - Biomass Fuel | E3: CO2 Unit - Numerator | F3: CO2 Unit - Denominator | G3: Default Scope | H3: Unit Type | I3: Mode of Transport
A4: Jet Fuel | B4: Other | C4: 9.428 | E4: Kilogram | F4: US Gallon | H4: Volume | I4: Aircraft
A5: Aviation Gasoline | B5: Other | C5: 8.333 | E5: Kilogram | F5: US Gallon | H5: Volume | I5: Aircraft
A6: Gasoline/Petrol | B6: Other | C6: 8.598734991 | E6: Kilogram | F6: US Gallon | H6: Volume
A7: On-Road Diesel Fuel | B7: Other | C7: 10.131 | E7: Kilogram | F7: US Gallon | H7: Volume
A8: Residual Fuel Oil (3s 5 and 6) | B8: Other | C8: 11.125 | E8: Kilogram | F8: US Gallon | H8: Volume
A9: LPG | B9: Other | C9: 6.1 | E9: Kilogram | F9: US Gallon | H9: Volume
A10: CNG | B10: Other | C10: 0.053 | E10: Kilogram | F10: Standard Cubic Foot | H10: Volume
A11: LNG | B11: Other | C11: 4.46 | E11: Kilogram | F11: US Gallon | H11: Volume
A12: Ethanol | B12: Other | D12: 5.56 | E12: Kilogram | F12: US Gallon | H12: Volume
A13: 100% Biodiesel | B13: Other | D13: 9.46 | E13: Kilogram | F13: US Gallon | H13: Volume
A14: E85 Ethanol/Gasoline | B14: Other | C14: 1.289810249 | D14: 4.726 | E14: Kilogram | F14: US Gallon | H14: Volume
A15: B20 Biodiesel/Diesel | B15: Other | C15: 8.104417776 | D15: 1.892 | E15: Kilogram | F15: US Gallon | H15: Volume
A16: =A4 -> Jet Fuel | B16: UK | C16: 9.54605 | E16: Kilogram | F16: US Gallon | H16: Volume | I16: Aircraft
A17: =A5 -> Aviation Gasoline | B17: UK | C17: 8.37295 | E17: Kilogram | F17: US Gallon | H17: Volume | I17: Aircraft
A18: Gasoline/Petrol | B18: UK | C18: 8.71326 | E18: Kilogram | F18: US Gallon | H18: Volume
A19: On-Road Diesel Fuel | B19: UK | C19: 9.99841 | E19: Kilogram | F19: US Gallon | H19: Volume
A20: Residual Fuel Oil (3s 5 and 6) | B20: UK | C20: 9.576713272 | E20: Kilogram | F20: US Gallon | H20: Volume
A21: LPG | B21: UK | C21: 5.641020641 | E21: Kilogram | F21: US Gallon | H21: Volume
A22: CNG | B22: UK | C22: 0.05728498066 | E22: Kilogram | F22: Standard Cubic Foot | H22: Volume
A23: LNG | B23: UK | C23: 4.645457341 | E23: Kilogram | F23: US Gallon | H23: Volume
A24: Ethanol | B24: UK | D24: 5.56 | E24: Kilogram | F24: US Gallon | H24: Volume
A25: 100% Biodiesel | B25: UK | D25: 9.46 | E25: Kilogram | F25: US Gallon | H25: Volume
A26: E85 Ethanol/Gasoline | B26: UK | C26: =0.15*C18 -> 1.306989 | D26: =0.85*D24 -> 4.726 | E26: Kilogram | F26: US Gallon | H26: Volume
A27: B20 Biodiesel/Diesel | B27: UK | C27: =0.8*C19 -> 7.998728 | D27: =0.2*D25 -> 1.892 | E27: Kilogram | F27: US Gallon | H27: Volume
A28: Jet Fuel | B28: US | C28: 9.57 | E28: Kilogram | F28: US Gallon | H28: Volume | I28: Aircraft
A29: Aviation Gasoline | B29: US | C29: 8.32 | E29: Kilogram | F29: US Gallon | H29: Volume | I29: Aircraft
A30: Gasoline/Petrol | B30: US | C30: 8.81 | E30: Kilogram | F30: US Gallon | H30: Volume
A31: On-Road Diesel Fuel | B31: US | C31: 10.15 | E31: Kilogram | F31: US Gallon | H31: Volume
A32: Residual Fuel Oil (3s 5 and 6) | B32: US | C32: 11.8 | E32: Kilogram | F32: US Gallon | H32: Volume
A33: LPG | B33: US | C33: 5.79 | E33: Kilogram | F33: US Gallon | H33: Volume
A34: CNG | B34: US | C34: 0.054 | E34: Kilogram | F34: Standard Cubic Foot | H34: Volume
A35: LNG | B35: US | C35: 4.46 | E35: Kilogram | F35: US Gallon | H35: Volume
A36: Ethanol | B36: US | D36: 5.56 | E36: Kilogram | F36: US Gallon | H36: Volume
A37: 100% Biodiesel | B37: US | D37: 9.46 | E37: Kilogram | F37: US Gallon | H37: Volume
A38: E85 Ethanol/Gasoline | B38: US | C38: =0.15*C30 -> 1.3215 | D38: =0.85*D36 -> 4.726 | E38: Kilogram | F38: US Gallon | H38: Volume
A39: B20 Biodiesel/Diesel | B39: US | C39: =0.8*C31 -> 8.12 | D39: =0.2*D37 -> 1.892 | E39: Kilogram | F39: US Gallon | H39: Volume
A41: CH4 and N2O Emission Factors by Fuel
A43: Transport and Fuel | B43: Region | C43: CH4 | D43: CH4 Unit - Numerator | E43: CH4 Unit - Denominator | F43: N2O | G43: N2O Unit - Numerator | H43: N2O Unit - Denominator | I43: Default Scope | J43: Mode of Transport
A44: Train - Diesel Fuel | B44: UK | C44: 0.8 | D44: Gram | E44: US Gallon | F44: 0.26 | G44: Gram | H44: US Gallon | J44: Rail
A45: Other | B45: UK | C45: 0 | D45: Gram | E45: US Gallon | F45: 0 | G45: Gram | H45: US Gallon | J45: Rail
A46: Agricultural Equipment - Gasoline | B46: UK | C46: 1.26 | D46: Gram | E46: US Gallon | F46: 0.22 | G46: Gram | H46: US Gallon | J46: Road
A47: Agricultural Equipment - Diesel Fuel | B47: UK | C47: 1.44 | D47: Gram | E47: US Gallon | F47: 0.26 | G47: Gram | H47: US Gallon | J47: Road
A48: Construction Equipment - Gasoline | B48: UK | C48: 0.5 | D48: Gram | E48: US Gallon | F48: 0.22 | G48: Gram | H48: US Gallon | J48: Road
A49: Construction Equipment - Diesel Fuel | B49: UK | C49: 0.58 | D49: Gram | E49: US Gallon | F49: 0.26 | G49: Gram | H49: US Gallon | J49: Road
A50: Other | B50: UK | C50: 0 | D50: Gram | E50: US Gallon | F50: 0 | G50: Gram | H50: US Gallon | J50: Road
A51: Ship and Boat - Residual Fuel Oil | B51: UK | C51: 0.86 | D51: Gram | E51: US Gallon | F51: 0.3 | G51: Gram | H51: US Gallon | J51: Water
A52: Ship and Boat - Diesel Fuel | B52: UK | C52: 0.74 | D52: Gram | E52: US Gallon | F52: 0.26 | G52: Gram | H52: US Gallon | J52: Water
A53: Ship and Boat - Gasoline | B53: UK | C53: 0.64 | D53: Gram | E53: US Gallon | F53: 0.22 | G53: Gram | H53: US Gallon | J53: Water
A54: Other | B54: UK | C54: 0 | D54: Gram | E54: US Gallon | F54: 0 | G54: Gram | H54: US Gallon | J54: Water
A55: Other | B55: UK | C55: 0 | D55: Gram | E55: US Gallon | F55: 0 | G55: Gram | H55: US Gallon | J55: AirCraft
A56: Train - Diesel Fuel | B56: US | C56: 0.8 | D56: Gram | E56: US Gallon | F56: 0.26 | G56: Gram | H56: US Gallon | J56: Rail
A57: Agricultural Equipment - Gasoline | B57: US | C57: 1.26 | D57: Gram | E57: US Gallon | F57: 0.22 | G57: Gram | H57: US Gallon | J57: Road
A58: Agricultural Equipment - Diesel Fuel | B58: US | C58: 1.44 | D58: Gram | E58: US Gallon | F58: 0.26 | G58: Gram | H58: US Gallon | J58: Road
A59: Construction Equipment - Gasoline | B59: US | C59: 0.5 | D59: Gram | E59: US Gallon | F59: 0.22 | G59: Gram | H59: US Gallon | J59: Road
A60: Construction Equipment - Diesel Fuel | B60: US | C60: 0.58 | D60: Gram | E60: US Gallon | F60: 0.26 | G60: Gram | H60: US Gallon | J60: Road
A61: Bus - CNG | B61: US | C61: 4.7184 | D61: Gram | E61: US Gallon | F61: 0.42 | G61: Gram | H61: US Gallon | J61: Road
A62: Bus - Ethanol | B62: US | C62: 0.985 | D62: Gram | E62: US Gallon | F62: 0.875 | G62: Gram | H62: US Gallon | J62: Road
A63: Bus - Diesel | B63: US | C63: 0.01887 | D63: Gram | E63: US Gallon | F63: 0.01776 | G63: Gram | H63: US Gallon | J63: Road
A64: Bus - Gasoline | B64: US | C64: 0.105 | D64: Gram | E64: US Gallon | F64: 0.085 | G64: Gram | H64: US Gallon | J64: Road
A65: Passenger Car - Gasoline - Year 1984-1993 | B65: US | C65: 1.584 | D65: Gram | E65: US Gallon | F65: 1.45575 | G65: Gram | H65: US Gallon | J65: Road
A66: Passenger Car - Gasoline - Year 1994 | B66: US | C66: 1.19475 | D66: Gram | E66: US Gallon | F66: 1.26 | G66: Gram | H66: US Gallon | J66: Road
A67: Passenger Car - Gasoline - Year 1995 | B67: US | C67: 0.8055 | D67: Gram | E67: US Gallon | F67: 1.06425 | G67: Gram | H67: US Gallon | J67: Road
A68: Passenger Car - Gasoline - Year 1996 | B68: US | C68: 0.612 | D68: Gram | E68: US Gallon | F68: 0.9585 | G68: Gram | H68: US Gallon | J68: Road
A69: Passenger Car - Gasoline - Year 1997 | B69: US | C69: 0.603 | D69: Gram | E69: US Gallon | F69: 0.9495 | G69: Gram | H69: US Gallon | J69: Road
A70: Passenger Car - Gasoline - Year 1998 | B70: US | C70: 0.56025 | D70: Gram | E70: US Gallon | F70: 0.88425 | G70: Gram | H70: US Gallon | J70: Road
A71: Passenger Car - Gasoline - Year 1999 | B71: US | C71: 0.486 | D71: Gram | E71: US Gallon | F71: 0.75825 | G71: Gram | H71: US Gallon | J71: Road
A72: Passenger Car - Gasoline - Year 2000 | B72: US | C72: 0.4005 | D72: Gram | E72: US Gallon | F72: 0.61425 | G72: Gram | H72: US Gallon | J72: Road
A73: Passenger Car - Gasoline - Year 2001 | B73: US | C73: 0.2475 | D73: Gram | E73: US Gallon | F73: 0.3555 | G73: Gram | H73: US Gallon | J73: Road
A74: Passenger Car - Gasoline - Year 2002 | B74: US | C74: 0.24075 | D74: Gram | E74: US Gallon | F74: 0.34425 | G74: Gram | H74: US Gallon | J74: Road
A75: Passenger Car - Gasoline - Year 2003 | B75: US | C75: 0.2565 | D75: Gram | E75: US Gallon | F75: 0.30375 | G75: Gram | H75: US Gallon | J75: Road
A76: Passenger Car - Gasoline - Year 2004 | B76: US | C76: 0.32625 | D76: Gram | E76: US Gallon | F76: 0.18675 | G76: Gram | H76: US Gallon | J76: Road
A77: Passenger Car - Gasoline - Year 2005-present | B77: US | C77: 0.33075 | D77: Gram | E77: US Gallon | F77: 0.17775 | G77: Gram | H77: US Gallon | J77: Road
A78: Passenger Car - Diesel - Year 1960-1982 | B78: US | C78: 0.0135 | D78: Gram | E78: US Gallon | F78: 0.027 | G78: Gram | H78: US Gallon | J78: Road
A79: Passenger Car - Diesel - Year 1983-present | B79: US | C79: 0.01125 | D79: Gram | E79: US Gallon | F79: 0.0225 | G79: Gram | H79: US Gallon | J79: Road
A80: Passenger Car - Fuel Unknown | B80: US | C80: 0.6975 | D80: Gram | E80: US Gallon | F80: 0.72 | G80: Gram | H80: US Gallon | J80: Road
A81: Light Goods Vehicle - CNG | B81: US | C81: 11.9394 | D81: Gram | E81: US Gallon | F81: 0.81 | G81: Gram | H81: US Gallon | J81: Road
A82: Light Goods Vehicle - LPG | B82: US | C82: 0.5994 | D82: Gram | E82: US Gallon | F82: 1.0854 | G82: Gram | H82: US Gallon | J82: Road
A83: Light Goods Vehicle - Ethanol | B83: US | C83: 0.891 | D83: Gram | E83: US Gallon | F83: 1.0854 | G83: Gram | H83: US Gallon | J83: Road
A84: Light Goods Vehicle - Gasoline - Year 1987-1993 | B84: US | C84: 1.31706 | D84: Gram | E84: US Gallon | F84: 1.6767 | G84: Gram | H84: US Gallon | J84: Road
A85: Light Goods Vehicle - Gasoline - Year 1994 | B85: US | C85: 1.04652 | D85: Gram | E85: US Gallon | F85: 1.59084 | G85: Gram | H85: US Gallon | J85: Road
A86: Light Goods Vehicle - Gasoline - Year 1995 | B86: US | C86: 0.83754 | D86: Gram | E86: US Gallon | F86: 1.47096 | G86: Gram | H86: US Gallon | J86: Road
A87: Light Goods Vehicle - Gasoline - Year 1996 | B87: US | C87: 0.73224 | D87: Gram | E87: US Gallon | F87: 1.41102 | G87: Gram | H87: US Gallon | J87: Road
A88: Light Goods Vehicle - Gasoline - Year 1997 | B88: US | C88: 0.73224 | D88: Gram | E88: US Gallon | F88: 1.41102 | G88: Gram | H88: US Gallon | J88: Road
A89: Light Goods Vehicle - Gasoline - Year 1998 | B89: US | C89: 0.63342 | D89: Gram | E89: US Gallon | F89: 1.17936 | G89: Gram | H89: US Gallon | J89: Road
A90: Light Goods Vehicle - Gasoline - Year 1999 | B90: US | C90: 0.52002 | D90: Gram | E90: US Gallon | F90: 0.91368 | G90: Gram | H90: US Gallon | J90: Road
A91: Light Goods Vehicle - Gasoline - Year 2000 | B91: US | C91: 0.56052 | D91: Gram | E91: US Gallon | F91: 1.00602 | G91: Gram | H91: US Gallon | J91: Road
A92: Light Goods Vehicle - Gasoline - Year 2001 | B92: US | C92: 0.24462 | D92: Gram | E92: US Gallon | F92: 0.26568 | G92: Gram | H92: US Gallon | J92: Road
A93: Light Goods Vehicle - Gasoline - Year 2002 | B93: US | C93: 0.28836 | D93: Gram | E93: US Gallon | F93: 0.36936 | G93: Gram | H93: US Gallon | J93: Road
A94: Light Goods Vehicle - Gasoline - Year 2003 | B94: US | C94: 0.2511 | D94: Gram | E94: US Gallon | F94: 0.18468 | G94: Gram | H94: US Gallon | J94: Road
A95: Light Goods Vehicle - Gasoline - Year 2004 | B95: US | C95: 0.24624 | D95: Gram | E95: US Gallon | F95: 0.21384 | G95: Gram | H95: US Gallon | J95: Road
A96: Light Goods Vehicle - Gasoline - Year 2005-present | B96: US | C96: 0.25434 | D96: Gram | E96: US Gallon | F96: 0.16362 | G96: Gram | H96: US Gallon | J96: Road
A97: Light Goods Vehicle - Diesel - Year 1960-1982 | B97: US | C97: 0.01782 | D97: Gram | E97: US Gallon | F97: 0.02754 | G97: Gram | H97: US Gallon | J97: Road
A98: Light Goods Vehicle - Diesel - Year 1983-1995 | B98: US | C98: 0.01458 | D98: Gram | E98: US Gallon | F98: 0.02268 | G98: Gram | H98: US Gallon | J98: Road
A99: Light Goods Vehicle - Diesel - Year 1996-present | B99: US | C99: 0.0162 | D99: Gram | E99: US Gallon | F99: 0.0243 | G99: Gram | H99: US Gallon | J99: Road
A100: Light Goods Vehicle - Fuel Unknown | B100: US | C100: 0.5832 | D100: Gram | E100: US Gallon | F100: 0.7614 | G100: Gram | H100: US Gallon | J100: Road
A101: Heavy Duty Vehicle - Rigid - Gasoline - Year 1985-1986 | B101: US | C101: 3.5992 | D101: Gram | E101: US Gallon | F101: 0.4532 | G101: Gram | H101: US Gallon | J101: Road
A102: Heavy Duty Vehicle - Rigid - Gasoline - Year 1987 | B102: US | C102: 3.234 | D102: Gram | E102: US Gallon | F102: 0.74712 | G102: Gram | H102: US Gallon | J102: Road
A103: Heavy Duty Vehicle - Rigid - Gasoline - Year 1988-1989 | B103: US | C103: 3.07296 | D103: Gram | E103: US Gallon | F103: 0.82104 | G103: Gram | H103: US Gallon | J103: Road
A104: Heavy Duty Vehicle - Rigid - Gasoline - Year 1990-1995 | B104: US | C104: 2.85648 | D104: Gram | E104: US Gallon | F104: 1.00496 | G104: Gram | H104: US Gallon | J104: Road
A105: Heavy Duty Vehicle - Rigid - Gasoline - Year 1996 | B105: US | C105: 1.12464 | D105: Gram | E105: US Gallon | F105: 1.4784 | G105: Gram | H105: US Gallon | J105: Road
A106: Heavy Duty Vehicle - Rigid - Gasoline - Year 1997 | B106: US | C106: 0.81312 | D106: Gram | E106: US Gallon | F106: 1.51888 | G106: Gram | H106: US Gallon | J106: Road
A107: Heavy Duty Vehicle - Rigid - Gasoline - Year 1998 | B107: US | C107: 0.56408 | D107: Gram | E107: US Gallon | F107: 1.48984 | G107: Gram | H107: US Gallon | J107: Road
A108: Heavy Duty Vehicle - Rigid - Gasoline - Year 1999 | B108: US | C108: 0.50864 | D108: Gram | E108: US Gallon | F108: 1.2628 | G108: Gram | H108: US Gallon | J108: Road
A109: Heavy Duty Vehicle - Rigid - Gasoline - Year 2000 | B109: US | C109: 0.43384 | D109: Gram | E109: US Gallon | F109: 0.96096 | G109: Gram | H109: US Gallon | J109: Road
A110: Heavy Duty Vehicle - Rigid - Gasoline - Year 2001 | B110: US | C110: 0.46464 | D110: Gram | E110: US Gallon | F110: 1.0868 | G110: Gram | H110: US Gallon | J110: Road
A111: Heavy Duty Vehicle - Rigid - Gasoline - Year 2002 | B111: US | C111: 0.48048 | D111: Gram | E111: US Gallon | F111: 1.15016 | G111: Gram | H111: US Gallon | J111: Road
A112: Heavy Duty Vehicle - Rigid - Gasoline - Year 2003 | B112: US | C112: 0.46904 | D112: Gram | E112: US Gallon | F112: 1.0912 | G112: Gram | H112: US Gallon | J112: Road
A113: Heavy Duty Vehicle - Rigid - Gasoline - Year 2004 | B113: US | C113: 0.30008 | D113: Gram | E113: US Gallon | F113: 0.2508 | G113: Gram | H113: US Gallon | J113: Road
A114: Heavy Duty Vehicle - Rigid - Gasoline - Year 2005-present | B114: US | C114: 0.28688 | D114: Gram | E114: US Gallon | F114: 0.15576 | G114: Gram | H114: US Gallon | J114: Road
A115: Heavy Duty Vehicle - Rigid - Diesel - Year 1960-present | B115: US | C115: 0.04488 | D115: Gram | E115: US Gallon | F115: 0.04224 | G115: Gram | H115: US Gallon | J115: Road
A116: Heavy Duty Vehicle - Rigid - CNG | B116: US | C116: 17.3008 | D116: Gram | E116: US Gallon | F116: 1.54 | G116: Gram | H116: US Gallon | J116: Road
A117: Heavy Duty Vehicle - Rigid - LNG | B117: US | C117: 17.3008 | D117: Gram | E117: US Gallon | F117: 1.54 | G117: Gram | H117: US Gallon | J117: Road
A118: Heavy Duty Vehicle - Rigid - LPG | B118: US | C118: 0.5808 | D118: Gram | E118: US Gallon | F118: 1.54 | G118: Gram | H118: US Gallon | J118: Road
A119: Heavy Duty Vehicle - Rigid - Ethanol | B119: US | C119: 1.7336 | D119: Gram | E119: US Gallon | F119: 1.54 | G119: Gram | H119: US Gallon | J119: Road
A120: Heavy Duty Vehicle - Rigid - Fuel Unknown | B120: US | C120: 0.1848 | D120: Gram | E120: US Gallon | F120: 0.1496 | G120: Gram | H120: US Gallon | J120: Road
A121: Heavy Duty Vehicle - Articulated - Gasoline - Year 1985-1986 | B121: US | C121: 2.4131 | D121: Gram | E121: US Gallon | F121: 0.30385 | G121: Gram | H121: US Gallon | J121: Road
A122: Heavy Duty Vehicle - Articulated - Gasoline - Year 1987 | B122: US | C122: 2.16825 | D122: Gram | E122: US Gallon | F122: 0.50091 | G122: Gram | H122: US Gallon | J122: Road
A123: Heavy Duty Vehicle - Articulated - Gasoline - Year 1988-1989 | B123: US | C123: 2.06028 | D123: Gram | E123: US Gallon | F123: 0.55047 | G123: Gram | H123: US Gallon | J123: Road
A124: Heavy Duty Vehicle - Articulated - Gasoline - Year 1990-1995 | B124: US | C124: 1.91514 | D124: Gram | E124: US Gallon | F124: 0.67378 | G124: Gram | H124: US Gallon | J124: Road
A125: Heavy Duty Vehicle - Articulated - Gasoline - Year 1996 | B125: US | C125: 0.75402 | D125: Gram | E125: US Gallon | F125: 0.9912 | G125: Gram | H125: US Gallon | J125: Road
A126: Heavy Duty Vehicle - Articulated - Gasoline - Year 1997 | B126: US | C126: 0.54516 | D126: Gram | E126: US Gallon | F126: 1.01834 | G126: Gram | H126: US Gallon | J126: Road
A127: Heavy Duty Vehicle - Articulated - Gasoline - Year 1998 | B127: US | C127: 0.37819 | D127: Gram | E127: US Gallon | F127: 0.99887 | G127: Gram | H127: US Gallon | J127: Road
A128: Heavy Duty Vehicle - Articulated - Gasoline - Year 1999 | B128: US | C128: 0.34102 | D128: Gram | E128: US Gallon | F128: 0.84665 | G128: Gram | H128: US Gallon | J128: Road
A129: Heavy Duty Vehicle - Articulated - Gasoline - Year 2000 | B129: US | C129: 0.29087 | D129: Gram | E129: US Gallon | F129: 0.64428 | G129: Gram | H129: US Gallon | J129: Road
A130: Heavy Duty Vehicle - Articulated - Gasoline - Year 2001 | B130: US | C130: 0.31152 | D130: Gram | E130: US Gallon | F130: 0.72865 | G130: Gram | H130: US Gallon | J130: Road
A131: Heavy Duty Vehicle - Articulated - Gasoline - Year 2002 | B131: US | C131: 0.32214 | D131: Gram | E131: US Gallon | F131: 0.77113 | G131: Gram | H131: US Gallon | J131: Road
A132: Heavy Duty Vehicle - Articulated - Gasoline - Year 2003 | B132: US | C132: 0.31447 | D132: Gram | E132: US Gallon | F132: 0.7316 | G132: Gram | H132: US Gallon | J132: Road
A133: Heavy Duty Vehicle - Articulated - Gasoline - Year 2004 | B133: US | C133: 0.20119 | D133: Gram | E133: US Gallon | F133: 0.16815 | G133: Gram | H133: US Gallon | J133: Road
A134: Heavy Duty Vehicle - Articulated - Gasoline - Year 2005-present | B134: US | C134: 0.19234 | D134: Gram | E134: US Gallon | F134: 0.10443 | G134: Gram | H134: US Gallon | J134: Road
A135: Heavy Duty Vehicle - Articulated - Diesel - Year 1960-present | B135: US | C135: 0.03009 | D135: Gram | E135: US Gallon | F135: 0.02832 | G135: Gram | H135: US Gallon | J135: Road
A136: Heavy Duty Vehicle - Articulated - CNG | B136: US | C136: 11.5994 | D136: Gram | E136: US Gallon | F136: 1.0325 | G136: Gram | H136: US Gallon | J136: Road
A137: Heavy Duty Vehicle - Articulated - LNG | B137: US | C137: 11.5994 | D137: Gram | E137: US Gallon | F137: 1.0325 | G137: Gram | H137: US Gallon | J137: Road
A138: Heavy Duty Vehicle - Articulated - LPG | B138: US | C138: 0.3894 | D138: Gram | E138: US Gallon | F138: 1.0325 | G138: Gram | H138: US Gallon | J138: Road
A139: Heavy Duty Vehicle - Articulated - Ethanol | B139: US | C139: 1.1623 | D139: Gram | E139: US Gallon | F139: 1.0325 | G139: Gram | H139: US Gallon | J139: Road
A140: Heavy Duty Vehicle - Articulated - Fuel Unknown | B140: US | C140: 0.1239 | D140: Gram | E140: US Gallon | F140: 0.1003 | G140: Gram | H140: US Gallon | J140: Road
A141: Motorbike - Non-Catalyst Control | B141: US | C141: 3.36 | D141: Gram | E141: US Gallon | F141: 0.345 | G141: Gram | H141: US Gallon | J141: Road
A142: Motorbike - Uncontrolled | B142: US | C142: 4.495 | D142: Gram | E142: US Gallon | F142: 0.435 | G142: Gram | H142: US Gallon | J142: Road
A143: Motorbike - Control Unknown | B143: US | C143: 3.5 | D143: Gram | E143: US Gallon | F143: 0.35 | G143: Gram | H143: US Gallon | J143: Road
A144: Ship and Boat - Residual Fuel Oil | B144: US | C144: 0.86 | D144: Gram | E144: US Gallon | F144: 0.3 | G144: Gram | H144: US Gallon | J144: Water
A145: Ship and Boat - Diesel Fuel | B145: US | C145: 0.74 | D145: Gram | E145: US Gallon | F145: 0.26 | G145: Gram | H145: US Gallon | J145: Water
A146: Ship and Boat - Gasoline | B146: US | C146: 0.64 | D146: Gram | E146: US Gallon | F146: 0.22 | G146: Gram | H146: US Gallon | J146: Water
A147: Train - Diesel Fuel | B147: Other | J147: Rail
A148: Other | B148: Other | J148: Rail
A149: Agricultural Equipment - Gasoline | B149: Other | J149: Road
A150: Agricultural Equipment - Diesel Fuel | B150: Other | J150: Road
A151: Construction Equipment - Gasoline | B151: Other | J151: Road
A152: Construction Equipment - Diesel Fuel | B152: Other | J152: Road
A153: Other | B153: Other | J153: Road
A154: Ship and Boat - Residual Fuel Oil | B154: Other | J154: Water
A155: Ship and Boat - Diesel Fuel | B155: Other | J155: Water
A156: Ship and Boat - Gasoline | B156: Other | J156: Water
A157: Other | B157: Other | J157: Water
A158: Other | B158: Other | J158: AirCraft

Sheet Reference - EF Road (hidden)
A1: CO2, CH4 and N2O Emission Factors for US by Vehicle Distance
A3: Vehicle and Fuel and Vehicle Year | B3: Region | C3: CH4 | D3: CH4 Unit - Numerator | E3: CH4 Unit - Denominator | F3: N2O | G3: N2O Unit - Numerator | H3: N2O Unit - Denominator | I3: Default Scope | J3: Mode of Transport | K3: Fuel Efficiency | L3: Fuel Efficiency Unit - Numerator | M3: Fuel Efficiency Unit - Denominator | N3: Fuel | O3: CO2 | P3: CO2 - Biomass Fuel | Q3: CO2 Unit - Numerator | R3: CO2 Unit - Denominator
A4: Bus - CNG | B4: Other | J4: Road | K4: 2.4 | L4: Mile | M4: US Gallon | N4: CNG
A5: Bus - Ethanol | B5: Other | J5: Road | K5: 5 | L5: Mile | M5: US Gallon | N5: Ethanol | P5: 1.112 | Q5: Kilogram | R5: Mile
A6: Bus - Diesel | B6: Other | J6: Road | K6: 3.7 | L6: Mile | M6: US Gallon | N6: On-Road Diesel Fuel | O6: 2.738108108 | Q6: Kilogram | R6: Mile
A7: Bus - Gasoline | B7: Other | J7: Road | K7: 5 | L7: Mile | M7: US Gallon | N7: Gasoline/Petrol | O7: 1.719746998 | Q7: Kilogram | R7: Mile
A8: Passenger Car - Gasoline - Year 1984-1993 | B8: Other | J8: Road | K8: 22.5 | L8: Mile | M8: US Gallon | N8: Gasoline/Petrol | O8: 0.3821659996 | Q8: Kilogram | R8: Mile
A9: Passenger Car - Gasoline - Year 1994 | B9: Other | J9: Road | K9: 22.5 | L9: Mile | M9: US Gallon | N9: Gasoline/Petrol | O9: 0.3821659996 | Q9: Kilogram | R9: Mile
A10: Passenger Car - Gasoline - Year 1995 | B10: Other | J10: Road | K10: 22.5 | L10: Mile | M10: US Gallon | N10: Gasoline/Petrol | O10: 0.3821659996 | Q10: Kilogram | R10: Mile
A11: Passenger Car - Gasoline - Year 1996 | B11: Other | J11: Road | K11: 22.5 | L11: Mile | M11: US Gallon | N11: Gasoline/Petrol | O11: 0.3821659996 | Q11: Kilogram | R11: Mile
A12: Passenger Car - Gasoline - Year 1997 | B12: Other | J12: Road | K12: 22.5 | L12: Mile | M12: US Gallon | N12: Gasoline/Petrol | O12: 0.3821659996 | Q12: Kilogram | R12: Mile
A13: Passenger Car - Gasoline - Year 1998 | B13: Other | J13: Road | K13: 22.5 | L13: Mile | M13: US Gallon | N13: Gasoline/Petrol | O13: 0.3821659996 | Q13: Kilogram | R13: Mile
A14: Passenger Car - Gasoline - Year 1999 | B14: Other | J14: Road | K14: 22.5 | L14: Mile | M14: US Gallon | N14: Gasoline/Petrol | O14: 0.3821659996 | Q14: Kilogram | R14: Mile
A15: Passenger Car - Gasoline - Year 2000 | B15: Other | J15: Road | K15: 22.5 | L15: Mile | M15: US Gallon | N15: Gasoline/Petrol | O15: 0.3821659996 | Q15: Kilogram | R15: Mile
A16: Passenger Car - Gasoline - Year 2001 | B16: Other | J16: Road | K16: 22.5 | L16: Mile | M16: US Gallon | N16: Gasoline/Petrol | O16: 0.3821659996 | Q16: Kilogram | R16: Mile
A17: Passenger Car - Gasoline - Year 2002 | B17: Other | J17: Road | K17: 22.5 | L17: Mile | M17: US Gallon | N17: Gasoline/Petrol | O17: 0.3821659996 | Q17: Kilogram | R17: Mile
A18: Passenger Car - Gasoline - Year 2003 | B18: Other | J18: Road | K18: 22.5 | L18: Mile | M18: US Gallon | N18: Gasoline/Petrol | O18: 0.3821659996 | Q18: Kilogram | R18: Mile
A19: Passenger Car - Gasoline - Year 2004 | B19: Other | J19: Road | K19: 22.5 | L19: Mile | M19: US Gallon | N19: Gasoline/Petrol | O19: 0.3821659996 | Q19: Kilogram | R19: Mile
A20: Passenger Car - Gasoline - Year 2005-present | B20: Other | J20: Road | K20: 22.5 | L20: Mile | M20: US Gallon | N20: Gasoline/Petrol | O20: 0.3821659996 | Q20: Kilogram | R20: Mile
A21: Passenger Car - Diesel - Year 1960-1982 | B21: Other | J21: Road | K21: 22.5 | L21: Mile | M21: US Gallon | N21: On-Road Diesel Fuel | O21: 0.4502666667 | Q21: Kilogram | R21: Mile
A22: Passenger Car - Diesel - Year 1983-present | B22: Other | J22: Road | K22: 22.5 | L22: Mile | M22: US Gallon | N22: On-Road Diesel Fuel | O22: 0.4502666667 | Q22: Kilogram | R22: Mile
A23: Passenger Car - Fuel Unknown | B23: Other | J23: Road | K23: 22.5 | L23: Mile | M23: US Gallon
A24: Light Goods Vehicle - CNG | B24: Other | J24: Road | K24: 16.2 | L24: Mile | M24: US Gallon | N24: CNG
A25: Light Goods Vehicle - LPG | B25: Other | J25: Road | K25: 16.2 | L25: Mile | M25: US Gallon | N25: LPG | O25: 0.3765432099 | Q25: Kilogram | R25: Mile
A26: Light Goods Vehicle - Ethanol | B26: Other | J26: Road | K26: 16.2 | L26: Mile | M26: US Gallon | N26: Ethanol | P26: 0.3432098765 | Q26: Kilogram | R26: Mile
A27: Light Goods Vehicle - Gasoline - Year 1987-1993 | B27: Other | J27: Road | K27: 16.2 | L27: Mile | M27: US Gallon | N27: Gasoline/Petrol | O27: 0.5307861106 | Q27: Kilogram | R27: Mile
A28: Light Goods Vehicle - Gasoline - Year 1994 | B28: Other | J28: Road | K28: 16.2 | L28: Mile | M28: US Gallon | N28: Gasoline/Petrol | O28: 0.5307861106 | Q28: Kilogram | R28: Mile
A29: Light Goods Vehicle - Gasoline - Year 1995 | B29: Other | J29: Road | K29: 16.2 | L29: Mile | M29: US Gallon | N29: Gasoline/Petrol | O29: 0.5307861106 | Q29: Kilogram | R29: Mile
A30: Light Goods Vehicle - Gasoline - Year 1996 | B30: Other | J30: Road | K30: 16.2 | L30: Mile | M30: US Gallon | N30: Gasoline/Petrol | O30: 0.5307861106 | Q30: Kilogram | R30: Mile
A31: Light Goods Vehicle - Gasoline - Year 1997 | B31: Other | J31: Road | K31: 16.2 | L31: Mile | M31: US Gallon | N31: Gasoline/Petrol | O31: 0.5307861106 | Q31: Kilogram | R31: Mile
A32: Light Goods Vehicle - Gasoline - Year 1998 | B32: Other | J32: Road | K32: 16.2 | L32: Mile | M32: US Gallon | N32: Gasoline/Petrol | O32: 0.5307861106 | Q32: Kilogram | R32: Mile
A33: Light Goods Vehicle - Gasoline - Year 1999 | B33: Other | J33: Road | K33: 16.2 | L33: Mile | M33: US Gallon | N33: Gasoline/Petrol | O33: 0.5307861106 | Q33: Kilogram | R33: Mile
A34: Light Goods Vehicle - Gasoline - Year 2000 | B34: Other | J34: Road | K34: 16.2 | L34: Mile | M34: US Gallon | N34: Gasoline/Petrol | O34: 0.5307861106 | Q34: Kilogram | R34: Mile
A35: Light Goods Vehicle - Gasoline - Year 2001 | B35: Other | J35: Road | K35: 16.2 | L35: Mile | M35: US Gallon | N35: Gasoline/Petrol | O35: 0.5307861106 | Q35: Kilogram | R35: Mile
A36: Light Goods Vehicle - Gasoline - Year 2002 | B36: Other | J36: Road | K36: 16.2 | L36: Mile | M36: US Gallon | N36: Gasoline/Petrol | O36: 0.5307861106 | Q36: Kilogram | R36: Mile
A37: Light Goods Vehicle - Gasoline - Year 2003 | B37: Other | J37: Road | K37: 16.2 | L37: Mile | M37: US Gallon | N37: Gasoline/Petrol | O37: 0.5307861106 | Q37: Kilogram | R37: Mile
A38: Light Goods Vehicle - Gasoline - Year 2004 | B38: Other | J38: Road | K38: 16.2 | L38: Mile | M38: US Gallon | N38: Gasoline/Petrol | O38: 0.5307861106 | Q38: Kilogram | R38: Mile
A39: Light Goods Vehicle - Gasoline - Year 2005-present | B39: Other | J39: Road | K39: 16.2 | L39: Mile | M39: US Gallon | N39: Gasoline/Petrol | O39: 0.5307861106 | Q39: Kilogram | R39: Mile
A40: Light Goods Vehicle - Diesel - Year 1960-1982 | B40: Other | J40: Road | K40: 16.2 | L40: Mile | M40: US Gallon | N40: On-Road Diesel Fuel | O40: 0.6253703704 | Q40: Kilogram | R40: Mile
A41: Light Goods Vehicle - Diesel - Year 1983-1995 | B41: Other | J41: Road | K41: 16.2 | L41: Mile | M41: US Gallon | N41: On-Road Diesel Fuel | O41: 0.6253703704 | Q41: Kilogram | R41: Mile
A42: Light Goods Vehicle - Diesel - Year 1996-present | B42: Other | J42: Road | K42: 16.2 | L42: Mile | M42: US Gallon | N42: On-Road Diesel Fuel | O42: 0.6253703704 | Q42: Kilogram | R42: Mile
A43: Light Goods Vehicle - Fuel Unknown | B43: Other | J43: Road | K43: 16.2 | L43: Mile | M43: US Gallon
A44: Heavy Duty Vehicle - Rigid - Gasoline - Year 1985-1986 | B44: Other | J44: Road | K44: 8.8 | L44: Mile | M44: US Gallon | N44: Gasoline/Petrol | O44: 0.9771289762 | Q44: Kilogram | R44: Mile
A45: Heavy Duty Vehicle - Rigid - Gasoline - Year 1987 | B45: Other | J45: Road | K45: 8.8 | L45: Mile | M45: US Gallon | N45: Gasoline/Petrol | O45: 0.9771289762 | Q45: Kilogram | R45: Mile
A46: Heavy Duty Vehicle - Rigid - Gasoline - Year 1988-1989 | B46: Other | J46: Road | K46: 8.8 | L46: Mile | M46: US Gallon | N46: Gasoline/Petrol | O46: 0.9771289762 | Q46: Kilogram | R46: Mile
A47: Heavy Duty Vehicle - Rigid - Gasoline - Year 1990-1995 | B47: Other | J47: Road | K47: 8.8 | L47: Mile | M47: US Gallon | N47: Gasoline/Petrol | O47: 0.9771289762 | Q47: Kilogram | R47: Mile
A48: Heavy Duty Vehicle - Rigid - Gasoline - Year 1996 | B48: Other | J48: Road | K48: 8.8 | L48: Mile | M48: US Gallon | N48: Gasoline/Petrol | O48: 0.9771289762 | Q48: Kilogram | R48: Mile
A49: Heavy Duty Vehicle - Rigid - Gasoline - Year 1997 | B49: Other | J49: Road | K49: 8.8 | L49: Mile | M49: US Gallon | N49: Gasoline/Petrol | O49: 0.9771289762 | Q49: Kilogram | R49: Mile
A50: Heavy Duty Vehicle - Rigid - Gasoline - Year 1998 | B50: Other | J50: Road | K50: 8.8 | L50: Mile | M50: US Gallon | N50: Gasoline/Petrol | O50: 0.9771289762 | Q50: Kilogram | R50: Mile
A51: Heavy Duty Vehicle - Rigid - Gasoline - Year 1999 | B51: Other | J51: Road | K51: 8.8 | L51: Mile | M51: US Gallon | N51: Gasoline/Petrol | O51: 0.9771289762 | Q51: Kilogram | R51: Mile
A52: Heavy Duty Vehicle - Rigid - Gasoline - Year 2000 | B52: Other | J52: Road | K52: 8.8 | L52: Mile | M52: US Gallon | N52: Gasoline/Petrol | O52: 0.9771289762 | Q52: Kilogram | R52: Mile
A53: Heavy Duty Vehicle - Rigid - Gasoline - Year 2001 | B53: Other | J53: Road | K53: 8.8 | L53: Mile | M53: US Gallon | N53: Gasoline/Petrol | O53: 0.9771289762 | Q53: Kilogram | R53: Mile
A54: Heavy Duty Vehicle - Rigid - Gasoline - Year 2002 | B54: Other | J54: Road | K54: 8.8 | L54: Mile | M54: US Gallon | N54: Gasoline/Petrol | O54: 0.9771289762 | Q54: Kilogram | R54: Mile
A55: Heavy Duty Vehicle - Rigid - Gasoline - Year 2003 | B55: Other | J55: Road | K55: 8.8 | L55: Mile | M55: US Gallon | N55: Gasoline/Petrol | O55: 0.9771289762 | Q55: Kilogram | R55: Mile
A56: Heavy Duty Vehicle - Rigid - Gasoline - Year 2004 | B56: Other | J56: Road | K56: 8.8 | L56: Mile | M56: US Gallon | N56: Gasoline/Petrol | O56: 0.9771289762 | Q56: Kilogram | R56: Mile
A57: Heavy Duty Vehicle - Rigid - Gasoline - Year 2005-present | B57: Other | J57: Road | K57: 8.8 | L57: Mile | M57: US Gallon | N57: Gasoline/Petrol | O57: 0.9771289762 | Q57: Kilogram | R57: Mile
A58: Heavy Duty Vehicle - Rigid - Diesel - Year 1960-present | B58: Other | J58: Road | K58: 8.8 | L58: Mile | M58: US Gallon | N58: On-Road Diesel Fuel | O58: 1.15125 | Q58: Kilogram | R58: Mile
A59: Heavy Duty Vehicle - Rigid - CNG | B59: Other | J59: Road | K59: 8.8 | L59: Mile | M59: US Gallon | N59: CNG
A60: Heavy Duty Vehicle - Rigid - LNG | B60: Other | J60: Road | K60: 8.8 | L60: Mile | M60: US Gallon | N60: LNG | O60: 0.5068181818 | Q60: Kilogram | R60: Mile
A61: Heavy Duty Vehicle - Rigid - LPG | B61: Other | J61: Road | K61: 8.8 | L61: Mile | M61: US Gallon | N61: LPG | O61: 0.6931818182 | Q61: Kilogram | R61: Mile
A62: Heavy Duty Vehicle - Rigid - Ethanol | B62: Other | J62: Road | K62: 8.8 | L62: Mile | M62: US Gallon | N62: Ethanol | P62: 0.6318181818 | Q62: Kilogram | R62: Mile
A63: Heavy Duty Vehicle - Rigid - Fuel Unknown | B63: Other | J63: Road | K63: 8.8 | L63: Mile | M63: US Gallon
A64: Heavy Duty Vehicle - Articulated - Gasoline - Year 1985-1986 | B64: Other | J64: Road | K64: 5.9 | L64: Mile | M64: US Gallon | N64: Gasoline/Petrol | O64: 1.45741271 | Q64: Kilogram | R64: Mile
A65: Heavy Duty Vehicle - Articulated - Gasoline - Year 1987 | B65: Other | J65: Road | K65: 5.9 | L65: Mile | M65: US Gallon | N65: Gasoline/Petrol | O65: 1.45741271 | Q65: Kilogram | R65: Mile
A66: Heavy Duty Vehicle - Articulated - Gasoline - Year 1988-1989 | B66: Other | J66: Road | K66: 5.9 | L66: Mile | M66: US Gallon | N66: Gasoline/Petrol | O66: 1.45741271 | Q66: Kilogram | R66: Mile
A67: Heavy Duty Vehicle - Articulated - Gasoline - Year 1990-1995 | B67: Other | J67: Road | K67: 5.9 | L67: Mile | M67: US Gallon | N67: Gasoline/Petrol | O67: 1.45741271 | Q67: Kilogram | R67: Mile
A68: Heavy Duty Vehicle - Articulated - Gasoline - Year 1996 | B68: Other | J68: Road | K68: 5.9 | L68: Mile | M68: US Gallon | N68: Gasoline/Petrol | O68: 1.45741271 | Q68: Kilogram | R68: Mile
A69: Heavy Duty Vehicle - Articulated - Gasoline - Year 1997 | B69: Other | J69: Road | K69: 5.9 | L69: Mile | M69: US Gallon | N69: Gasoline/Petrol | O69: 1.45741271 | Q69: Kilogram | R69: Mile
A70: Heavy Duty Vehicle - Articulated - Gasoline - Year 1998 | B70: Other | J70: Road | K70: 5.9 | L70: Mile | M70: US Gallon | N70: Gasoline/Petrol | O70: 1.45741271 | Q70: Kilogram | R70: Mile
A71: Heavy Duty Vehicle - Articulated - Gasoline - Year 1999 | B71: Other | J71: Road | K71: 5.9 | L71: Mile | M71: US Gallon | N71: Gasoline/Petrol | O71: 1.45741271 | Q71: Kilogram | R71: Mile
A72: Heavy Duty Vehicle - Articulated - Gasoline - Year 2000 | B72: Other | J72: Road | K72: 5.9 | L72: Mile | M72: US Gallon | N72: Gasoline/Petrol | O72: 1.45741271 | Q72: Kilogram | R72: Mile
A73: Heavy Duty Vehicle - Articulated - Gasoline - Year 2001 | B73: Other | J73: Road | K73: 5.9 | L73: Mile | M73: US Gallon | N73: Gasoline/Petrol | O73: 1.45741271 | Q73: Kilogram | R73: Mile
A74: Heavy Duty Vehicle - Articulated - Gasoline - Year 2002 | B74: Other | J74: Road | K74: 5.9 | L74: Mile | M74: US Gallon | N74: Gasoline/Petrol | O74: 1.45741271 | Q74: Kilogram | R74: Mile
A75: Heavy Duty Vehicle - Articulated - Gasoline - Year 2003 | B75: Other | J75: Road | K75: 5.9 | L75: Mile | M75: US Gallon | N75: Gasoline/Petrol | O75: 1.45741271 | Q75: Kilogram | R75: Mile
A76: Heavy Duty Vehicle - Articulated - Gasoline - Year 2004 | B76: Other | J76: Road | K76: 5.9 | L76: Mile | M76: US Gallon | N76: Gasoline/Petrol | O76: 1.45741271 | Q76: Kilogram | R76: Mile
A77: Heavy Duty Vehicle - Articulated - Gasoline - Year 2005-present | B77: Other | J77: Road | K77: 5.9 | L77: Mile | M77: US Gallon | N77: Gasoline/Petrol | O77: 1.45741271 | Q77: Kilogram | R77: Mile
A78: Heavy Duty Vehicle - Articulated - Diesel - Year 1960-present | B78: Other | J78: Road | K78: 5.9 | L78: Mile | M78: US Gallon | N78: On-Road Diesel Fuel | O78: 1.717118644 | Q78: Kilogram | R78: Mile
A79: Heavy Duty Vehicle - Articulated - CNG | B79: Other | J79: Road | K79: 5.9 | L79: Mile | M79: US Gallon | N79: CNG
A80: Heavy Duty Vehicle - Articulated - LNG | B80: Other | J80: Road | K80: 5.9 | L80: Mile | M80: US Gallon | N80: LNG | O80: 0.7559322034 | Q80: Kilogram | R80: Mile
A81: Heavy Duty Vehicle - Articulated - LPG | B81: Other | J81: Road | K81: 5.9 | L81: Mile | M81: US Gallon | N81: LPG | O81: 1.033898305 | Q81: Kilogram | R81: Mile
A82: Heavy Duty Vehicle - Articulated - Ethanol | B82: Other | J82: Road | K82: 5.9 | L82: Mile | M82: US Gallon | N82: Ethanol | P82: 0.9423728814 | Q82: Kilogram | R82: Mile
A83: Heavy Duty Vehicle - Articulated - Fuel Unknown | B83: Other | J83: Road | K83: 5.9 | L83: Mile | M83: US Gallon
A84: Motorbike - Non-Catalyst Control | B84: Other | J84: Road | K84: 50 | L84: Mile | M84: US Gallon | N84: On-Road Diesel Fuel | O84: 0.20262 | Q84: Kilogram | R84: Mile
A85: Motorbike - Uncontrolled | B85: Other | J85: Road | K85: 50 | L85: Mile | M85: US Gallon | N85: On-Road Diesel Fuel | O85: 0.20262 | Q85: Kilogram | R85: Mile
A86: Motorbike - Control Unknown | B86: Other | J86: Road | K86: 50 | L86: Mile | M86: US Gallon | N86: On-Road Diesel Fuel | O86: 0.20262 | Q86: Kilogram | R86: Mile
A87: Bus - CNG | B87: US | C87: 1.966 | D87: Gram | E87: Mile | F87: 0.175 | G87: Gram | H87: Mile | J87: Road | K87: 2.4 | L87: Mile | M87: US Gallon | N87: CNG
A88: Bus - Ethanol | B88: US | C88: 0.197 | D88: Gram | E88: Mile | F88: 0.175 | G88: Gram | H88: Mile | J88: Road | K88: 5 | L88: Mile | M88: US Gallon | N88: Ethanol | P88: 1.112 | Q88: Kilogram | R88: Mile
A89: Bus - Diesel | B89: US | C89: 0.0051 | D89: Gram | E89: Mile | F89: 0.0048 | G89: Gram | H89: Mile | J89: Road | K89: 3.7 | L89: Mile | M89: US Gallon | N89: On-Road Diesel Fuel | O89: 2.743243243 | Q89: Kilogram | R89: Mile
A90: Bus - Gasoline | B90: US | C90: 0.021 | D90: Gram | E90: Mile | F90: 0.017 | G90: Gram | H90: Mile | J90: Road | K90: 5 | L90: Mile | M90: US Gallon | N90: Gasoline/Petrol | O90: 1.762 | Q90: Kilogram | R90: Mile
A91: Passenger Car - Gasoline - Year 1984-1993 | B91: US | C91: 0.0704 | D91: Gram | E91: Mile | F91: 0.0647 | G91: Gram | H91: Mile | J91: Road | K91: 22.5 | L91: Mile | M91: US Gallon | N91: Gasoline/Petrol | O91: 0.3915555556 | Q91: Kilogram | R91: Mile
A92: Passenger Car - Gasoline - Year 1994 | B92: US | C92: 0.0531 | D92: Gram | E92: Mile | F92: 0.056 | G92: Gram | H92: Mile | J92: Road | K92: 22.5 | L92: Mile | M92: US Gallon | N92: Gasoline/Petrol | O92: 0.3915555556 | Q92: Kilogram | R92: Mile
A93: Passenger Car - Gasoline - Year 1995 | B93: US | C93: 0.0358 | D93: Gram | E93: Mile | F93: 0.0473 | G93: Gram | H93: Mile | J93: Road | K93: 22.5 | L93: Mile | M93: US Gallon | N93: Gasoline/Petrol | O93: 0.3915555556 | Q93: Kilogram | R93: Mile
A94: Passenger Car - Gasoline - Year 1996 | B94: US | C94: 0.0272 | D94: Gram | E94: Mile | F94: 0.0426 | G94: Gram | H94: Mile | J94: Road | K94: 22.5 | L94: Mile | M94: US Gallon | N94: Gasoline/Petrol | O94: 0.3915555556 | Q94: Kilogram | R94: Mile
A95: Passenger Car - Gasoline - Year 1997 | B95: US | C95: 0.0268 | D95: Gram | E95: Mile | F95: 0.0422 | G95: Gram | H95: Mile | J95: Road | K95: 22.5 | L95: Mile | M95: US Gallon | N95: Gasoline/Petrol | O95: 0.3915555556 | Q95: Kilogram | R95: Mile
A96: Passenger Car - Gasoline - Year 1998 | B96: US | C96: 0.0249 | D96: Gram | E96: Mile | F96: 0.0393 | G96: Gram | H96: Mile | J96: Road | K96: 22.5 | L96: Mile | M96: US Gallon | N96: Gasoline/Petrol | O96: 0.3915555556 | Q96: Kilogram | R96: Mile
A97: Passenger Car - Gasoline - Year 1999 | B97: US | C97: 0.0216 | D97: Gram | E97: Mile | F97: 0.0337 | G97: Gram | H97: Mile | J97: Road | K97: 22.5 | L97: Mile | M97: US Gallon | N97: Gasoline/Petrol | O97: 0.3915555556 | Q97: Kilogram | R97: Mile
A98: Passenger Car - Gasoline - Year 2000 | B98: US | C98: 0.0178 | D98: Gram | E98: Mile | F98: 0.0273 | G98: Gram | H98: Mile | J98: Road | K98: 22.5 | L98: Mile | M98: US Gallon | N98: Gasoline/Petrol | O98: 0.3915555556 | Q98: Kilogram | R98: Mile
A99: Passenger Car - Gasoline - Year 2001 | B99: US | C99: 0.011 | D99: Gram | E99: Mile | F99: 0.0158 | G99: Gram | H99: Mile | J99: Road | K99: 22.5 | L99: Mile | M99: US Gallon | N99: Gasoline/Petrol | O99: 0.3915555556 | Q99: Kilogram | R99: Mile
A100: Passenger Car - Gasoline - Year 2002 | B100: US | C100: 0.0107 | D100: Gram | E100: Mile | F100: 0.0153 | G100: Gram | H100: Mile | J100: Road | K100: 22.5 | L100: Mile | M100: US Gallon | N100: Gasoline/Petrol | O100: 0.3915555556 | Q100: Kilogram | R100: Mile
A101: Passenger Car - Gasoline - Year 2003 | B101: US | C101: 0.0114 | D101: Gram | E101: Mile | F101: 0.0135 | G101: Gram | H101: Mile | J101: Road | K101: 22.5 | L101: Mile | M101: US Gallon | N101: Gasoline/Petrol | O101: 0.3915555556 | Q101: Kilogram | R101: Mile
A102: Passenger Car - Gasoline - Year 2004 | B102: US | C102: 0.0145 | D102: Gram | E102: Mile | F102: 0.0083 | G102: Gram | H102: Mile | J102: Road | K102: 22.5 | L102: Mile | M102: US Gallon | N102: Gasoline/Petrol | O102: 0.3915555556 | Q102: Kilogram | R102: Mile
A103: Passenger Car - Gasoline - Year 2005-present | B103: US | C103: 0.0147 | D103: Gram | E103: Mile | F103: 0.0079 | G103: Gram | H103: Mile | J103: Road | K103: 22.5 | L103: Mile | M103: US Gallon | N103: Gasoline/Petrol | O103: 0.3915555556 | Q103: Kilogram | R103: Mile
A104: Passenger Car - Diesel - Year 1960-1982 | B104: US | C104: 0.0006 | D104: Gram | E104: Mile | F104: 0.0012 | G104: Gram | H104: Mile | J104: Road | K104: 22.5 | L104: Mile | M104: US Gallon | N104: On-Road Diesel Fuel | O104: 0.4511111111 | Q104: Kilogram | R104: Mile
A105: Passenger Car - Diesel - Year 1983-present | B105: US | C105: 0.0005 | D105: Gram | E105: Mile | F105: 0.001 | G105: Gram | H105: Mile | J105: Road | K105: 22.5 | L105: Mile | M105: US Gallon | N105: On-Road Diesel Fuel | O105: 0.4511111111 | Q105: Kilogram | R105: Mile
A106: Passenger Car - Fuel Unknown | B106: US | C106: 0.031 | D106: Gram | E106: Mile | F106: 0.032 | G106: Gram | H106: Mile | J106: Road | K106: 22.5 | L106: Mile | M106: US Gallon
A107: Light Goods Vehicle - CNG | B107: US | C107: 0.737 | D107: Gram | E107: Mile | F107: 0.05 | G107: Gram | H107: Mile | J107: Road | K107: 16.2 | L107: Mile | M107: US Gallon | N107: CNG
A108: Light Goods Vehicle - LPG | B108: US | C108: 0.037 | D108: Gram | E108: Mile | F108: 0.067 | G108: Gram | H108: Mile | J108: Road | K108: 16.2 | L108: Mile | M108: US Gallon | N108: LPG | O108: 0.3574074074 | Q108: Kilogram | R108: Mile
A109: Light Goods Vehicle - Ethanol | B109: US | C109: 0.055 | D109: Gram | E109: Mile | F109: 0.067 | G109: Gram | H109: Mile | J109: Road | K109: 16.2 | L109: Mile | M109: US Gallon | N109: Ethanol | P109: 0.3432098765 | Q109: Kilogram | R109: Mile
A110: Light Goods Vehicle - Gasoline - Year 1987-1993 | B110: US | C110: 0.0813 | D110: Gram | E110: Mile | F110: 0.1035 | G110: Gram | H110: Mile | J110: Road | K110: 16.2 | L110: Mile | M110: US Gallon | N110: Gasoline/Petrol | O110: 0.5438271605 | Q110: Kilogram | R110: Mile
A111: Light Goods Vehicle - Gasoline - Year 1994 | B111: US | C111: 0.0646 | D111: Gram | E111: Mile | F111: 0.0982 | G111: Gram | H111: Mile | J111: Road | K111: 16.2 | L111: Mile | M111: US Gallon | N111: Gasoline/Petrol | O111: 0.5438271605 | Q111: Kilogram | R111: Mile
A112: Light Goods Vehicle - Gasoline - Year 1995 | B112: US | C112: 0.0517 | D112: Gram | E112: Mile | F112: 0.0908 | G112: Gram | H112: Mile | J112: Road | K112: 16.2 | L112: Mile | M112: US Gallon | N112: Gasoline/Petrol | O112: 0.5438271605 | Q112: Kilogram | R112: Mile
A113: Light Goods Vehicle - Gasoline - Year 1996 | B113: US | C113: 0.0452 | D113: Gram | E113: Mile | F113: 0.0871 | G113: Gram | H113: Mile | J113: Road | K113: 16.2 | L113: Mile | M113: US Gallon | N113: Gasoline/Petrol | O113: 0.5438271605 | Q113: Kilogram | R113: Mile
A114: Light Goods Vehicle - Gasoline - Year 1997 | B114: US | C114: 0.0452 | D114: Gram | E114: Mile | F114: 0.0871 | G114: Gram | H114: Mile | J114: Road | K114: 16.2 | L114: Mile | M114: US Gallon | N114: Gasoline/Petrol | O114: 0.5438271605 | Q114: Kilogram | R114: Mile
A115: Light Goods Vehicle - Gasoline - Year 1998 | B115: US | C115: 0.0391 | D115: Gram | E115: Mile | F115: 0.0728 | G115: Gram | H115: Mile | J115: Road | K115: 16.2 | L115: Mile | M115: US Gallon | N115: Gasoline/Petrol | O115: 0.5438271605 | Q115: Kilogram | R115: Mile
A116: Light Goods Vehicle - Gasoline - Year 1999 | B116: US | C116: 0.0321 | D116: Gram | E116: Mile | F116: 0.0564 | G116: Gram | H116: Mile | J116: Road | K116: 16.2 | L116: Mile | M116: US Gallon | N116: Gasoline/Petrol | O116: 0.5438271605 | Q116: Kilogram | R116: Mile
A117: Light Goods Vehicle - Gasoline - Year 2000 | B117: US | C117: 0.0346 | D117: Gram | E117: Mile | F117: 0.0621 | G117: Gram | H117: Mile | J117: Road | K117: 16.2 | L117: Mile | M117: US Gallon | N117: Gasoline/Petrol | O117: 0.5438271605 | Q117: Kilogram | R117: Mile
A118: Light Goods Vehicle - Gasoline - Year 2001 | B118: US | C118: 0.0151 | D118: Gram | E118: Mile | F118: 0.0164 | G118: Gram | H118: Mile | J118: Road | K118: 16.2 | L118: Mile | M118: US Gallon | N118: Gasoline/Petrol | O118: 0.5438271605 | Q118: Kilogram | R118: Mile
A119: Light Goods Vehicle - Gasoline - Year 2002 | B119: US | C119: 0.0178 | D119: Gram | E119: Mile | F119: 0.0228 | G119: Gram | H119: Mile | J119: Road | K119: 16.2 | L119: Mile | M119: US Gallon | N119: Gasoline/Petrol | O119: 0.5438271605 | Q119: Kilogram | R119: Mile
A120: Light Goods Vehicle - Gasoline - Year 2003 | B120: US | C120: 0.0155 | D120: Gram | E120: Mile | F120: 0.0114 | G120: Gram | H120: Mile | J120: Road | K120: 16.2 | L120: Mile | M120: US Gallon | N120: Gasoline/Petrol | O120: 0.5438271605 | Q120: Kilogram | R120: Mile
A121: Light Goods Vehicle - Gasoline - Year 2004 | B121: US | C121: 0.0152 | D121: Gram | E121: Mile | F121: 0.0132 | G121: Gram | H121: Mile | J121: Road | K121: 16.2 | L121: Mile | M121: US Gallon | N121: Gasoline/Petrol | O121: 0.5438271605 | Q121: Kilogram | R121: Mile
A122: Light Goods Vehicle - Gasoline - Year 2005-present | B122: US | C122: 0.0157 | D122: Gram | E122: Mile | F122: 0.0101 | G122: Gram | H122: Mile | J122: Road | K122: 16.2 | L122: Mile | M122: US Gallon | N122: Gasoline/Petrol | O122: 0.5438271605 | Q122: Kilogram | R122: Mile
A123: Light Goods Vehicle - Diesel - Year 1960-1982 | B123: US | C123: 0.0011 | D123: Gram | E123: Mile | F123: 0.0017 | G123: Gram | H123: Mile | J123: Road | K123: 16.2 | L123: Mile | M123: US Gallon | N123: On-Road Diesel Fuel | O123: 0.6265432099 | Q123: Kilogram | R123: Mile
A124: Light Goods Vehicle - Diesel - Year 1983-1995 | B124: US | C124: 0.0009 | D124: Gram | E124: Mile | F124: 0.0014 | G124: Gram | H124: Mile | J124: Road | K124: 16.2 | L124: Mile | M124: US Gallon | N124: On-Road Diesel Fuel | O124: 0.6265432099 | Q124: Kilogram | R124: Mile
A125: Light Goods Vehicle - Diesel - Year 1996-present | B125: US | C125: 0.001 | D125: Gram | E125: Mile | F125: 0.0015 | G125: Gram | H125: Mile | J125: Road | K125: 16.2 | L125: Mile | M125: US Gallon | N125: On-Road Diesel Fuel | O125: 0.6265432099 | Q125: Kilogram | R125: Mile
A126: Light Goods Vehicle - Fuel Unknown | B126: US | C126: 0.036 | D126: Gram | E126: Mile | F126: 0.047 | G126: Gram | H126: Mile | J126: Road | K126: 16.2 | L126: Mile | M126: US Gallon
A127: Heavy Duty Vehicle - Rigid - Gasoline - Year 1985-1986 | B127: US | C127: 0.409 | D127: Gram | E127: Mile | F127: 0.0515 | G127: Gram | H127: Mile | J127: Road | K127: 8.8 | L127: Mile | M127: US Gallon | N127: Gasoline/Petrol | O127: 1.001136364 | Q127: Kilogram | R127: Mile
A128: Heavy Duty Vehicle - Rigid - Gasoline - Year 1987 | B128: US | C128: 0.3675 | D128: Gram | E128: Mile | F128: 0.0849 | G128: Gram | H128: Mile | J128: Road | K128: 8.8 | L128: Mile | M128: US Gallon | N128: Gasoline/Petrol | O128: 1.001136364 | Q128: Kilogram | R128: Mile
A129: Heavy Duty Vehicle - Rigid - Gasoline - Year 1988-1989 | B129: US | C129: 0.3492 | D129: Gram | E129: Mile | F129: 0.0933 | G129: Gram | H129: Mile | J129: Road | K129: 8.8 | L129: Mile | M129: US Gallon | N129: Gasoline/Petrol | O129: 1.001136364 | Q129: Kilogram | R129: Mile
A130: Heavy Duty Vehicle - Rigid - Gasoline - Year 1990-1995 | B130: US | C130: 0.3246 | D130: Gram | E130: Mile | F130: 0.1142 | G130: Gram | H130: Mile | J130: Road | K130: 8.8 | L130: Mile | M130: US Gallon | N130: Gasoline/Petrol | O130: 1.001136364 | Q130: Kilogram | R130: Mile
A131: Heavy Duty Vehicle - Rigid - Gasoline - Year 1996 | B131: US | C131: 0.1278 | D131: Gram | E131: Mile | F131: 0.168 | G131: Gram | H131: Mile | J131: Road | K131: 8.8 | L131: Mile | M131: US Gallon | N131: Gasoline/Petrol | O131: 1.001136364 | Q131: Kilogram | R131: Mile
A132: Heavy Duty Vehicle - Rigid - Gasoline - Year 1997 | B132: US | C132: 0.0924 | D132: Gram | E132: Mile | F132: 0.1726 | G132: Gram | H132: Mile | J132: Road | K132: 8.8 | L132: Mile | M132: US Gallon | N132: Gasoline/Petrol | O132: 1.001136364 | Q132: Kilogram | R132: Mile
A133: Heavy Duty Vehicle - Rigid - Gasoline - Year 1998 | B133: US | C133: 0.0641 | D133: Gram | E133: Mile | F133: 0.1693 | G133: Gram | H133: Mile | J133: Road | K133: 8.8 | L133: Mile | M133: US Gallon | N133: Gasoline/Petrol | O133: 1.001136364 | Q133: Kilogram | R133: Mile
A134: Heavy Duty Vehicle - Rigid - Gasoline - Year 1999 | B134: US | C134: 0.0578 | D134: Gram | E134: Mile | F134: 0.1435 | G134: Gram | H134: Mile | J134: Road | K134: 8.8 | L134: Mile | M134: US Gallon | N134: Gasoline/Petrol | O134: 1.001136364 | Q134: Kilogram | R134: Mile
A135: Heavy Duty Vehicle - Rigid - Gasoline - Year 2000 | B135: US | C135: 0.0493 | D135: Gram | E135: Mile | F135: 0.1092 | G135: Gram | H135: Mile | J135: Road | K135: 8.8 | L135: Mile | M135: US Gallon | N135: Gasoline/Petrol | O135: 1.001136364 | Q135: Kilogram | R135: Mile
A136: Heavy Duty Vehicle - Rigid - Gasoline - Year 2001 | B136: US | C136: 0.0528 | D136: Gram | E136: Mile | F136: 0.1235 | G136: Gram | H136: Mile | J136: Road | K136: 8.8 | L136: Mile | M136: US Gallon | N136: Gasoline/Petrol | O136: 1.001136364 | Q136: Kilogram | R136: Mile
A137: Heavy Duty Vehicle - Rigid - Gasoline - Year 2002 | B137: US | C137: 0.0546 | D137: Gram | E137: Mile | F137: 0.1307 | G137: Gram | H137: Mile | J137: Road | K137: 8.8 | L137: Mile | M137: US Gallon | N137: Gasoline/Petrol | O137: 1.001136364 | Q137: Kilogram | R137: Mile
A138: Heavy Duty Vehicle - Rigid - Gasoline - Year 2003 | B138: US | C138: 0.0533 | D138: Gram | E138: Mile | F138: 0.124 | G138: Gram | H138: Mile | J138: Road | K138: 8.8 | L138: Mile | M138: US Gallon | N138: Gasoline/Petrol | O138: 1.001136364 | Q138: Kilogram | R138: Mile
A139: Heavy Duty Vehicle - Rigid - Gasoline - Year 2004 | B139: US | C139: 0.0341 | D139: Gram | E139: Mile | F139: 0.0285 | G139: Gram | H139: Mile | J139: Road | K139: 8.8 | L139: Mile | M139: US Gallon | N139: Gasoline/Petrol | O139: 1.001136364 | Q139: Kilogram | R139: Mile
A140: Heavy Duty Vehicle - Rigid - Gasoline - Year 2005-present | B140: US | C140: 0.0326 | D140: Gram | E140: Mile | F140: 0.0177 | G140: Gram | H140: Mile | J140: Road | K140: 8.8 | L140: Mile | M140: US Gallon | N140: Gasoline/Petrol | O140: 1.001136364 | Q140: Kilogram | R140: Mile
A141: Heavy Duty Vehicle - Rigid - Diesel - Year 1960-present | B141: US | C141: 0.0051 | D141: Gram | E141: Mile | F141: 0.0048 | G141: Gram | H141: Mile | J141: Road | K141: 8.8 | L141: Mile | M141: US Gallon | N141: On-Road Diesel Fuel | O141: 1.153409091 | Q141: Kilogram | R141: Mile
A142: Heavy Duty Vehicle - Rigid - CNG | B142: US | C142: 1.966 | D142: Gram | E142: Mile | F142: 0.175 | G142: Gram | H142: Mile | J142: Road | K142: 8.8 | L142: Mile | M142: US Gallon | N142: CNG
A143: Heavy Duty Vehicle - Rigid - LNG | B143: US | C143: 1.966 | D143: Gram | E143: Mile | F143: 0.175 | G143: Gram | H143: Mile | J143: Road | K143: 8.8 | L143: Mile | M143: US Gallon | N143: LNG | O143: 0.5068181818 | Q143: Kilogram | R143: Mile
A144: Heavy Duty Vehicle - Rigid - LPG | B144: US | C144: 0.066 | D144: Gram | E144: Mile | F144: 0.175 | G144: Gram | H144: Mile | J144: Road | K144: 8.8 | L144: Mile | M144: US Gallon | N144: LPG | O144: 0.6579545455 | Q144: Kilogram | R144: Mile
A145: Heavy Duty Vehicle - Rigid - Ethanol | B145: US | C145: 0.197 | D145: Gram | E145: Mile | F145: 0.175 | G145: Gram | H145: Mile | J145: Road | K145: 8.8 | L145: Mile | M145: US Gallon | N145: Ethanol | P145: 0.6318181818 | Q145: Kilogram | R145: Mile
A146: Heavy Duty Vehicle - Rigid - Fuel Unknown | B146: US | C146: 0.021 | D146: Gram | E146: Mile | F146: 0.017 | G146: Gram | H146: Mile | J146: Road | K146: 8.8 | L146: Mile | M146: US Gallon
A147: Heavy Duty Vehicle - Articulated - Gasoline - Year 1985-1986 | B147: US | C147: 0.409 | D147: Gram | E147: Mile | F147: 0.0515 | G147: Gram | H147: Mile | J147: Road | K147: 5.9 | L147: Mile | M147: US Gallon | N147: Gasoline/Petrol | O147: 1.493220339 | Q147: Kilogram | R147: Mile
A148: Heavy Duty Vehicle - Articulated - Gasoline - Year 1987 | B148: US | C148: 0.3675 | D148: Gram | E148: Mile | F148: 0.0849 | G148: Gram | H148: Mile | J148: Road | K148: 5.9 | L148: Mile | M148: US Gallon | N148: Gasoline/Petrol | O148: 1.493220339 | Q148: Kilogram | R148: Mile
A149: Heavy Duty Vehicle - Articulated - Gasoline - Year 1988-1989 | B149: US | C149: 0.3492 | D149: Gram | E149: Mile | F149: 0.0933 | G149: Gram | H149: Mile | J149: Road | K149: 5.9 | L149: Mile | M149: US Gallon | N149: Gasoline/Petrol | O149: 1.493220339 | Q149: Kilogram | R149: Mile
A150: Heavy Duty Vehicle - Articulated - Gasoline - Year 1990-1995 | B150: US | C150: 0.3246 | D150: Gram | E150: Mile | F150: 0.1142 | G150: Gram | H150: Mile | J150: Road | K150: 5.9 | L150: Mile | M150: US Gallon | N150: Gasoline/Petrol | O150: 1.493220339 | Q150: Kilogram | R150: Mile
A151: Heavy Duty Vehicle - Articulated - Gasoline - Year 1996 | B151: US | C151: 0.1278 | D151: Gram | E151: Mile | F151: 0.168 | G151: Gram | H151: Mile | J151: Road | K151: 5.9 | L151: Mile | M151: US Gallon | N151: Gasoline/Petrol | O151: 1.493220339 | Q151: Kilogram | R151: Mile
A152: Heavy Duty Vehicle - Articulated - Gasoline - Year 1997 | B152: US | C152: 0.0924 | D152: Gram | E152: Mile | F152: 0.1726 | G152: Gram | H152: Mile | J152: Road | K152: 5.9 | L152: Mile | M152: US Gallon | N152: Gasoline/Petrol | O152: 1.493220339 | Q152: Kilogram | R152: Mile
A153: Heavy Duty Vehicle - Articulated - Gasoline - Year 1998 | B153: US | C153: 0.0641 | D153: Gram | E153: Mile | F153: 0.1693 | G153: Gram | H153: Mile | J153: Road | K153: 5.9 | L153: Mile | M153: US Gallon | N153: Gasoline/Petrol | O153: 1.493220339 | Q153: Kilogram | R153: Mile
A154: Heavy Duty Vehicle - Articulated - Gasoline - Year 1999 | B154: US | C154: 0.0578 | D154: Gram | E154: Mile | F154: 0.1435 | G154: Gram | H154: Mile | J154: Road | K154: 5.9 | L154: Mile | M154: US Gallon | N154: Gasoline/Petrol | O154: 1.493220339 | Q154: Kilogram | R154: Mile
A155: Heavy Duty Vehicle - Articulated - Gasoline - Year 2000 | B155: US | C155: 0.0493 | D155: Gram | E155: Mile | F155: 0.1092 | G155: Gram | H155: Mile | J155: Road | K155: 5.9 | L155: Mile | M155: US Gallon | N155: Gasoline/Petrol | O155: 1.493220339 | Q155: Kilogram | R155: Mile
A156: Heavy Duty Vehicle - Articulated - Gasoline - Year 2001 | B156: US | C156: 0.0528 | D156: Gram | E156: Mile | F156: 0.1235 | G156: Gram | H156: Mile | J156: Road | K156: 5.9 | L156: Mile | M156: US Gallon | N156: Gasoline/Petrol | O156: 1.493220339 | Q156: Kilogram | R156: Mile
A157: Heavy Duty Vehicle - Articulated - Gasoline - Year 2002 | B157: US | C157: 0.0546 | D157: Gram | E157: Mile | F157: 0.1307 | G157: Gram | H157: Mile | J157: Road | K157: 5.9 | L157: Mile | M157: US Gallon | N157: Gasoline/Petrol | O157: 1.493220339 | Q157: Kilogram | R157: Mile
A158: Heavy Duty Vehicle - Articulated - Gasoline - Year 2003 | B158: US | C158: 0.0533 | D158: Gram | E158: Mile | F158: 0.124 | G158: Gram | H158: Mile | J158: Road | K158: 5.9 | L158: Mile | M158: US Gallon | N158: Gasoline/Petrol | O158: 1.493220339 | Q158: Kilogram | R158: Mile
A159: Heavy Duty Vehicle - Articulated - Gasoline - Year 2004 | B159: US | C159: 0.0341 | D159: Gram | E159: Mile | F159: 0.0285 | G159: Gram | H159: Mile | J159: Road | K159: 5.9 | L159: Mile | M159: US Gallon | N159: Gasoline/Petrol | O159: 1.493220339 | Q159: Kilogram | R159: Mile
A160: Heavy Duty Vehicle - Articulated - Gasoline - Year 2005-present | B160: US | C160: 0.0326 | D160: Gram | E160: Mile | F160: 0.0177 | G160: Gram | H160: Mile | J160: Road | K160: 5.9 | L160: Mile | M160: US Gallon | N160: Gasoline/Petrol | O160: 1.493220339 | Q160: Kilogram | R160: Mile
A161: Heavy Duty Vehicle - Articulated - Diesel - Year 1960-present | B161: US | C161: 0.0051 | D161: Gram | E161: Mile | F161: 0.0048 | G161: Gram | H161: Mile | J161: Road | K161: 5.9 | L161: Mile | M161: US Gallon | N161: On-Road Diesel Fuel | O161: 1.720338983 | Q161: Kilogram | R161: Mile
A162: Heavy Duty Vehicle - Articulated - CNG | B162: US | C162: 1.966 | D162: Gram | E162: Mile | F162: 0.175 | G162: Gram | H162: Mile | J162: Road | K162: 5.9 | L162: Mile | M162: US Gallon | N162: CNG
A163: Heavy Duty Vehicle - Articulated - LNG | B163: US | C163: 1.966 | D163: Gram | E163: Mile | F163: 0.175 | G163: Gram | H163: Mile | J163: Road | K163: 5.9 | L163: Mile | M163: US Gallon | N163: LNG | O163: 0.7559322034 | Q163: Kilogram | R163: Mile
A164: Heavy Duty Vehicle - Articulated - LPG | B164: US | C164: 0.066 | D164: Gram | E164: Mile | F164: 0.175 | G164: Gram | H164: Mile | J164: Road | K164: 5.9 | L164: Mile | M164: US Gallon | N164: LPG | O164: 0.9813559322 | Q164: Kilogram | R164: Mile
A165: Heavy Duty Vehicle - Articulated - Ethanol | B165: US | C165: 0.197 | D165: Gram | E165: Mile | F165: 0.175 | G165: Gram | H165: Mile | J165: Road | K165: 5.9 | L165: Mile | M165: US Gallon | N165: Ethanol | P165: 0.9423728814 | Q165: Kilogram | R165: Mile
A166: Heavy Duty Vehicle - Articulated - Fuel Unknown | B166: US | C166: 0.021 | D166: Gram | E166: Mile | F166: 0.017 | G166: Gram | H166: Mile | J166: Road | K166: 5.9 | L166: Mile | M166: US Gallon
A167: Motorbike - Non-Catalyst Control | B167: US | C167: 0.0672 | D167: Gram | E167: Mile | F167: 0.0069 | G167: Gram | H167: Mile | J167: Road | K167: 50 | L167: Mile | M167: US Gallon | N167: On-Road Diesel Fuel | O167: 0.203 | Q167: Kilogram | R167: Mile
A168: Motorbike - Uncontrolled | B168: US | C168: 0.0899 | D168: Gram | E168: Mile | F168: 0.0087 | G168: Gram | H168: Mile | J168: Road | K168: 50 | L168: Mile | M168: US Gallon | N168: On-Road Diesel Fuel | O168: 0.203 | Q168: Kilogram | R168: Mile
A169: Motorbike - Control Unknown | B169: US | C169: 0.07 | D169: Gram | E169: Mile | F169: 0.007 | G169: Gram | H169: Mile | J169: Road | K169: 50 | L169: Mile | M169: US Gallon | N169: On-Road Diesel Fuel | O169: 0.203 | Q169: Kilogram | R169: Mile
A171: CO2 Emission Factors for UK by Vehicle Distance
A173: Vehicle and Fuel and Engine Size | B173: Region | C173: CO2 | D173: CO2 - Biomass Fuel | E173: CO2 Unit - Numerator | F173: CO2 Unit - Denominator | G173: CH4 | H173: CH4 Unit - Numerator | I173: CH4 Unit - Denominator | J173: N2O | K173: N2O Unit - Numerator | L173: N2O Unit - Denominator | M173: Default Scope | N173: Mode of Transport
A174: Passenger Car - Petrol - Engine Size <1.4 liter | B174: UK | C174: 0.17297 | E174: Kilogram | F174: Kilometer | N174: Road
A175: Passenger Car - Petrol - Engine Size 1.4 - 2.0 liters | B175: UK | C175: 0.21486 | E175: Kilogram | F175: Kilometer | N175: Road
A176: Passenger Car - Petrol - Engine Size >2.0 liters | B176: UK | C176: 0.29937 | E176: Kilogram | F176: Kilometer | N176: Road
A177: Passenger Car - Petrol - Engine Size Unknown | B177: UK | C177: 0.21071 | E177: Kilogram | F177: Kilometer | N177: Road
A178: Passenger Car - Diesel - Engine Size <1.7 liter | B178: UK | C178: 0.14518 | E178: Kilogram | F178: Kilometer | N178: Road
A179: Passenger Car - Diesel - Engine Size 1.7 - 2.0 liters | B179: UK | C179: 0.18097 | E179: Kilogram | F179: Kilometer | N179: Road
A180: Passenger Car - Diesel - Engine Size >2.0 liters | B180: UK | C180: 0.24546 | E180: Kilogram | F180: Kilometer | N180: Road
A181: Passenger Car - Diesel - Engine Size Unknown | B181: UK | C181: 0.19495 | E181: Kilogram | F181: Kilometer | N181: Road
A182: Passenger Car - Hybrid - Engine Size 1.4 - 2.0 liters | B182: UK | C182: 0.11914 | E182: Kilogram | F182: Kilometer | N182: Road
A183: Passenger Car - Hybrid - Engine Size >2.0 liters | B183: UK | C183: 0.21726 | E183: Kilogram | F183: Kilometer | N183: Road
A184: Passenger Car - Hybrid - Engine Size Unknown | B184: UK | C184: 0.1647 | E184: Kilogram | F184: Kilometer | N184: Road
A185: Passenger Car - LPG - Engine Size average | B185: UK | C185: 0.21419 | E185: Kilogram | F185: Kilometer | N185: Road
A186: Passenger Car - LPG - Engine Size medium | B186: UK | C186: 0.19337 | E186: Kilogram | F186: Kilometer | N186: Road
A187: Passenger Car - LPG - Engine Size large | B187: UK | C187: 0.26943 | E187: Kilogram | F187: Kilometer | N187: Road
A188: Passenger Car - CNG - Engine Size 1.4 - 2.0 liters | B188: UK | C188: 0.19337 | E188: Kilogram | F188: Kilometer | N188: Road
A189: Passenger Car - CNG - Engine Size >2.0 liters | B189: UK | C189: 0.26943 | E189: Kilogram | F189: Kilometer | N189: Road
A190: Passenger Car - CNG - Engine Size Unknown | B190: UK | C190: 0.21419 | E190: Kilogram | F190: Kilometer | N190: Road
A191: Light Goods Vehicle (e.g. Van) - Petrol - Engine Size ≤1.25 tonnes | B191: UK | C191: 0.19407 | E191: Kilogram | F191: Kilometer | N191: Road
A192: Light Goods Vehicle (e.g. Van) - Diesel - Engine Size ≤3.5 tonnes | B192: UK | C192: 0.2508 | E192: Kilogram | F192: Kilometer | N192: Road
A193: Light Goods Vehicle (e.g. Van) - LPG - Engine Size ≤3.5 tonnes | B193: UK | C193: 0.26334 | E193: Kilogram | F193: Kilometer | N193: Road
A194: Light Goods Vehicle (e.g. Van) - CNG - Engine Size ≤3.5 tonnes | B194: UK | C194: 0.23826 | E194: Kilogram | F194: Kilometer | N194: Road
A195: Light Goods Vehicle (e.g. Van) - Fuel Unknown | B195: UK | C195: 0.25016 | E195: Kilogram | F195: Kilometer | N195: Road
A196: Motorbike - Engine Size ≤125 cc | B196: UK | C196: 0.08499 | E196: Kilogram | F196: Kilometer | N196: Road
A197: Motorbike - Engine Size >125 and ≤500 cc | B197: UK | C197: 0.10316 | E197: Kilogram | F197: Kilometer | N197: Road
A198: Motorbike - Engine Size >500 cc | B198: UK | C198: 0.13724 | E198: Kilogram | F198: Kilometer | N198: Road
A199: Motorbike - Engine Size Unknown | B199: UK | C199: 0.11606 | E199: Kilogram | F199: Kilometer | N199: Road
A200: HGV - Rigid - Engine Size 3.5 - 7.5 tonnes - 0% Weight Laden | B200: UK | C200: 0.52763 | E200: Kilogram | F200: Kilometer | N200: Road
A201: HGV - Rigid - Engine Size 3.5 - 7.5 tonnes - 50% Weight Laden | B201: UK | C201: 0.57351 | E201: Kilogram | F201: Kilometer | N201: Road
A202: HGV - Rigid - Engine Size 3.5 - 7.5 tonnes - 100% Weight Laden | B202: UK | C202: 0.61939 | E202: Kilogram | F202: Kilometer | N202: Road
A203: HGV - Rigid - Engine Size 3.5 - 7.5 tonnes - Default 41% Weight Laden | B203: UK | C203: 0.56525 | E203: Kilogram | F203: Kilometer | N203: Road
... 19 more rows

Sheet Reference - EF Freight (hidden)
A1: CO2 Emission Factors by Weight Distance (i.e. Freight Transport)
A3: Vehicle and Size | B3: Region | C3: CO2 | D3: CO2 - Biomass Fuel | E3: CO2 Unit - Numerator | F3: CO2 Unit - Denominator | G3: Default Scope | H3: Vehicle Type | I3: Mode of Transport
A4: Air - Domestic | B4: Other | C4: 1.96073 | E4: Kilogram | F4: Tonne Kilometer | H4: Aircraft | I4: Aircraft
A5: Air - Short Haul | B5: Other | C5: 1.47389 | E5: Kilogram | F5: Tonne Kilometer | H5: Aircraft | I5: Aircraft
A6: Air - Long Haul | B6: Other | C6: 0.61324 | E6: Kilogram | F6: Tonne Kilometer | H6: Aircraft | I6: Aircraft
A7: Rail | B7: Other | C7: 0.0252 | E7: Kilogram | F7: Short Ton Mile | H7: Rail | I7: Rail
A8: Road Vehicle - HGV - Rigid - Engine Size 3.5 - 7.5 tonnes | B8: Other | C8: 0.297 | E8: Kilogram | F8: Short Ton Mile | H8: HGV and Light Goods Vehicle | I8: Road
A9: Road Vehicle - HGV - Rigid - Engine Size 7.5 - 17 tonnes | B9: Other | C9: 0.297 | E9: Kilogram | F9: Short Ton Mile | H9: HGV and Light Goods Vehicle | I9: Road
A10: Road Vehicle - HGV - Rigid - Engine Size >17 tonnes | B10: Other | C10: 0.297 | E10: Kilogram | F10: Short Ton Mile | H10: HGV and Light Goods Vehicle | I10: Road
A11: Road Vehicle - HGV - Rigid - Engine Size Unknown | B11: Other | C11: 0.297 | E11: Kilogram | F11: Short Ton Mile | H11: HGV and Light Goods Vehicle | I11: Road
A12: Road Vehicle - HGV - Articulated - Engine Size 3.5 - 33 tonnes | B12: Other | C12: 0.297 | E12: Kilogram | F12: Short Ton Mile | H12: HGV and Light Goods Vehicle | I12: Road
A13: Road Vehicle - HGV - Articulated - Engine Size >33 tonnes | B13: Other | C13: 0.297 | E13: Kilogram | F13: Short Ton Mile | H13: HGV and Light Goods Vehicle | I13: Road
A14: Road Vehicle - HGV - Articulated - Engine Size Unknown | B14: Other | C14: 0.297 | E14: Kilogram | F14: Short Ton Mile | H14: HGV and Light Goods Vehicle | I14: Road
A15: Road Vehicle - HGV - Type Unknown | B15: Other | C15: 0.297 | E15: Kilogram | F15: Short Ton Mile | H15: HGV and Light Goods Vehicle | I15: Road
A16: Road Vehicle - Light Goods Vehicle - Petro - Engine Size ≤1.25 tonnes | B16: Other | C16: 0.297 | E16: Kilogram | F16: Short Ton Mile | H16: HGV and Light Goods Vehicle | I16: Road
A17: Road Vehicle - Light Goods Vehicle - Diesel - Engine Size ≤3.5 tonnes | B17: Other | C17: 0.297 | E17: Kilogram | F17: Short Ton Mile | H17: HGV and Light Goods Vehicle | I17: Road
A18: Road Vehicle - Light Goods Vehicle - LPG or CNG - Engine Size ≤3.5 tonnes | B18: Other | C18: 0.297 | E18: Kilogram | F18: Short Ton Mile | H18: HGV and Light Goods Vehicle | I18: Road
A19: Road Vehicle - Light Goods Vehicle - Fuel Unknown | B19: Other | C19: 0.297 | E19: Kilogram | F19: Short Ton Mile | H19: HGV and Light Goods Vehicle | I19: Road
A20: Watercraft - Large RoPax Ferry | B20: Other | C20: 0.048 | E20: Kilogram | F20: Tonne Kilometer | H20: Waterborne Craft | I20: Water
A21: Watercraft - Shipping - Small Tanker (844 tonnes deadweight) | B21: Other | C21: 0.048 | E21: Kilogram | F21: Short Ton Mile | H21: Waterborne Craft | I21: Water
A22: Watercraft - Shipping - Large Tanker (18371 tonnes deadweight) | B22: Other | C22: 0.048 | E22: Kilogram | F22: Short Ton Mile | H22: Waterborne Craft | I22: Water
A23: Watercraft - Shipping - Very Large Tanker (100000 tonnes deadweight) | B23: Other | C23: 0.048 | E23: Kilogram | F23: Short Ton Mile | H23: Waterborne Craft | I23: Water
A24: Watercraft - Shipping - Small Bulk Carrier (1720 tonnes deadweight) | B24: Other | C24: 0.048 | E24: Kilogram | F24: Short Ton Mile | H24: Waterborne Craft | I24: Water
A25: Watercraft - Shipping - Large Bulk Carrier (14201 tonnes deadweight) | B25: Other | C25: 0.048 | E25: Kilogram | F25: Short Ton Mile | H25: Waterborne Craft | I25: Water
A26: Watercraft - Shipping - Very Large Bulk Carrier (70000 tonnes deadweight) | B26: Other | C26: 0.048 | E26: Kilogram | F26: Short Ton Mile | H26: Waterborne Craft | I26: Water
A27: Watercraft - Shipping - Small Container Vessel (2500 tonnes deadweight) | B27: Other | C27: 0.048 | E27: Kilogram | F27: Short Ton Mile | H27: Waterborne Craft | I27: Water
A28: Watercraft - Shipping - Large Container Vessel (20000 tonnes deadweight) | B28: Other | C28: 0.048 | E28: Kilogram | F28: Short Ton Mile | H28: Waterborne Craft | I28: Water
A29: Air - Domestic | B29: UK | C29: 1.96073 | E29: Kilogram | F29: Tonne Kilometer | H29: Aircraft | I29: Aircraft
A30: Air - Short Haul | B30: UK | C30: 1.47389 | E30: Kilogram | F30: Tonne Kilometer | H30: Aircraft | I30: Aircraft
A31: Air - Long Haul | B31: UK | C31: 0.61324 | E31: Kilogram | F31: Tonne Kilometer | H31: Aircraft | I31: Aircraft
A32: Rail | B32: UK | C32: 0.0285 | E32: Kilogram | F32: Tonne Kilometer | H32: Rail | I32: Rail
A33: Road Vehicle - HGV - Rigid - Engine Size 3.5 - 7.5 tonnes | B33: UK | C33: 0.65946 | E33: Kilogram | F33: Tonne Kilometer | H33: HGV and Light Goods Vehicle | I33: Road
A34: Road Vehicle - HGV - Rigid - Engine Size 7.5 - 17 tonnes | B34: UK | C34: 0.41243 | E34: Kilogram | F34: Tonne Kilometer | H34: HGV and Light Goods Vehicle | I34: Road
A35: Road Vehicle - HGV - Rigid - Engine Size >17 tonnes | B35: UK | C35: 0.20027 | E35: Kilogram | F35: Tonne Kilometer | H35: HGV and Light Goods Vehicle | I35: Road
A36: Road Vehicle - HGV - Rigid - Engine Size Unknown | B36: UK | C36: 0.25115 | E36: Kilogram | F36: Tonne Kilometer | H36: HGV and Light Goods Vehicle | I36: Road
A37: Road Vehicle - HGV - Articulated - Engine Size 3.5 - 33 tonnes | B37: UK | C37: 0.15262 | E37: Kilogram | F37: Tonne Kilometer | H37: HGV and Light Goods Vehicle | I37: Road
A38: Road Vehicle - HGV - Articulated - Engine Size >33 tonnes | B38: UK | C38: 0.08678 | E38: Kilogram | F38: Tonne Kilometer | H38: HGV and Light Goods Vehicle | I38: Road
A39: Road Vehicle - HGV - Articulated - Engine Size Unknown | B39: UK | C39: 0.08869 | E39: Kilogram | F39: Tonne Kilometer | H39: HGV and Light Goods Vehicle | I39: Road
A40: Road Vehicle - HGV - Type Unknown | B40: UK | C40: 0.12427 | E40: Kilogram | F40: Tonne Kilometer | H40: HGV and Light Goods Vehicle | I40: Road
A41: Road Vehicle - Light Goods Vehicle - Petrol - Engine Size < 1.305 tonnes | B41: UK | C41: 1.173514123 | E41: Kilogram | F41: Tonne Kilometer | H41: HGV and Light Goods Vehicle | I41: Road
A42: Road Vehicle - Light Goods Vehicle - Petrol - Engine Size 1.305 - 1.74 tonnes | B42: UK | C42: 0.8206333859 | E42: Kilogram | F42: Tonne Kilometer | H42: HGV and Light Goods Vehicle | I42: Road
A43: Road Vehicle - Light Goods Vehicle - Petrol - Engine Size 1.74 - 3.5 tonnes | B43: UK | C43: 0.4960066325 | E43: Kilogram | F43: Tonne Kilometer | H43: HGV and Light Goods Vehicle | I43: Road
A44: Road Vehicle - Light Goods Vehicle - Diesel - Engine Size < 1.305 tonnes | B44: UK | C44: 0.94952 | E44: Kilogram | F44: Tonne Kilometer | H44: HGV and Light Goods Vehicle | I44: Road
A45: Road Vehicle - Light Goods Vehicle - Diesel - Engine Size 1.305 - 1.74 tonnes | B45: UK | C45: 0.87386 | E45: Kilogram | F45: Tonne Kilometer | H45: HGV and Light Goods Vehicle | I45: Road
A46: Road Vehicle - Light Goods Vehicle - Diesel - Engine Size 1.74 - 3.5 tonnes | B46: UK | C46: 0.52197 | E46: Kilogram | F46: Tonne Kilometer | H46: HGV and Light Goods Vehicle | I46: Road
A47: Road Vehicle - Light Goods Vehicle - LPG or CNG - Engine Size ≤3.5 tonnes | B47: UK | C47: 0.61742 | E47: Kilogram | F47: Tonne Kilometer | H47: HGV and Light Goods Vehicle | I47: Road
A48: Road Vehicle - Light Goods Vehicle - Fuel and Engine Size Unknown | B48: UK | C48: 0.58651 | E48: Kilogram | F48: Tonne Kilometer | H48: HGV and Light Goods Vehicle | I48: Road
A49: Watercraft - Large RoPax Ferry | B49: UK | C49: 0.0495 | E49: Kilogram | F49: Tonne Kilometer | H49: Waterborne Craft | I49: Water
A50: Watercraft - Shipping - Small Tanker (844 tonnes deadweight) | B50: UK | C50: 0.0333 | E50: Kilogram | F50: Tonne Kilometer | H50: Waterborne Craft | I50: Water
A51: Watercraft - Shipping - Large Tanker (18371 tonnes deadweight) | B51: UK | C51: 0.0091 | E51: Kilogram | F51: Tonne Kilometer | H51: Waterborne Craft | I51: Water
A52: Watercraft - Shipping - Very Large Tanker (100000 tonnes deadweight) | B52: UK | C52: 0.0059 | E52: Kilogram | F52: Tonne Kilometer | H52: Waterborne Craft | I52: Water
A53: Watercraft - Shipping - Small Bulk Carrier (1720 tonnes deadweight) | B53: UK | C53: 0.0292 | E53: Kilogram | F53: Tonne Kilometer | H53: Waterborne Craft | I53: Water
A54: Watercraft - Shipping - Large Bulk Carrier (14201 tonnes deadweight) | B54: UK | C54: 0.0079 | E54: Kilogram | F54: Tonne Kilometer | H54: Waterborne Craft | I54: Water
A55: Watercraft - Shipping - Very Large Bulk Carrier (70000 tonnes deadweight) | B55: UK | C55: 0.0041 | E55: Kilogram | F55: Tonne Kilometer | H55: Waterborne Craft | I55: Water
A56: Watercraft - Shipping - Small Container Vessel (2500 tonnes deadweight) | B56: UK | C56: 0.02 | E56: Kilogram | F56: Tonne Kilometer | H56: Waterborne Craft | I56: Water
A57: Watercraft - Shipping - Large Container Vessel (20000 tonnes deadweight) | B57: UK | C57: 0.0125 | E57: Kilogram | F57: Tonne Kilometer | H57: Waterborne Craft | I57: Water
A58: Air - Domestic | B58: US | C58: 1.527 | E58: Kilogram | F58: Short Ton Mile | H58: Aircraft | I58: Aircraft
A59: Air - Short Haul | B59: US | C59: 1.527 | E59: Kilogram | F59: Short Ton Mile | H59: Aircraft | I59: Aircraft
A60: Air - Long Haul | B60: US | C60: 1.527 | E60: Kilogram | F60: Short Ton Mile | H60: Aircraft | I60: Aircraft
A61: Rail | B61: US | C61: 0.0252 | E61: Kilogram | F61: Short Ton Mile | H61: Rail | I61: Rail
A62: Road Vehicle - HGV - Rigid - Engine Size 3.5 - 7.5 tonnes | B62: US | C62: 0.297 | E62: Kilogram | F62: Short Ton Mile | H62: HGV and Light Goods Vehicle | I62: Road
A63: Road Vehicle - HGV - Rigid - Engine Size 7.5 - 17 tonnes | B63: US | C63: 0.297 | E63: Kilogram | F63: Short Ton Mile | H63: HGV and Light Goods Vehicle | I63: Road
A64: Road Vehicle - HGV - Rigid - Engine Size >17 tonnes | B64: US | C64: 0.297 | E64: Kilogram | F64: Short Ton Mile | H64: HGV and Light Goods Vehicle | I64: Road
A65: Road Vehicle - HGV - Rigid - Engine Size Unknown | B65: US | C65: 0.297 | E65: Kilogram | F65: Short Ton Mile | H65: HGV and Light Goods Vehicle | I65: Road
A66: Road Vehicle - HGV - Articulated - Engine Size 3.5 - 33 tonnes | B66: US | C66: 0.297 | E66: Kilogram | F66: Short Ton Mile | H66: HGV and Light Goods Vehicle | I66: Road
A67: Road Vehicle - HGV - Articulated - Engine Size >33 tonnes | B67: US | C67: 0.297 | E67: Kilogram | F67: Short Ton Mile | H67: HGV and Light Goods Vehicle | I67: Road
A68: Road Vehicle - HGV - Articulated - Engine Size Unknown | B68: US | C68: 0.297 | E68: Kilogram | F68: Short Ton Mile | H68: HGV and Light Goods Vehicle | I68: Road
A69: Road Vehicle - HGV - Type Unknown | B69: US | C69: 0.297 | E69: Kilogram | F69: Short Ton Mile | H69: HGV and Light Goods Vehicle | I69: Road
A70: Road Vehicle - Light Goods Vehicle - Petro - Engine Size ≤1.25 tonnes | B70: US | C70: 0.297 | E70: Kilogram | F70: Short Ton Mile | H70: HGV and Light Goods Vehicle | I70: Road
A71: Road Vehicle - Light Goods Vehicle - Diesel - Engine Size ≤3.5 tonnes | B71: US | C71: 0.297 | E71: Kilogram | F71: Short Ton Mile | H71: HGV and Light Goods Vehicle | I71: Road
A72: Road Vehicle - Light Goods Vehicle - LPG or CNG - Engine Size ≤3.5 tonnes | B72: US | C72: 0.297 | E72: Kilogram | F72: Short Ton Mile | H72: HGV and Light Goods Vehicle | I72: Road
A73: Road Vehicle - Light Goods Vehicle - Fuel Unknown | B73: US | C73: 0.297 | E73: Kilogram | F73: Short Ton Mile | H73: HGV and Light Goods Vehicle | I73: Road
A74: Watercraft - Large RoPax Ferry | B74: US | C74: 0.048 | E74: Kilogram | F74: Short Ton Mile | H74: Waterborne Craft | I74: Water
A75: Watercraft - Shipping - Small Tanker (844 tonnes deadweight) | B75: US | C75: 0.048 | E75: Kilogram | F75: Short Ton Mile | H75: Waterborne Craft | I75: Water
A76: Watercraft - Shipping - Large Tanker (18371 tonnes deadweight) | B76: US | C76: 0.048 | E76: Kilogram | F76: Short Ton Mile | H76: Waterborne Craft | I76: Water
A77: Watercraft - Shipping - Very Large Tanker (100000 tonnes deadweight) | B77: US | C77: 0.048 | E77: Kilogram | F77: Short Ton Mile | H77: Waterborne Craft | I77: Water
A78: Watercraft - Shipping - Small Bulk Carrier (1720 tonnes deadweight) | B78: US | C78: 0.048 | E78: Kilogram | F78: Short Ton Mile | H78: Waterborne Craft | I78: Water
A79: Watercraft - Shipping - Large Bulk Carrier (14201 tonnes deadweight) | B79: US | C79: 0.048 | E79: Kilogram | F79: Short Ton Mile | H79: Waterborne Craft | I79: Water
A80: Watercraft - Shipping - Very Large Bulk Carrier (70000 tonnes deadweight) | B80: US | C80: 0.048 | E80: Kilogram | F80: Short Ton Mile | H80: Waterborne Craft | I80: Water
A81: Watercraft - Shipping - Small Container Vessel (2500 tonnes deadweight) | B81: US | C81: 0.048 | E81: Kilogram | F81: Short Ton Mile | H81: Waterborne Craft | I81: Water
A82: Watercraft - Shipping - Large Container Vessel (20000 tonnes deadweight) | B82: US | C82: 0.048 | E82: Kilogram | F82: Short Ton Mile | H82: Waterborne Craft | I82: Water
A84: CH4 and N2O Emission Factors by Weight Distance (i.e. Freight Transport)
A86: Vehicle Type | B86: Region | C86: CH4 | D86: CH4 Unit - Numerator | E86: CH4 Unit - Denominator | F86: N2O | G86: N2O Unit - Numerator | H86: N2O Unit - Denominator | I86: Default Scope | J86: Mode of Transport
A87: Aircraft | B87: UK | C87: 0.0417 | D87: Gram | E87: Short Ton Mile | F87: 0.0479 | G87: Gram | H87: Short Ton Mile | J87: Aircraft
A88: Rail | B88: UK | C88: 0.002 | D88: Gram | E88: Short Ton Mile | F88: 0.0006 | G88: Gram | H88: Short Ton Mile | J88: Rail
A89: HGV and Light Goods Vehicle | B89: UK | C89: 0.0035 | D89: Gram | E89: Short Ton Mile | F89: 0.0027 | G89: Gram | H89: Short Ton Mile | J89: Road
A90: Waterborne Craft | B90: UK | C90: 0.0041 | D90: Gram | E90: Short Ton Mile | F90: 0.0014 | G90: Gram | H90: Short Ton Mile | J90: Water
A91: Aircraft | B91: US | C91: 0.0417 | D91: Gram | E91: Short Ton Mile | F91: 0.0479 | G91: Gram | H91: Short Ton Mile | J91: Aircraft
A92: Rail | B92: US | C92: 0.002 | D92: Gram | E92: Short Ton Mile | F92: 0.0006 | G92: Gram | H92: Short Ton Mile | J92: Rail
A93: HGV and Light Goods Vehicle | B93: US | C93: 0.0035 | D93: Gram | E93: Short Ton Mile | F93: 0.0027 | G93: Gram | H93: Short Ton Mile | J93: Road
A94: Waterborne Craft | B94: US | C94: 0.0041 | D94: Gram | E94: Short Ton Mile | F94: 0.0014 | G94: Gram | H94: Short Ton Mile | J94: Water
A95: Aircraft | B95: Other | C95: 0.0417 | D95: Gram | E95: Short Ton Mile | F95: 0.0479 | G95: Gram | H95: Short Ton Mile | J95: Aircraft
A96: Rail | B96: Other | C96: 0.002 | D96: Gram | E96: Short Ton Mile | F96: 0.0006 | G96: Gram | H96: Short Ton Mile | J96: Rail
A97: HGV and Light Goods Vehicle | B97: Other | C97: 0.0035 | D97: Gram | E97: Short Ton Mile | F97: 0.0027 | G97: Gram | H97: Short Ton Mile | J97: Road
A98: Waterborne Craft | B98: Other | C98: 0.0041 | D98: Gram | E98: Short Ton Mile | F98: 0.0014 | G98: Gram | H98: Short Ton Mile | J98: Water
C103: = Different emission factors provided between May and June 2008 US EPA guidance documents

Sheet Reference - EF Public (hidden)
A1: CO2, CH4 and N2O Emission Factors by Passenger Distance (i.e. Public Transport)
A3: Vehicle and Type | B3: Region | C3: CO2 | D3: CO2 - Biomass Fuel | E3: CO2 Unit - Numerator | F3: CO2 Unit - Denominator | G3: CH4 | H3: CH4 Unit - Numerator | I3: CH4 Unit - Denominator | J3: N2O | K3: N2O Unit - Numerator | L3: N2O Unit - Denominator | M3: Default Scope | N3: Mode of Transport
A4: Air - Domestic | B4: Other | C4: 0.17147 | E4: Kilogram | F4: Passenger Kilometer | M4: Scope 3 | N4: Air
A5: Air - Short Haul - Seating Unknown | B5: Other | C5: 0.097 | E5: Kilogram | F5: Passenger Kilometer | M5: Scope 3 | N5: Air
A6: Air - Short Haul - Economy Class | B6: Other | C6: 0.09245 | E6: Kilogram | F6: Passenger Kilometer | M6: Scope 3 | N6: Air
A7: Air - Short Haul - First/Business Class | B7: Other | C7: 0.13867 | E7: Kilogram | F7: Passenger Kilometer | M7: Scope 3 | N7: Air
A8: Air - Long Haul - Seating Unknown | B8: Other | C8: 0.11319 | E8: Kilogram | F8: Passenger Kilometer | M8: Scope 3 | N8: Air
A9: Air - Long Haul - Economy Class | B9: Other | C9: 0.08263 | E9: Kilogram | F9: Passenger Kilometer | M9: Scope 3 | N9: Air
A10: Air - Long Haul - Economy+ Class | B10: Other | C10: 0.13221 | E10: Kilogram | F10: Passenger Kilometer | M10: Scope 3 | N10: Air
A11: Air - Long Haul - Business Class | B11: Other | C11: 0.23963 | E11: Kilogram | F11: Passenger Kilometer | M11: Scope 3 | N11: Air
A12: Air - Long Haul - First Class | B12: Other | C12: 0.33052 | E12: Kilogram | F12: Passenger Kilometer | M12: Scope 3 | N12: Air
A13: Train - Light Rail | B13: Other | C13: 0.163 | E13: Kilogram | F13: Passenger Mile | G13: 0.004 | H13: Gram | I13: Passenger Mile | J13: 0.002 | K13: Gram | L13: Passenger Mile | M13: Scope 3 | N13: Rail
A14: Train - Tram | B14: Other | C14: 0.163 | E14: Kilogram | F14: Passenger Mile | G14: 0.004 | H14: Gram | I14: Passenger Mile | J14: 0.002 | K14: Gram | L14: Passenger Mile | M14: Scope 3 | N14: Rail
A15: Train - Average (Light Rail and Tram) | B15: Other | C15: 0.163 | E15: Kilogram | F15: Passenger Mile | G15: 0.004 | H15: Gram | I15: Passenger Mile | J15: 0.002 | K15: Gram | L15: Passenger Mile | M15: Scope 3 | N15: Rail
A16: Train - National Rail | B16: Other | C16: 0.185 | E16: Kilogram | F16: Passenger Mile | G16: 0.002 | H16: Gram | I16: Passenger Mile | J16: 0.001 | K16: Gram | L16: Passenger Mile | M16: Scope 3 | N16: Rail
A17: Train - Subway | B17: Other | C17: 0.163 | E17: Kilogram | F17: Passenger Mile | G17: 0.004 | H17: Gram | I17: Passenger Mile | J17: 0.002 | K17: Gram | L17: Passenger Mile | M17: Scope 3 | N17: Rail
A18: Taxi | B18: Other | C18: 0.23 | E18: Kilogram | F18: Passenger Mile | G18: 0.02 | H18: Gram | I18: Passenger Mile | J18: 0.021 | K18: Gram | L18: Passenger Mile | M18: Scope 3 | N18: Road
A19: Bus - Local Bus | B19: Other | C19: 0.107 | E19: Kilogram | F19: Passenger Mile | G19: 0.0006 | H19: Gram | I19: Passenger Mile | J19: 0.0005 | K19: Gram | L19: Passenger Mile | M19: Scope 3 | N19: Road
A20: Bus - Coach | B20: Other | C20: 0.107 | E20: Kilogram | F20: Passenger Mile | G20: 0.0006 | H20: Gram | I20: Passenger Mile | J20: 0.0005 | K20: Gram | L20: Passenger Mile | M20: Scope 3 | N20: Road
A21: Bus - Type Unknown | B21: Other | C21: 0.107 | E21: Kilogram | F21: Passenger Mile | G21: 0.0006 | H21: Gram | I21: Passenger Mile | J21: 0.0005 | K21: Gram | L21: Passenger Mile | M21: Scope 3 | N21: Road
A22: Large RoPax Ferry | B22: Other | C22: 0.1152 | E22: Kilogram | F22: Passenger Kilometer | M22: Scope 3 | N22: water
A23: Air - Domestic | B23: UK | C23: 0.17147 | E23: Kilogram | F23: Passenger Kilometer | M23: Scope 3 | N23: Air
A24: Air - Short Haul - Seating Unknown | B24: UK | C24: 0.097 | E24: Kilogram | F24: Passenger Kilometer | M24: Scope 3 | N24: Air
A25: Air - Short Haul - Economy Class | B25: UK | C25: 0.09245 | E25: Kilogram | F25: Passenger Kilometer | M25: Scope 3 | N25: Air
A26: Air - Short Haul - First/Business Class | B26: UK | C26: 0.13867 | E26: Kilogram | F26: Passenger Kilometer | M26: Scope 3 | N26: Air
A27: Air - Long Haul - Seating Unknown | B27: UK | C27: 0.11319 | E27: Kilogram | F27: Passenger Kilometer | M27: Scope 3 | N27: Air
A28: Air - Long Haul - Economy Class | B28: UK | C28: 0.08263 | E28: Kilogram | F28: Passenger Kilometer | M28: Scope 3 | N28: Air
A29: Air - Long Haul - Economy+ Class | B29: UK | C29: 0.13221 | E29: Kilogram | F29: Passenger Kilometer | M29: Scope 3 | N29: Air
A30: Air - Long Haul - Business Class | B30: UK | C30: 0.23963 | E30: Kilogram | F30: Passenger Kilometer | M30: Scope 3 | N30: Air
A31: Air - Long Haul - First Class | B31: UK | C31: 0.33052 | E31: Kilogram | F31: Passenger Kilometer | M31: Scope 3 | N31: Air
A32: Train - Light Rail | B32: UK | C32: 0.0768 | E32: Kilogram | F32: Passenger Kilometer | G32: 0.0019 | H32: Gram | I32: Passenger Kilometer | J32: 0.0014 | K32: Gram | L32: Passenger Kilometer | M32: Scope 3 | N32: Rail
A33: Train - Tram | B33: UK | C33: 0.0768 | E33: Kilogram | F33: Passenger Kilometer | G33: 0.0019 | H33: Gram | I33: Passenger Kilometer | J33: 0.0014 | K33: Gram | L33: Passenger Kilometer | M33: Scope 3 | N33: Rail
A34: Train - Average (Light Rail and Tram) | B34: UK | C34: 0.0768 | E34: Kilogram | F34: Passenger Kilometer | G34: 0.0019 | H34: Gram | I34: Passenger Kilometer | J34: 0.0014 | K34: Gram | L34: Passenger Kilometer | M34: Scope 3 | N34: Rail
A35: Train - National Rail | B35: UK | C35: 0.0534 | E35: Kilogram | F35: Passenger Kilometer | G35: 0.00286 | H35: Gram | I35: Passenger Kilometer | J35: 0.0098 | K35: Gram | L35: Passenger Kilometer | M35: Scope 3 | N35: Rail
A36: Train - Subway | B36: UK | C36: 0.07414 | E36: Kilogram | F36: Passenger Kilometer | G36: 0.0019 | H36: Gram | I36: Passenger Kilometer | J36: 0.0014 | K36: Gram | L36: Passenger Kilometer | M36: Scope 3 | N36: Rail
A37: Taxi | B37: UK | C37: 0.1523 | E37: Kilogram | F37: Passenger Kilometer | G37: 0.0017 | H37: Gram | I37: Passenger Kilometer | J37: 0.0038 | K37: Gram | L37: Passenger Kilometer | M37: Scope 3 | N37: Road
A38: Bus - Local Bus | B38: UK | C38: 0.15726 | E38: Kilogram | F38: Passenger Kilometer | G38: 0.00952 | H38: Gram | I38: Passenger Kilometer | J38: 0.0041 | K38: Gram | L38: Passenger Kilometer | M38: Scope 3 | N38: Road
A39: Bus - Coach | B39: UK | C39: 0.03 | E39: Kilogram | F39: Passenger Kilometer | G39: 0.00381 | H39: Gram | I39: Passenger Kilometer | J39: 0.0018 | K39: Gram | L39: Passenger Kilometer | M39: Scope 3 | N39: Road
A40: Bus - Type Unknown | B40: UK | C40: 0.13394 | E40: Kilogram | F40: Passenger Kilometer | G40: 0.00762 | H40: Gram | I40: Passenger Kilometer | J40: 0.0033 | K40: Gram | L40: Passenger Kilometer | M40: Scope 3 | N40: Road
A41: Large RoPax Ferry | B41: UK | C41: 0.11516 | E41: Kilogram | F41: Passenger Kilometer | M41: Scope 3 | N41: water
A42: Air - Domestic | B42: US | C42: 0.17147 | E42: Kilogram | F42: Passenger Kilometer | M42: Scope 3 | N42: Air
A43: Air - Short Haul - Seating Unknown | B43: US | C43: 0.097 | E43: Kilogram | F43: Passenger Kilometer | M43: Scope 3 | N43: Air
A44: Air - Short Haul - Economy Class | B44: US | C44: 0.09245 | E44: Kilogram | F44: Passenger Kilometer | M44: Scope 3 | N44: Air
A45: Air - Short Haul - First/Business Class | B45: US | C45: 0.13867 | E45: Kilogram | F45: Passenger Kilometer | M45: Scope 3 | N45: Air
A46: Air - Long Haul - Seating Unknown | B46: US | C46: 0.11319 | E46: Kilogram | F46: Passenger Kilometer | M46: Scope 3 | N46: Air
A47: Air - Long Haul - Economy Class | B47: US | C47: 0.08263 | E47: Kilogram | F47: Passenger Kilometer | M47: Scope 3 | N47: Air
A48: Air - Long Haul - Economy+ Class | B48: US | C48: 0.13221 | E48: Kilogram | F48: Passenger Kilometer | M48: Scope 3 | N48: Air
A49: Air - Long Haul - Business Class | B49: US | C49: 0.23963 | E49: Kilogram | F49: Passenger Kilometer | M49: Scope 3 | N49: Air
A50: Air - Long Haul - First Class | B50: US | C50: 0.33052 | E50: Kilogram | F50: Passenger Kilometer | M50: Scope 3 | N50: Air
A51: Train - Light Rail | B51: US | C51: 0.163 | E51: Kilogram | F51: Passenger Mile | G51: 0.004 | H51: Gram | I51: Passenger Mile | J51: 0.002 | K51: Gram | L51: Passenger Mile | M51: Scope 3 | N51: Rail
A52: Train - Tram | B52: US | C52: 0.163 | E52: Kilogram | F52: Passenger Mile | G52: 0.004 | H52: Gram | I52: Passenger Mile | J52: 0.002 | K52: Gram | L52: Passenger Mile | M52: Scope 3 | N52: Rail
A53: Train - Average (Light Rail and Tram) | B53: US | C53: 0.163 | E53: Kilogram | F53: Passenger Mile | G53: 0.004 | H53: Gram | I53: Passenger Mile | J53: 0.002 | K53: Gram | L53: Passenger Mile | M53: Scope 3 | N53: Rail
A54: Train - National Rail | B54: US | C54: 0.185 | E54: Kilogram | F54: Passenger Mile | G54: 0.002 | H54: Gram | I54: Passenger Mile | J54: 0.001 | K54: Gram | L54: Passenger Mile | M54: Scope 3 | N54: Rail
A55: Train - Subway | B55: US | C55: 0.163 | E55: Kilogram | F55: Passenger Mile | G55: 0.004 | H55: Gram | I55: Passenger Mile | J55: 0.002 | K55: Gram | L55: Passenger Mile | M55: Scope 3 | N55: Rail
A56: Taxi | B56: US | C56: 0.23 | E56: Kilogram | F56: Passenger Mile | G56: 0.02 | H56: Gram | I56: Passenger Mile | J56: 0.021 | K56: Gram | L56: Passenger Mile | M56: Scope 3 | N56: Road
A57: Bus - Local Bus | B57: US | C57: 0.107 | E57: Kilogram | F57: Passenger Mile | G57: 0.0006 | H57: Gram | I57: Passenger Mile | J57: 0.0005 | K57: Gram | L57: Passenger Mile | M57: Scope 3 | N57: Road
A58: Bus - Coach | B58: US | C58: 0.107 | E58: Kilogram | F58: Passenger Mile | G58: 0.0006 | H58: Gram | I58: Passenger Mile | J58: 0.0005 | K58: Gram | L58: Passenger Mile | M58: Scope 3 | N58: Road
A59: Bus - Type Unknown | B59: US | C59: 0.107 | E59: Kilogram | F59: Passenger Mile | G59: 0.0006 | H59: Gram | I59: Passenger Mile | J59: 0.0005 | K59: Gram | L59: Passenger Mile | M59: Scope 3 | N59: Road
A60: Large RoPax Ferry | B60: US | C60: 0.11516 | E60: Kilogram | F60: Passenger Kilometer | M60: Scope 3 | N60: water
